{"text_format":"1","workbook":"xlsx","n_sheets":6,"sheets":["TNL","TNL-BG 1","TNL-BG 2","TNL-FeV","TNB","Data"],"not_rendered":{"charts":0,"images":13,"macros":1,"external_links":0,"defined_names":5,"comments":0,"pivot_tables":0},"unopened":[],"bounds":{"document_bytes":16777216,"sheet_cells":100000,"rows_first":2000,"rows_last":500,"rows_between":2000,"halvings":0,"cell_chars":16384,"cell_head_chars":4096},"cells_cut":0,"cells_raw":0,"read":"whole","date_system":"1900"}

{"sheet":"TNL","index":0,"n_rows":99,"n_cols":177,"rows_kept":99,"cut":false,"hidden":false,"merged":[[97,2,98,5],[97,6,97,9],[97,10,97,47],[97,48,98,59],[93,2,94,5],[93,6,93,9],[93,10,93,47],[93,48,94,59],[95,139,95,168],[96,6,96,9],[96,10,96,47],[96,60,96,99],[96,100,96,138],[96,139,96,168],[97,139,97,168],[98,6,98,9],[98,10,98,47],[98,60,98,99],[98,100,98,138],[98,139,98,168],[97,60,97,99],[97,100,97,138],[95,60,95,99],[95,100,95,138],[93,139,93,168],[94,6,94,9],[94,10,94,47],[94,60,94,99],[94,100,94,138],[94,139,94,168],[93,60,93,99],[93,100,93,138],[95,2,96,5],[95,6,95,9],[95,10,95,47],[95,48,96,59],[89,139,89,168],[90,6,90,9],[90,10,90,47],[90,60,90,99],[90,100,90,138],[90,139,90,168],[92,139,92,168],[91,60,91,99],[91,2,92,5],[91,6,91,9],[91,10,91,47],[91,48,92,59],[89,2,90,5],[89,6,89,9],[89,10,89,47],[89,48,90,59],[91,100,91,138],[91,139,91,168],[92,6,92,9],[92,10,92,47],[92,60,92,99],[92,100,92,138],[87,60,87,99],[87,100,87,138],[87,2,88,5],[89,60,89,99],[89,100,89,138],[85,139,85,168],[86,6,86,9],[86,10,86,47],[86,60,86,99],[86,100,86,138],[86,139,86,168],[87,139,87,168],[88,6,88,9],[88,10,88,47],[88,60,88,99],[88,100,88,138],[88,139,88,168],[87,6,87,9],[87,10,87,47],[87,48,88,59],[85,2,86,5],[85,6,85,9],[85,10,85,47],[85,48,86,59],[83,60,83,99],[83,100,83,138],[83,2,84,5],[85,60,85,99],[85,100,85,138],[81,139,81,168],[82,6,82,9],[82,10,82,47],[82,60,82,99],[82,100,82,138],[82,139,82,168],[83,139,83,168],[84,6,84,9],[84,10,84,47],[84,60,84,99],[84,100,84,138],[84,139,84,168],[83,6,83,9],[83,10,83,47],[83,48,84,59],[81,2,82,5],[81,6,81,9],[81,10,81,47],[81,48,82,59],[79,60,79,99],[79,100,79,138],[79,2,80,5],[81,60,81,99],[81,100,81,138],[79,139,79,168],[80,6,80,9],[80,10,80,47],[80,60,80,99],[80,100,80,138],[80,139,80,168],[79,6,79,9],[79,10,79,47],[79,48,80,59],[72,161,72,168],[73,2,73,168],[72,89,72,106],[72,107,72,110],[72,111,72,121],[72,122,72,137],[74,2,74,168],[75,2,78,5],[75,6,78,9],[75,10,78,47],[75,48,78,59],[75,60,78,99],[75,100,78,138],[75,139,78,168],[72,2,72,17],[72,18,72,27],[72,28,72,31],[72,32,72,48],[72,49,72,69],[72,70,72,73],[72,74,72,88],[72,138,72,141],[72,142,72,160],[66,139,66,168],[67,6,67,9],[67,10,67,47],[67,60,67,99],[67,100,67,138],[67,139,67,168],[69,126,69,168],[70,2,70,168],[71,2,71,168],[66,2,67,5],[66,6,66,9],[66,10,66,47],[66,48,67,59],[69,122,69,125],[69,2,69,28],[69,29,69,32],[69,33,69,56],[69,57,69,60],[69,61,69,84],[69,85,69,88],[69,89,69,121],[68,2,68,168],[64,60,64,99],[64,100,64,138],[64,2,65,5],[66,60,66,99],[66,100,66,138],[62,139,62,168],[63,6,63,9],[63,10,63,47],[63,60,63,99],[63,100,63,138],[63,139,63,168],[64,139,64,168],[65,6,65,9],[65,10,65,47],[65,60,65,99],[65,100,65,138],[65,139,65,168],[64,6,64,9],[64,10,64,47],[64,48,65,59],[62,2,63,5],[62,6,62,9],[62,10,62,47],[62,48,63,59],[60,60,60,99],[60,100,60,138],[60,2,61,5],[62,60,62,99],[62,100,62,138],[58,139,58,168],[59,6,59,9],[59,10,59,47],[59,60,59,99],[59,100,59,138],[59,139,59,168],[60,139,60,168],[61,6,61,9],[61,10,61,47],[61,60,61,99],[61,100,61,138],[61,139,61,168],[60,6,60,9],[60,10,60,47],[60,48,61,59],[58,2,59,5],[58,6,58,9],[58,10,58,47],[58,48,59,59],[56,60,56,99],[56,100,56,138],[56,2,57,5],[58,60,58,99],[58,100,58,138],[54,139,54,168],[55,6,55,9],[55,10,55,47],[55,60,55,99],[55,100,55,138],[55,139,55,168],[56,139,56,168],[57,6,57,9],[57,10,57,47],[57,60,57,99],[57,100,57,138],[57,139,57,168],[56,6,56,9],[56,10,56,47],[56,48,57,59],[54,2,55,5],[54,6,54,9],[54,10,54,47],[54,48,55,59],[52,60,52,99],[52,100,52,138],[52,2,53,5],[54,60,54,99],[54,100,54,138],[52,139,52,168],[53,6,53,9],[53,10,53,47],[53,60,53,99],[53,100,53,138],[53,139,53,168],[52,6,52,9],[52,10,52,47],[52,48,53,59],[50,2,51,5],[50,6,50,9],[50,10,50,47],[50,48,51,59],[49,100,49,138],[49,139,49,168],[49,6,49,9],[48,2,49,5],[48,48,49,59],[50,60,50,99],[50,100,50,138],[50,139,50,168],[51,6,51,9],[51,10,51,47],[51,60,51,99],[51,100,51,138],[51,139,51,168],[49,10,49,47],[49,60,49,99],[44,100,47,138],[44,139,47,168],[48,139,48,168],[48,100,48,138],[44,60,47,99],[44,48,47,59],[42,2,42,168],[44,2,47,5],[44,6,47,9],[44,10,47,47],[43,2,43,168],[48,60,48,99],[19,2,19,13],[21,2,21,13],[22,2,22,13],[19,60,19,110],[20,60,20,110],[20,2,20,52],[21,14,21,52],[19,14,19,52],[19,53,19,59],[20,53,20,59],[21,53,21,59],[22,53,22,59],[22,14,22,52],[5,2,5,168],[3,2,4,168],[2,85,2,88],[2,122,2,125],[2,61,2,84],[2,2,2,28],[2,29,2,32],[2,57,2,60],[2,33,2,56],[2,89,2,121],[2,126,2,168],[11,53,11,59],[8,11,8,52],[9,11,9,52],[10,11,10,18],[17,53,17,59],[18,53,18,59],[16,53,16,59],[18,14,18,52],[17,2,17,52],[18,2,18,13],[10,22,10,52],[10,53,10,59],[11,2,11,52],[15,13,15,52],[15,53,15,59],[10,19,10,21],[6,2,6,52],[6,60,6,110],[6,53,6,59],[14,99,14,110],[14,81,14,92],[14,95,14,98],[14,93,14,94],[10,2,10,10],[14,2,14,52],[13,2,13,52],[9,53,9,59],[8,74,8,79],[7,53,7,59],[7,60,7,110],[7,2,7,52],[8,80,8,110],[8,60,8,65],[8,66,8,73],[8,2,8,10],[9,2,9,10],[8,53,8,59],[12,2,12,25],[12,26,12,52],[12,53,12,59],[30,60,30,110],[22,151,22,153],[22,118,22,145],[31,118,31,168],[30,118,30,168],[31,111,31,117],[30,2,30,52],[30,53,30,59],[29,2,29,168],[30,111,30,117],[18,60,18,85],[18,86,18,110],[17,60,17,110],[15,95,15,98],[15,81,15,88],[16,118,18,168],[22,111,22,117],[22,146,22,150],[22,162,22,168],[22,154,22,158],[22,159,22,161],[21,60,21,110],[15,76,15,80],[15,89,15,92],[15,99,15,106],[17,111,17,117],[20,111,20,117],[21,111,21,117],[20,118,20,168],[21,159,21,161],[21,154,21,158],[21,118,21,145],[21,151,21,153],[21,146,21,150],[14,76,14,80],[7,111,7,117],[14,60,14,75],[7,118,7,168],[10,133,10,168],[9,60,9,67],[9,68,9,110],[16,76,16,110],[14,149,14,168],[16,111,16,117],[15,107,15,110],[12,60,12,88],[10,60,11,110],[15,93,15,94],[12,99,12,102],[12,103,12,110],[12,93,12,98],[12,89,12,92],[6,121,6,168],[14,111,14,117],[9,118,9,132],[8,118,8,132],[8,133,8,168],[9,133,9,168],[8,111,8,117],[11,118,11,168],[10,118,10,132],[6,111,6,117],[9,111,9,117],[10,111,10,117],[11,111,11,117],[12,111,12,117],[13,111,13,117],[12,118,12,120],[6,118,6,120],[14,118,14,148],[12,121,12,168],[13,118,13,168],[32,2,32,14],[32,15,32,52],[32,60,32,72],[32,73,32,110],[36,2,36,52],[31,2,31,52],[31,60,31,110],[32,118,35,168],[32,111,32,117],[32,53,32,59],[31,53,31,59],[38,2,38,28],[38,29,38,32],[38,33,38,56],[38,57,38,60],[38,126,38,168],[38,61,38,84],[33,2,35,52],[34,53,34,59],[34,111,34,117],[38,122,38,125],[36,118,36,168],[39,2,39,168],[41,49,41,69],[40,2,40,168],[48,6,48,9],[41,138,41,141],[41,161,41,168],[41,2,41,17],[36,53,36,59],[33,60,35,110],[36,60,36,110],[33,111,33,117],[41,18,41,27],[41,32,41,48],[48,10,48,47],[41,28,41,31],[41,70,41,73],[41,107,41,110],[41,142,41,160],[41,122,41,137],[41,111,41,121],[41,89,41,106],[41,74,41,88],[38,85,38,88],[38,89,38,121],[21,162,21,168],[19,118,19,168],[15,111,15,117],[18,111,18,117],[15,118,15,148],[19,111,19,117],[12,171,12,174],[11,171,11,174],[45,171,46,172],[37,2,37,168],[35,111,35,117],[36,111,36,117],[33,53,33,59],[35,53,35,59],[22,60,22,110],[23,2,28,168],[13,60,13,110],[16,2,16,52],[13,53,13,59],[14,53,14,59],[15,60,15,75],[16,60,16,75],[15,2,15,12],[15,149,15,168]]}
[]
[]
[null,null,"Teilnehmerliste",null,null,null,null,null,null,null,null,null,null,null,null,null,null,null,null,null,null,null,null,null,null,null,null,null,null,"X",null,null,null,"  Erste Hilfe-Ausbildung ",null,null,null,null,null,null,null,null,null,null,null,null,null,null,null,null,null,null,null,null,null,null,null,null,null,null,null,"  Erste Hilfe-Fortbildung ",null,null,null,null,null,null,null,null,null,null,null,null,null,null,null,null,null,null,null,null,null,null,null,null,null,null,null,"  Erste Hilfe in Betreuungseinrichtungen",null,null,null,null,null,null,null,null,null,null,null,null,null,null,null,null,null,null,null,null,null,null,null,null,null,null,null,null,null,null,null,null,null,null,null,null,null,null,null,null,null,null,null,null,null,null,null,null,null,null,null,null,null,null,null,null,null,null,null,null,null,null,null,null,null,null,null,null,null,null,null,null,null,null,null,null,null,null,null,null,null,{"$f":"IF(AD3<>\"\",312,\"\")","v":312},{"$f":"IF(BF3<>\"\",321,\"\")","v":""},{"$f":"IF(CH3<>\"\",315,\"\")","v":""},{"$f":"IF(DS3<>\"\",322,\"\")","v":""},{"$f":"SUM(FP3:FS3)","v":312}]
[null,null,"Dokumentationsblatt nach DGUV Grundsatz 304-001 | Aus-/Fortbildung für betriebliche Ersthelfer | zum Nachweis für die Qualitätssicherungsstelle Erste Hilfe (QSEH) und die Fahrerlaubnisbehörden (FeV)"]
[]
[]
[null,null,"Ausbildende Institution (Adresse)",null,null,null,null,null,null,null,null,null,null,null,null,null,null,null,null,null,null,null,null,null,null,null,null,null,null,null,null,null,null,null,null,null,null,null,null,null,null,null,null,null,null,null,null,null,null,null,null,null,null,null,null,null,null,null,null,null,"Lehrgangsort",null,null,null,null,null,null,null,null,null,null,null,null,null,null,null,null,null,null,null,null,null,null,null,null,null,null,null,null,null,null,null,null,null,null,null,null,null,null,null,null,null,null,null,null,null,null,null,null,null,null,null,null,null,null,null,null,null,"X",null,null,"  Anerkennung Fahrerlaubnisbehörde (FeV)"]
[]
[null,null,"Name:",null,null,null,null,null,null,null,null,"DLRG Landesverband Niedersachsen e.V.",null,null,null,null,null,null,null,null,null,null,null,null,null,null,null,null,null,null,null,null,null,null,null,null,null,null,null,null,null,null,null,null,null,null,null,null,null,null,null,null,null,null,null,null,null,null,null,null,"PLZ:",null,null,null,null,null,null,null,null,null,null,null,null,null,"Ort:",null,null,null,null,null,null,null,null,null,null,null,null,null,null,null,null,null,null,null,null,null,null,null,null,null,null,null,null,null,null,null,null,null,null,null,null,null,null,null,null,null,null,null,{"$f":"IF(DO7<>\"\",\"durch Behörde:\",\"\")","v":"durch Behörde:"},null,null,null,null,null,null,null,null,null,null,null,null,null,null,"Fahrerlaubnisbehörde LH Hannover",null,null,null,null,null,null,null,null,null,null,null,null,null,null,null,null,null,null,null,null,null,null,null,null,null,null,null,null,null,null,null,null,null,null,null,null,null,null,null,null,null,{"$f":"IF(G50<>\"\",1,\"\")","v":""}]
[null,null,"Straße:",null,null,null,null,null,null,null,null,"Im Niedernfeld 4a",null,null,null,null,null,null,null,null,null,null,null,null,null,null,null,null,null,null,null,null,null,null,null,null,null,null,null,null,null,null,null,null,null,null,null,null,null,null,null,null,null,null,null,null,null,null,null,null,"Straße:",null,null,null,null,null,null,null,null,null,null,null,null,null,null,null,null,null,null,null,null,null,null,null,null,null,null,null,null,null,null,null,null,null,null,null,null,null,null,null,null,null,null,null,null,null,null,null,null,null,null,null,null,null,null,null,null,null,{"$f":"IF(DO7<>\"\",\"Aktenzeichen:\",\"\")","v":"Aktenzeichen:"},null,null,null,null,null,null,null,null,null,null,null,null,null,null,"32.44.4 WO",null,null,null,null,null,null,null,null,null,null,null,null,null,null,null,null,null,null,null,null,null,null,null,null,null,null,null,null,null,null,null,null,null,null,null,null,null,null,null,null,null,{"$f":"IF(G52<>\"\",1,\"\")","v":""}]
[null,null,"PLZ/Ort:",null,null,null,null,null,null,null,null,"31542",null,null,null,null,null,null,null,null,null,null,"Bad Nenndorf",null,null,null,null,null,null,null,null,null,null,null,null,null,null,null,null,null,null,null,null,null,null,null,null,null,null,null,null,null,null,null,null,null,null,null,null,null,"Weitere Angaben zum Lehrgang",null,null,null,null,null,null,null,null,null,null,null,null,null,null,null,null,null,null,null,null,null,null,null,null,null,null,null,null,null,null,null,null,null,null,null,null,null,null,null,null,null,null,null,null,null,null,null,null,null,null,null,null,null,null,null,null,null,{"$f":"IF(DO7<>\"\",\"Anerkannt am:\",\"\")","v":"Anerkannt am:"},null,null,null,null,null,null,null,null,null,null,null,null,null,null,"2009-12-01",null,null,null,null,null,null,null,null,null,null,null,null,null,null,null,null,null,null,null,null,null,null,null,null,null,null,null,null,null,null,null,null,null,null,null,null,null,null,null,null,null,{"$f":"IF(G54<>\"\",1,\"\")","v":""}]
[null,null,null,null,null,null,null,null,null,null,null,null,null,null,null,null,null,null,null,null,null,null,null,null,null,null,null,null,null,null,null,null,null,null,null,null,null,null,null,null,null,null,null,null,null,null,null,null,null,null,null,null,null,null,null,null,null,null,null,null,null,null,null,null,null,null,null,null,null,null,null,null,null,null,null,null,null,null,null,null,null,null,null,null,null,null,null,null,null,null,null,null,null,null,null,null,null,null,null,null,null,null,null,null,null,null,null,null,null,null,null,null,null,null,null,null,null,null,null,null,null,null,null,null,null,null,null,null,null,null,null,null,null,null,null,null,null,null,null,null,null,null,null,null,null,null,null,null,null,null,null,null,null,null,null,null,null,null,null,null,null,null,null,null,null,null,null,null,null,null,null,"Lfd-Nr. der Bescheinigung",null,null,null,{"$f":"IF(G56<>\"\",1,\"\")","v":""},4]
[null,null,"Gliederungsnummer:",null,null,null,null,null,null,null,null,null,null,null,null,null,null,null,null,null,null,null,null,null,null,null,800000,null,null,null,null,null,null,null,null,null,null,null,null,null,null,null,null,null,null,null,null,null,null,null,null,null,null,null,null,null,null,null,null,null,"TNB Erste Hilfe ausgehändigt:",null,null,null,null,null,null,null,null,null,null,null,null,null,null,null,null,null,null,null,null,null,null,null,null,null,null,null,null,null,null,null,null,"  Ja",null,null,null,null,null,null,null,null,null,"  Nein",null,null,null,null,null,null,null,null,null,null,null,null,null,null,"X",null,null,"  Ermächtigte Stelle gemäß DGUV Vorschrift 1",null,null,null,null,null,null,null,null,null,null,null,null,null,null,null,null,null,null,null,null,null,null,null,null,null,null,null,null,null,null,null,null,null,null,null,null,null,null,null,null,null,null,null,null,null,null,null,null,null,"Beginn mit der Nummer?",null,null,null,{"$f":"IF(G58<>\"\",1,\"\")","v":""},5]
[null,null,null,null,null,null,null,null,null,null,null,null,null,null,null,null,null,null,null,null,null,null,null,null,null,null,null,null,null,null,null,null,null,null,null,null,null,null,null,null,null,null,null,null,null,null,null,null,null,null,null,null,null,null,null,null,null,null,null,null,null,null,null,null,null,null,null,null,null,null,null,null,null,null,null,null,null,null,null,null,null,null,null,null,null,null,null,null,null,null,null,null,null,null,null,null,null,null,null,null,null,null,null,null,null,null,null,null,null,null,null,null,null,null,null,null,null,null,null,null,null,null,null,null,null,null,null,null,null,null,null,null,null,null,null,null,null,null,null,null,null,null,null,null,null,null,null,null,null,null,null,null,null,null,null,null,null,null,null,null,null,null,null,null,null,null,null,null,null,null,null,null,null,null,{"$f":"IF(G49<>\"\",1,0)","v":0},{"$f":"IF(G50<>\"\",1,0)","v":0},1]
[null,null,"Name des verantwortlichen Arztes (Titel Vorname Name)",null,null,null,null,null,null,null,null,null,null,null,null,null,null,null,null,null,null,null,null,null,null,null,null,null,null,null,null,null,null,null,null,null,null,null,null,null,null,null,null,null,null,null,null,null,null,null,null,null,null,null,null,null,null,null,null,null,"Lehrgang",null,null,null,null,null,null,null,null,null,null,null,null,null,null,null,"vom:",null,null,null,null,null,null,null,null,null,null,null,null,null,null,null,null,null,null,"bis:",null,null,null,null,null,null,null,null,null,null,null,null,null,null,null,null,null,null,null,null,null,null,{"$f":"IF(DO13<>\"\",\"Nummer der ermächtigten Stelle:\",\"\")","v":"Nummer der ermächtigten Stelle:"},null,null,null,null,null,null,null,null,null,null,null,null,null,null,null,null,null,null,null,null,null,null,null,null,null,null,null,null,null,null,"2.0800",null,null,null,null,null,null,null,null,null,null,null,null,null,null,null,null,null,null,null,null,null,1,"bis",{"$f":"IF(NOT(ISBLANK(FP15)),MAX(FQ16:FQ35),\"\")","v":0},{"$f":"IF(G51<>\"\",1,0)","v":0},{"$f":"IF(G52<>\"\",1,0)","v":0},2]
[null,null,"Arzt/Ärztin:",null,null,null,null,null,null,null,null,null,null,"Dr. med. Frank Streiber",null,null,null,null,null,null,null,null,null,null,null,null,null,null,null,null,null,null,null,null,null,null,null,null,null,null,null,null,null,null,null,null,null,null,null,null,null,null,null,null,null,null,null,null,null,null,"Lehrgangszeit:",null,null,null,null,null,null,null,null,null,null,null,null,null,null,null,"von:",null,null,null,null,null,null,null,null,null,null,null,null,"Uhr",null,null,null,null,null,"bis:",null,null,null,null,null,null,null,null,null,null,null,"Uhr",null,null,null,null,null,null,null,null,null,null,{"$f":"IF(DO13<>\"\",\"Lehrgangsnummer (QSEH):\",\"\")","v":"Lehrgangsnummer (QSEH):"},null,null,null,null,null,null,null,null,null,null,null,null,null,null,null,null,null,null,null,null,null,null,null,null,null,null,null,null,null,null,null,null,null,null,null,null,null,null,null,null,null,null,null,null,null,null,null,null,null,null,null,null,null,{"$f":"IF(K49<>\"\",$FP$15+FR16,0)","v":0},0,{"$f":"IF(G53<>\"\",1,0)","v":0},{"$f":"IF(G54<>\"\",1,0)","v":0},3]
[null,null,null,null,null,null,null,null,null,null,null,null,null,null,null,null,null,null,null,null,null,null,null,null,null,null,null,null,null,null,null,null,null,null,null,null,null,null,null,null,null,null,null,null,null,null,null,null,null,null,null,null,null,null,null,null,null,null,null,null,null,null,null,null,null,null,null,null,null,null,null,null,null,null,null,null,"(Uhrzeiten bei Lehrgängen an einem Tag)",null,null,null,null,null,null,null,null,null,null,null,null,null,null,null,null,null,null,null,null,null,null,null,null,null,null,null,null,null,null,null,null,null,null,null,null,null,null,null,null,null,"Die eingesetzten Lehrkräfte sind nach den Regelungen der Qualitätssicherungsstelle Erste Hilfe (QSEH) der DGUV zur Durchführung der Aus- oder Fortbildung befähigt.",null,null,null,null,null,null,null,null,null,null,null,null,null,null,null,null,null,null,null,null,null,null,null,null,null,null,null,null,null,null,null,null,null,null,null,null,null,null,null,null,null,null,null,null,null,null,null,null,null,null,null,null,null,{"$f":"IF(K51<>\"\",$FP$15+FR17,0)","v":0},1,{"$f":"IF(G55<>\"\",1,0)","v":0},{"$f":"IF(G56<>\"\",1,0)","v":0},4]
[null,null,"Lehrkräfte (Vorname Name)",null,null,null,null,null,null,null,null,null,null,null,null,null,null,null,null,null,null,null,null,null,null,null,null,null,null,null,null,null,null,null,null,null,null,null,null,null,null,null,null,null,null,null,null,null,null,null,null,null,null,null,null,null,null,null,null,null,null,null,null,null,null,null,null,null,null,null,null,null,null,null,null,null,null,null,null,null,null,null,null,null,null,null,null,null,null,null,null,null,null,null,null,null,null,null,null,null,null,null,null,null,null,null,null,null,null,null,null,null,null,null,null,null,null,null,null,null,null,null,null,null,null,null,null,null,null,null,null,null,null,null,null,null,null,null,null,null,null,null,null,null,null,null,null,null,null,null,null,null,null,null,null,null,null,null,null,null,null,null,null,null,null,null,null,null,null,null,null,null,{"$f":"IF(K53<>\"\",$FP$15+FR18,0)","v":0},2,{"$f":"IF(G57<>\"\",1,0)","v":0},{"$f":"IF(G58<>\"\",1,0)","v":0},5]
[null,null,"Lehrkraft 1:",null,null,null,null,null,null,null,null,null,null,null,null,null,null,null,null,null,null,null,null,null,null,null,null,null,null,null,null,null,null,null,null,null,null,null,null,null,null,null,null,null,null,null,null,null,null,null,null,null,null,null,null,null,null,null,null,null,"Lehrgangs-Nr. (DLRG intern):",null,null,null,null,null,null,null,null,null,null,null,null,null,null,null,null,null,null,null,null,null,null,null,null,null,null,null,null,null,null,null,null,null,null,null,null,null,null,null,null,null,null,null,null,null,null,null,null,null,null,null,null,null,null,null,null,null,null,null,null,null,null,null,null,null,null,null,null,null,null,null,null,null,null,null,null,null,null,null,null,null,null,null,null,null,null,null,null,null,null,null,null,null,null,null,null,null,null,null,null,null,null,null,null,null,null,null,null,null,null,null,{"$f":"IF(K55<>\"\",$FP$15+FR19,0)","v":0},3,{"$f":"IF(G59<>\"\",1,0)","v":0},{"$f":"IF(G60<>\"\",1,0)","v":0},6]
[null,null,"Reg.-Nr. 1:",null,null,null,null,null,null,null,null,null,null,null,null,null,null,null,null,null,null,null,null,null,null,null,null,null,null,null,null,null,null,null,null,null,null,null,null,null,null,null,null,null,null,null,null,null,null,null,null,null,null,null,null,null,null,null,null,null,null,null,null,null,null,null,null,null,null,null,null,null,null,null,null,null,null,null,null,null,null,null,null,null,null,null,null,null,null,null,null,null,null,null,null,null,null,null,null,null,null,null,null,null,null,null,null,null,null,null,null,null,null,null,null,null,null,null,null,null,null,null,null,null,null,null,null,null,null,null,null,null,null,null,null,null,null,null,null,null,null,null,null,null,null,null,null,null,null,null,null,null,null,null,null,null,null,null,null,null,null,null,null,null,null,null,null,null,null,null,null,null,{"$f":"IF(K57<>\"\",$FP$15+FR20,0)","v":0},4,{"$f":"IF(G61<>\"\",1,0)","v":0},{"$f":"IF(G62<>\"\",1,0)","v":0},7]
[null,null,null,null,null,null,null,null,null,null,null,null,null,null,null,null,null,null,null,null,null,null,null,null,null,null,null,null,null,null,null,null,null,null,null,null,null,null,null,null,null,null,null,null,null,null,null,null,null,null,null,null,null,null,null,null,null,null,null,null,"Verwendete Gesichtsteile für die HLW",null,null,null,null,null,null,null,null,null,null,null,null,null,null,null,null,null,null,null,null,null,null,null,null,null,null,null,null,null,null,null,null,null,null,null,null,null,null,null,null,null,null,null,null,null,null,null,null,null,null,null,null,null,null,null,null,null,"Aufschlüsselung der Lehrgangsteilnehmer",null,null,null,null,null,null,null,null,null,null,null,null,null,null,null,null,null,null,null,null,null,null,null,null,null,null,null,null,null,null,null,null,null,null,null,null,null,null,null,null,null,null,null,null,null,null,null,null,null,null,null,null,null,{"$f":"IF(K59<>\"\",$FP$15+FR21,0)","v":0},5,{"$f":"IF(G63<>\"\",1,0)","v":0},{"$f":"IF(G64<>\"\",1,0)","v":0},8]
[null,null,"Lehrkraft 2:",null,null,null,null,null,null,null,null,null,null,null,null,null,null,null,null,null,null,null,null,null,null,null,null,null,null,null,null,null,null,null,null,null,null,null,null,null,null,null,null,null,null,null,null,null,null,null,null,null,null,null,null,null,null,null,null,null,null,null,null,null,null,null,null,null,null,null,null,null,null,null,null,null,null,null,null,null,null,null,null,null,null,null,null,null,null,null,null,null,null,null,null,null,null,null,null,null,null,null,null,null,null,null,null,null,null,null,null,null,null,null,null,null,null,null,"Anzahl Lehrgangsteilnehmer:",null,null,null,null,null,null,null,null,null,null,null,null,null,null,null,null,null,null,null,null,null,null,null,null,null,null,null,{"$f":"IF(FT34<>0,FT34,\"\")","v":""},null,null,null,null,"+",null,null,{"$f":"IF(FS34<>0,FS34,\"\")","v":""},null,null,null,null,"=",null,null,{"$f":"IF(FU34<>0,FU34,\"\")","v":""},null,null,null,null,null,null,null,null,null,{"$f":"IF(K61<>\"\",$FP$15+FR22,0)","v":0},6,{"$f":"IF(G65<>\"\",1,0)","v":0},{"$f":"IF(G66<>\"\",1,0)","v":0},9]
[null,null,"Assistent:",null,null,null,null,null,null,null,null,null,null,null,null,null,null,null,null,null,null,null,null,null,null,null,null,null,null,null,null,null,null,null,null,null,null,null,null,null,null,null,null,null,null,null,null,null,null,null,null,null,null,null,null,null,null,null,null,null,"Charge | Chargen-Nummern",null,null,null,null,null,null,null,null,null,null,null,null,null,null,null,null,null,null,null,null,null,null,null,null,null,null,null,null,null,null,null,null,null,null,null,null,null,null,null,null,null,null,null,null,null,null,null,null,null,null,null,null,null,null,null,null,null,null,null,null,null,null,null,null,null,null,null,null,null,null,null,null,null,null,null,null,null,null,null,null,null,null,null,null,null,"Pv",null,null,null,null,null,null,null,"BG",null,null,null,null,null,null,null,"Gesamt",null,null,null,null,null,null,null,null,null,{"$f":"IF(K63<>\"\",$FP$15+FR23,0)","v":0},7,{"$f":"IF(G67<>\"\",1,0)","v":0},{"$f":"IF(G68<>\"\",1,0)","v":0},10]
[null,null,"Die Ausbildung bzw. Fortbildung wurde entsprechend den gültigen Vorgaben – genehmigte Leitfäden/Rahmenpläne, Gemeinsame Grundsätze der Bundesarbeitsgemeinschaft Erste Hilfe (BAGEH) und nach der Deutschen Gesetzlichen Unfallversicherung (DGUV) Grundsatz 304-001 – ordnungsgemäß durchgeführt. Spezifische rechtliche Vorgaben wurden beachtet.\n\nDie nachfolgend aufgeführten Personen haben an der Ausbildung bzw. Fortbildung erfolgreich teilgenommen, diese abgeschlossen und eine Teilnehmerbroschüre sowie die Teilnahmebescheinigung erhalten.",null,null,null,null,null,null,null,null,null,null,null,null,null,null,null,null,null,null,null,null,null,null,null,null,null,null,null,null,null,null,null,null,null,null,null,null,null,null,null,null,null,null,null,null,null,null,null,null,null,null,null,null,null,null,null,null,null,null,null,null,null,null,null,null,null,null,null,null,null,null,null,null,null,null,null,null,null,null,null,null,null,null,null,null,null,null,null,null,null,null,null,null,null,null,null,null,null,null,null,null,null,null,null,null,null,null,null,null,null,null,null,null,null,null,null,null,null,null,null,null,null,null,null,null,null,null,null,null,null,null,null,null,null,null,null,null,null,null,null,null,null,null,null,null,null,null,null,null,null,null,null,null,null,null,null,null,null,null,null,null,null,null,null,null,null,null,null,null,null,{"$f":"IF(K65<>\"\",$FP$15+FR24,0)","v":0},8,{"$f":"IF(G80<>\"\",1,0)","v":0},{"$f":"IF(G81<>\"\",1,0)","v":0},11]
[null,null,null,null,null,null,null,null,null,null,null,null,null,null,null,null,null,null,null,null,null,null,null,null,null,null,null,null,null,null,null,null,null,null,null,null,null,null,null,null,null,null,null,null,null,null,null,null,null,null,null,null,null,null,null,null,null,null,null,null,null,null,null,null,null,null,null,null,null,null,null,null,null,null,null,null,null,null,null,null,null,null,null,null,null,null,null,null,null,null,null,null,null,null,null,null,null,null,null,null,null,null,null,null,null,null,null,null,null,null,null,null,null,null,null,null,null,null,null,null,null,null,null,null,null,null,null,null,null,null,null,null,null,null,null,null,null,null,null,null,null,null,null,null,null,null,null,null,null,null,null,null,null,null,null,null,null,null,null,null,null,null,null,null,null,null,null,null,null,null,null,null,{"$f":"IF(K67<>\"\",$FP$15+FR25,0)","v":0},9,{"$f":"IF(G82<>\"\",1,0)","v":0},{"$f":"IF(G83<>\"\",1,0)","v":0},12]
[null,null,null,null,null,null,null,null,null,null,null,null,null,null,null,null,null,null,null,null,null,null,null,null,null,null,null,null,null,null,null,null,null,null,null,null,null,null,null,null,null,null,null,null,null,null,null,null,null,null,null,null,null,null,null,null,null,null,null,null,null,null,null,null,null,null,null,null,null,null,null,null,null,null,null,null,null,null,null,null,null,null,null,null,null,null,null,null,null,null,null,null,null,null,null,null,null,null,null,null,null,null,null,null,null,null,null,null,null,null,null,null,null,null,null,null,null,null,null,null,null,null,null,null,null,null,null,null,null,null,null,null,null,null,null,null,null,null,null,null,null,null,null,null,null,null,null,null,null,null,null,null,null,null,null,null,null,null,null,null,null,null,null,null,null,null,null,null,null,null,null,null,{"$f":"IF(K80<>\"\",$FP$15+FR26,0)","v":0},10,{"$f":"IF(G84<>\"\",1,0)","v":0},{"$f":"IF(G85<>\"\",1,0)","v":0},13]
[null,null,null,null,null,null,null,null,null,null,null,null,null,null,null,null,null,null,null,null,null,null,null,null,null,null,null,null,null,null,null,null,null,null,null,null,null,null,null,null,null,null,null,null,null,null,null,null,null,null,null,null,null,null,null,null,null,null,null,null,null,null,null,null,null,null,null,null,null,null,null,null,null,null,null,null,null,null,null,null,null,null,null,null,null,null,null,null,null,null,null,null,null,null,null,null,null,null,null,null,null,null,null,null,null,null,null,null,null,null,null,null,null,null,null,null,null,null,null,null,null,null,null,null,null,null,null,null,null,null,null,null,null,null,null,null,null,null,null,null,null,null,null,null,null,null,null,null,null,null,null,null,null,null,null,null,null,null,null,null,null,null,null,null,null,null,null,null,null,null,null,null,{"$f":"IF(K82<>\"\",$FP$15+FR27,0)","v":0},11,{"$f":"IF(G86<>\"\",1,0)","v":0},{"$f":"IF(G87<>\"\",1,0)","v":0},14]
[null,null,null,null,null,null,null,null,null,null,null,null,null,null,null,null,null,null,null,null,null,null,null,null,null,null,null,null,null,null,null,null,null,null,null,null,null,null,null,null,null,null,null,null,null,null,null,null,null,null,null,null,null,null,null,null,null,null,null,null,null,null,null,null,null,null,null,null,null,null,null,null,null,null,null,null,null,null,null,null,null,null,null,null,null,null,null,null,null,null,null,null,null,null,null,null,null,null,null,null,null,null,null,null,null,null,null,null,null,null,null,null,null,null,null,null,null,null,null,null,null,null,null,null,null,null,null,null,null,null,null,null,null,null,null,null,null,null,null,null,null,null,null,null,null,null,null,null,null,null,null,null,null,null,null,null,null,null,null,null,null,null,null,null,null,null,null,null,null,null,null,null,{"$f":"IF(K84<>\"\",$FP$15+FR28,0)","v":0},12,{"$f":"IF(G88<>\"\",1,0)","v":0},{"$f":"IF(G89<>\"\",1,0)","v":0},15]
[null,null,null,null,null,null,null,null,null,null,null,null,null,null,null,null,null,null,null,null,null,null,null,null,null,null,null,null,null,null,null,null,null,null,null,null,null,null,null,null,null,null,null,null,null,null,null,null,null,null,null,null,null,null,null,null,null,null,null,null,null,null,null,null,null,null,null,null,null,null,null,null,null,null,null,null,null,null,null,null,null,null,null,null,null,null,null,null,null,null,null,null,null,null,null,null,null,null,null,null,null,null,null,null,null,null,null,null,null,null,null,null,null,null,null,null,null,null,null,null,null,null,null,null,null,null,null,null,null,null,null,null,null,null,null,null,null,null,null,null,null,null,null,null,null,null,null,null,null,null,null,null,null,null,null,null,null,null,null,null,null,null,null,null,null,null,null,null,null,null,null,null,{"$f":"IF(K86<>\"\",$FP$15+FR29,0)","v":0},13,{"$f":"IF(G90<>\"\",1,0)","v":0},{"$f":"IF(G91<>\"\",1,0)","v":0},16]
[null,null,null,null,null,null,null,null,null,null,null,null,null,null,null,null,null,null,null,null,null,null,null,null,null,null,null,null,null,null,null,null,null,null,null,null,null,null,null,null,null,null,null,null,null,null,null,null,null,null,null,null,null,null,null,null,null,null,null,null,null,null,null,null,null,null,null,null,null,null,null,null,null,null,null,null,null,null,null,null,null,null,null,null,null,null,null,null,null,null,null,null,null,null,null,null,null,null,null,null,null,null,null,null,null,null,null,null,null,null,null,null,null,null,null,null,null,null,null,null,null,null,null,null,null,null,null,null,null,null,null,null,null,null,null,null,null,null,null,null,null,null,null,null,null,null,null,null,null,null,null,null,null,null,null,null,null,null,null,null,null,null,null,null,null,null,null,null,null,null,null,null,{"$f":"IF(K88<>\"\",$FP$15+FR30,0)","v":0},14,{"$f":"IF(G92<>\"\",1,0)","v":0},{"$f":"IF(G93<>\"\",1,0)","v":0},17]
[null,null,"Für die Richtigkeit der Angaben",null,null,null,null,null,null,null,null,null,null,null,null,null,null,null,null,null,null,null,null,null,null,null,null,null,null,null,null,null,null,null,null,null,null,null,null,null,null,null,null,null,null,null,null,null,null,null,null,null,null,null,null,null,null,null,null,null,"Lehrgangsleitung",null,null,null,null,null,null,null,null,null,null,null,null,null,null,null,null,null,null,null,null,null,null,null,null,null,null,null,null,null,null,null,null,null,null,null,null,null,null,null,null,null,null,null,null,null,null,null,null,null,null,null,null,null,null,null,null,null,null,null,null,null,null,null,null,null,null,null,null,null,null,null,null,null,null,null,null,null,null,null,null,null,null,null,null,null,null,null,null,null,null,null,null,null,null,null,null,null,null,null,null,null,null,null,null,null,null,null,null,null,null,null,{"$f":"IF(K90<>\"\",$FP$15+FR31,0)","v":0},15,{"$f":"IF(G94<>\"\",1,0)","v":0},{"$f":"IF(G95<>\"\",1,0)","v":0},18]
[null,null,null,null,null,null,null,null,null,null,null,null,null,null,null,null,null,null,null,null,null,null,null,null,null,null,null,null,null,null,null,null,null,null,null,null,null,null,null,null,null,null,null,null,null,null,null,null,null,null,null,null,null,null,null,null,null,null,null,null,null,null,null,null,null,null,null,null,null,null,null,null,null,null,null,null,null,null,null,null,null,null,null,null,null,null,null,null,null,null,null,null,null,null,null,null,null,null,null,null,null,null,null,null,null,null,null,null,null,null,null,null,null,null,null,null,null,null,null,null,null,null,null,null,null,null,null,null,null,null,null,null,null,null,null,null,null,null,null,null,null,null,null,null,null,null,null,null,null,null,null,null,null,null,null,null,null,null,null,null,null,null,null,null,null,null,null,null,null,null,null,null,{"$f":"IF(K92<>\"\",$FP$15+FR32,0)","v":0},16,{"$f":"IF(G96<>\"\",1,0)","v":0},{"$f":"IF(G97<>\"\",1,0)","v":0},19]
[null,null,"Ort, Datum:",null,null,null,null,null,null,null,null,null,null,null,null,null,null,null,null,null,null,null,null,null,null,null,null,null,null,null,null,null,null,null,null,null,null,null,null,null,null,null,null,null,null,null,null,null,null,null,null,null,null,null,null,null,null,null,null,null,"Ort, Datum:",null,null,null,null,null,null,null,null,null,null,null,null,null,null,null,null,null,null,null,null,null,null,null,null,null,null,null,null,null,null,null,null,null,null,null,null,null,null,null,null,null,null,null,null,null,null,null,null,null,null,null,null,null,null,null,null,null,null,null,null,null,null,null,null,null,null,null,null,null,null,null,null,null,null,null,null,null,null,null,null,null,null,null,null,null,null,null,null,null,null,null,null,null,null,null,null,null,null,null,null,null,null,null,null,null,null,null,null,null,null,null,{"$f":"IF(K94<>\"\",$FP$15+FR33,0)","v":0},17,{"$f":"IF(G98<>\"\",1,0)","v":0},{"$f":"IF(G99<>\"\",1,0)","v":0},20]
[null,null,null,null,null,null,null,null,null,null,null,null,null,null,null,null,null,null,null,null,null,null,null,null,null,null,null,null,null,null,null,null,null,null,null,null,null,null,null,null,null,null,null,null,null,null,null,null,null,null,null,null,null,null,null,null,null,null,null,null,null,null,null,null,null,null,null,null,null,null,null,null,null,null,null,null,null,null,null,null,null,null,null,null,null,null,null,null,null,null,null,null,null,null,null,null,null,null,null,null,null,null,null,null,null,null,null,null,null,null,null,null,null,null,null,null,null,null,null,null,null,null,null,null,null,null,null,null,null,null,null,null,null,null,null,null,null,null,null,null,null,null,null,null,null,null,null,null,null,null,null,null,null,null,null,null,null,null,null,null,null,null,null,null,null,null,null,null,null,null,null,null,{"$f":"IF(K96<>\"\",$FP$15+FR34,0)","v":0},18,{"$f":"SUM(FS14:FS33)","v":0},{"$f":"SUM(FT14:FT33)","v":0},{"$f":"SUM(FT34,FS34)","v":0}]
[null,null,null,null,null,null,null,null,null,null,null,null,null,null,null,null,null,null,null,null,null,null,null,null,null,null,null,null,null,null,null,null,null,null,null,null,null,null,null,null,null,null,null,null,null,null,null,null,null,null,null,null,null,null,null,null,null,null,null,null,null,null,null,null,null,null,null,null,null,null,null,null,null,null,null,null,null,null,null,null,null,null,null,null,null,null,null,null,null,null,null,null,null,null,null,null,null,null,null,null,null,null,null,null,null,null,null,null,null,null,null,null,null,null,null,null,null,null,null,null,null,null,null,null,null,null,null,null,null,null,null,null,null,null,null,null,null,null,null,null,null,null,null,null,null,null,null,null,null,null,null,null,null,null,null,null,null,null,null,null,null,null,null,null,null,null,null,null,null,null,null,null,{"$f":"IF(K98<>\"\",$FP$15+FR35,0)","v":0},19,"BG","PV","Summe"]
[]
[null,null,"(Unterschrift der Geschäftsstelle)",null,null,null,null,null,null,null,null,null,null,null,null,null,null,null,null,null,null,null,null,null,null,null,null,null,null,null,null,null,null,null,null,null,null,null,null,null,null,null,null,null,null,null,null,null,null,null,null,null,null,null,null,null,null,null,null,null,"(Unterschrift der Lehrgangsleitung)",null,null,null,null,null,null,null,null,null,null,null,null,null,null,null,null,null,null,null,null,null,null,null,null,null,null,null,null,null,null,null,null,null,null,null,null,null,null,null,null,null,null,null,null,null,null,null,null,null,null,null,null,null,null,null,null,null,"(Stempel)"]
[]
[null,null,"Teilnehmerliste",null,null,null,null,null,null,null,null,null,null,null,null,null,null,null,null,null,null,null,null,null,null,null,null,null,null,{"$f":"IF($AD$3<>\"\",$AD$3,\"\")","v":"X"},null,null,null,"  Erste Hilfe-Ausbildung ",null,null,null,null,null,null,null,null,null,null,null,null,null,null,null,null,null,null,null,null,null,null,null,{"$f":"IF($BF$3<>\"\",$BF$3,\"\")","v":""},null,null,null,"  Erste Hilfe-Fortbildung ",null,null,null,null,null,null,null,null,null,null,null,null,null,null,null,null,null,null,null,null,null,null,null,{"$f":"IF($CH$3<>\"\",$CH$3,\"\")","v":""},null,null,null,"  Erste Hilfe in Betreuungseinrichtungen"]
[]
[]
[null,null,"Gliederungs-Nr.:",null,null,null,null,null,null,null,null,null,null,null,null,null,null,null,{"$f":"IF(AA13<>\"\",AA13,\"\")","v":800000},null,null,null,null,null,null,null,null,null,null,null,null,null,"Lehrgangsdatum:",null,null,null,null,null,null,null,null,null,null,null,null,null,null,null,null,{"$f":"IF(CD15<>\"\",TEXT(CD15,\"TT.MM.\"),\"\")&\" – \"&IF(CV15<>\"\",TEXT(CV15,\"TT.MM.JJJJ\"),\"\")","v":" – "},null,null,null,null,null,null,null,null,null,null,null,null,null,null,null,null,null,null,null,null,null,null,null,null,"Lehrgangs-Nr.:",null,null,null,null,null,null,null,null,null,null,null,null,null,null,{"$f":"IF(CI19<>\"\",CI19,\"\")","v":""},null,null,null,null,null,null,null,null,null,null,null,null,null,null,null,null,null,null,null,null,null,"QSEH-Nr.:",null,null,null,null,null,null,null,null,null,null,{"$f":"IF(ET16<>\"\",ET16,\"\")","v":""},null,null,null,null,null,null,null,null,null,null,null,null,null,null,null,null,null,null,null,"Ermächtigungs-Nr.:",null,null,null,null,null,null,null,null,null,null,null,null,null,null,null,null,null,null,{"$f":"IF(ET15<>\"\",ET15,\"\")","v":"2.0800"}]
[null,null,"Mit der Unterschrift erklärt der Teilnehmer, dass er damit einverstanden ist, dass seine persönlichen Daten ausschließlich zu Abrechnungs- und Kontrollzwecken gespeichert und verarbeitet werden."]
[]
[null,null,"TN\nNr.",null,null,null,"TN\n\nBG\nPv",null,null,null,"  a) Name\n  b) Vorname",null,null,null,null,null,null,null,null,null,null,null,null,null,null,null,null,null,null,null,null,null,null,null,null,null,null,null,null,null,null,null,null,null,null,null,null,null,"Geboren\nam",null,null,null,null,null,null,null,null,null,null,null,"  Teilnehmer über UVT\n  a) Name des Arbeitgeber | b) PLZ, Firmenort\n\n  Privatteilnehmer\n  a) Straße, Hausnummer | b) PLZ, Wohnort",null,null,null,null,null,null,null,null,null,null,null,null,null,null,null,null,null,null,null,null,null,null,null,null,null,null,null,null,null,null,null,null,null,null,null,null,null,null,null,"  Teilnehmer über UVT\n  a) Unfallversicherungsträger\n  b) Mitgliedsnummer des Unternehmens",null,null,null,null,null,null,null,null,null,null,null,null,null,null,null,null,null,null,null,null,null,null,null,null,null,null,null,null,null,null,null,null,null,null,null,null,null,null,"  a) Registrier-Nummer\n\n  b) Unterschrift des Teilnehmers"]
[]
[]
[]
[null,null,1,null,null,null,{"$f":"IF(CW49<>\"\",\"X\",\"\")","v":""},null,null,null,null,null,null,null,null,null,null,null,null,null,null,null,null,null,null,null,null,null,null,null,null,null,null,null,null,null,null,null,null,null,null,null,null,null,null,null,null,null,null,null,null,null,null,null,null,null,null,null,null,null,null,null,null,null,null,null,null,null,null,null,null,null,null,null,null,null,null,null,null,null,null,null,null,null,null,null,null,null,null,null,null,null,null,null,null,null,null,null,null,null,null,null,null,null,null,null,null,null,null,null,null,null,null,null,null,null,null,null,null,null,null,null,null,null,null,null,null,null,null,null,null,null,null,null,null,null,null,null,null,{"$f":"IF(K49<>\"\",TEXT($AA$13,\"00 00 000\")&\" / \"&$FT$3&\" / \"&TEXT(FQ16,\"0000\")&\" / \"&TEXT($CV$15,\"JJ\"),\"\")","v":""}]
[null,null,null,null,null,null,{"$f":"IF(K49<>\"\",IF(G49<>\"\",\"\",\"X\"),\"\")","v":""}]
[null,null,2,null,null,null,{"$f":"IF(CW51<>\"\",\"X\",\"\")","v":""},null,null,null,null,null,null,null,null,null,null,null,null,null,null,null,null,null,null,null,null,null,null,null,null,null,null,null,null,null,null,null,null,null,null,null,null,null,null,null,null,null,null,null,null,null,null,null,null,null,null,null,null,null,null,null,null,null,null,null,null,null,null,null,null,null,null,null,null,null,null,null,null,null,null,null,null,null,null,null,null,null,null,null,null,null,null,null,null,null,null,null,null,null,null,null,null,null,null,null,null,null,null,null,null,null,null,null,null,null,null,null,null,null,null,null,null,null,null,null,null,null,null,null,null,null,null,null,null,null,null,null,null,{"$f":"IF(K51<>\"\",TEXT($AA$13,\"00 00 000\")&\" / \"&$FT$3&\" / \"&TEXT(FQ17,\"0000\")&\" / \"&TEXT($CV$15,\"JJ\"),\"\")","v":""}]
[null,null,null,null,null,null,{"$f":"IF(K51<>\"\",IF(G51<>\"\",\"\",\"X\"),\"\")","v":""}]
[null,null,3,null,null,null,{"$f":"IF(CW53<>\"\",\"X\",\"\")","v":""},null,null,null,null,null,null,null,null,null,null,null,null,null,null,null,null,null,null,null,null,null,null,null,null,null,null,null,null,null,null,null,null,null,null,null,null,null,null,null,null,null,null,null,null,null,null,null,null,null,null,null,null,null,null,null,null,null,null,null,null,null,null,null,null,null,null,null,null,null,null,null,null,null,null,null,null,null,null,null,null,null,null,null,null,null,null,null,null,null,null,null,null,null,null,null,null,null,null,null,null,null,null,null,null,null,null,null,null,null,null,null,null,null,null,null,null,null,null,null,null,null,null,null,null,null,null,null,null,null,null,null,null,{"$f":"IF(K53<>\"\",TEXT($AA$13,\"00 00 000\")&\" / \"&$FT$3&\" / \"&TEXT(FQ18,\"0000\")&\" / \"&TEXT($CV$15,\"JJ\"),\"\")","v":""}]
[null,null,null,null,null,null,{"$f":"IF(K53<>\"\",IF(G53<>\"\",\"\",\"X\"),\"\")","v":""}]
[null,null,4,null,null,null,{"$f":"IF(CW55<>\"\",\"X\",\"\")","v":""},null,null,null,null,null,null,null,null,null,null,null,null,null,null,null,null,null,null,null,null,null,null,null,null,null,null,null,null,null,null,null,null,null,null,null,null,null,null,null,null,null,null,null,null,null,null,null,null,null,null,null,null,null,null,null,null,null,null,null,null,null,null,null,null,null,null,null,null,null,null,null,null,null,null,null,null,null,null,null,null,null,null,null,null,null,null,null,null,null,null,null,null,null,null,null,null,null,null,null,null,null,null,null,null,null,null,null,null,null,null,null,null,null,null,null,null,null,null,null,null,null,null,null,null,null,null,null,null,null,null,null,null,{"$f":"IF(K55<>\"\",TEXT($AA$13,\"00 00 000\")&\" / \"&$FT$3&\" / \"&TEXT(FQ19,\"0000\")&\" / \"&TEXT($CV$15,\"JJ\"),\"\")","v":""}]
[null,null,null,null,null,null,{"$f":"IF(K55<>\"\",IF(G55<>\"\",\"\",\"X\"),\"\")","v":""}]
[null,null,5,null,null,null,{"$f":"IF(CW57<>\"\",\"X\",\"\")","v":""},null,null,null,null,null,null,null,null,null,null,null,null,null,null,null,null,null,null,null,null,null,null,null,null,null,null,null,null,null,null,null,null,null,null,null,null,null,null,null,null,null,null,null,null,null,null,null,null,null,null,null,null,null,null,null,null,null,null,null,null,null,null,null,null,null,null,null,null,null,null,null,null,null,null,null,null,null,null,null,null,null,null,null,null,null,null,null,null,null,null,null,null,null,null,null,null,null,null,null,null,null,null,null,null,null,null,null,null,null,null,null,null,null,null,null,null,null,null,null,null,null,null,null,null,null,null,null,null,null,null,null,null,{"$f":"IF(K57<>\"\",TEXT($AA$13,\"00 00 000\")&\" / \"&$FT$3&\" / \"&TEXT(FQ20,\"0000\")&\" / \"&TEXT($CV$15,\"JJ\"),\"\")","v":""}]
[null,null,null,null,null,null,{"$f":"IF(K57<>\"\",IF(G57<>\"\",\"\",\"X\"),\"\")","v":""}]
[null,null,6,null,null,null,{"$f":"IF(CW59<>\"\",\"X\",\"\")","v":""},null,null,null,null,null,null,null,null,null,null,null,null,null,null,null,null,null,null,null,null,null,null,null,null,null,null,null,null,null,null,null,null,null,null,null,null,null,null,null,null,null,null,null,null,null,null,null,null,null,null,null,null,null,null,null,null,null,null,null,null,null,null,null,null,null,null,null,null,null,null,null,null,null,null,null,null,null,null,null,null,null,null,null,null,null,null,null,null,null,null,null,null,null,null,null,null,null,null,null,null,null,null,null,null,null,null,null,null,null,null,null,null,null,null,null,null,null,null,null,null,null,null,null,null,null,null,null,null,null,null,null,null,{"$f":"IF(K59<>\"\",TEXT($AA$13,\"00 00 000\")&\" / \"&$FT$3&\" / \"&TEXT(FQ21,\"0000\")&\" / \"&TEXT($CV$15,\"JJ\"),\"\")","v":""}]
[null,null,null,null,null,null,{"$f":"IF(K59<>\"\",IF(G59<>\"\",\"\",\"X\"),\"\")","v":""}]
[null,null,7,null,null,null,{"$f":"IF(CW61<>\"\",\"X\",\"\")","v":""},null,null,null,null,null,null,null,null,null,null,null,null,null,null,null,null,null,null,null,null,null,null,null,null,null,null,null,null,null,null,null,null,null,null,null,null,null,null,null,null,null,null,null,null,null,null,null,null,null,null,null,null,null,null,null,null,null,null,null,null,null,null,null,null,null,null,null,null,null,null,null,null,null,null,null,null,null,null,null,null,null,null,null,null,null,null,null,null,null,null,null,null,null,null,null,null,null,null,null,null,null,null,null,null,null,null,null,null,null,null,null,null,null,null,null,null,null,null,null,null,null,null,null,null,null,null,null,null,null,null,null,null,{"$f":"IF(K61<>\"\",TEXT($AA$13,\"00 00 000\")&\" / \"&$FT$3&\" / \"&TEXT(FQ22,\"0000\")&\" / \"&TEXT($CV$15,\"JJ\"),\"\")","v":""}]
[null,null,null,null,null,null,{"$f":"IF(K61<>\"\",IF(G61<>\"\",\"\",\"X\"),\"\")","v":""}]
[null,null,8,null,null,null,{"$f":"IF(CW63<>\"\",\"X\",\"\")","v":""},null,null,null,null,null,null,null,null,null,null,null,null,null,null,null,null,null,null,null,null,null,null,null,null,null,null,null,null,null,null,null,null,null,null,null,null,null,null,null,null,null,null,null,null,null,null,null,null,null,null,null,null,null,null,null,null,null,null,null,null,null,null,null,null,null,null,null,null,null,null,null,null,null,null,null,null,null,null,null,null,null,null,null,null,null,null,null,null,null,null,null,null,null,null,null,null,null,null,null,null,null,null,null,null,null,null,null,null,null,null,null,null,null,null,null,null,null,null,null,null,null,null,null,null,null,null,null,null,null,null,null,null,{"$f":"IF(K63<>\"\",TEXT($AA$13,\"00 00 000\")&\" / \"&$FT$3&\" / \"&TEXT(FQ23,\"0000\")&\" / \"&TEXT($CV$15,\"JJ\"),\"\")","v":""}]
[null,null,null,null,null,null,{"$f":"IF(K63<>\"\",IF(G63<>\"\",\"\",\"X\"),\"\")","v":""}]
[null,null,9,null,null,null,{"$f":"IF(CW65<>\"\",\"X\",\"\")","v":""},null,null,null,null,null,null,null,null,null,null,null,null,null,null,null,null,null,null,null,null,null,null,null,null,null,null,null,null,null,null,null,null,null,null,null,null,null,null,null,null,null,null,null,null,null,null,null,null,null,null,null,null,null,null,null,null,null,null,null,null,null,null,null,null,null,null,null,null,null,null,null,null,null,null,null,null,null,null,null,null,null,null,null,null,null,null,null,null,null,null,null,null,null,null,null,null,null,null,null,null,null,null,null,null,null,null,null,null,null,null,null,null,null,null,null,null,null,null,null,null,null,null,null,null,null,null,null,null,null,null,null,null,{"$f":"IF(K65<>\"\",TEXT($AA$13,\"00 00 000\")&\" / \"&$FT$3&\" / \"&TEXT(FQ24,\"0000\")&\" / \"&TEXT($CV$15,\"JJ\"),\"\")","v":""}]
[null,null,null,null,null,null,{"$f":"IF(K65<>\"\",IF(G65<>\"\",\"\",\"X\"),\"\")","v":""}]
[null,null,10,null,null,null,{"$f":"IF(CW67<>\"\",\"X\",\"\")","v":""},null,null,null,null,null,null,null,null,null,null,null,null,null,null,null,null,null,null,null,null,null,null,null,null,null,null,null,null,null,null,null,null,null,null,null,null,null,null,null,null,null,null,null,null,null,null,null,null,null,null,null,null,null,null,null,null,null,null,null,null,null,null,null,null,null,null,null,null,null,null,null,null,null,null,null,null,null,null,null,null,null,null,null,null,null,null,null,null,null,null,null,null,null,null,null,null,null,null,null,null,null,null,null,null,null,null,null,null,null,null,null,null,null,null,null,null,null,null,null,null,null,null,null,null,null,null,null,null,null,null,null,null,{"$f":"IF(K67<>\"\",TEXT($AA$13,\"00 00 000\")&\" / \"&$FT$3&\" / \"&TEXT(FQ25,\"0000\")&\" / \"&TEXT($CV$15,\"JJ\"),\"\")","v":""}]
[null,null,null,null,null,null,{"$f":"IF(K67<>\"\",IF(G67<>\"\",\"\",\"X\"),\"\")","v":""}]
[]
[null,null,"Teilnehmerliste",null,null,null,null,null,null,null,null,null,null,null,null,null,null,null,null,null,null,null,null,null,null,null,null,null,null,{"$f":"IF($AD$3<>\"\",$AD$3,\"\")","v":"X"},null,null,null,"  Erste Hilfe-Ausbildung ",null,null,null,null,null,null,null,null,null,null,null,null,null,null,null,null,null,null,null,null,null,null,null,{"$f":"IF($BF$3<>\"\",$BF$3,\"\")","v":""},null,null,null,"  Erste Hilfe-Fortbildung ",null,null,null,null,null,null,null,null,null,null,null,null,null,null,null,null,null,null,null,null,null,null,null,{"$f":"IF($CH$3<>\"\",$CH$3,\"\")","v":""},null,null,null,"  Erste Hilfe in Betreuungseinrichtungen"]
[]
[]
[null,null,"Gliederungs-Nr.:",null,null,null,null,null,null,null,null,null,null,null,null,null,null,null,{"$f":"IF(AA13<>\"\",AA13,\"\")","v":800000},null,null,null,null,null,null,null,null,null,null,null,null,null,"Lehrgangsdatum:",null,null,null,null,null,null,null,null,null,null,null,null,null,null,null,null,{"$f":"IF(CD15<>\"\",TEXT(CD15,\"TT.MM.\"),\"\")&\" – \"&IF(CV15<>\"\",TEXT(CV15,\"TT.MM.JJJJ\"),\"\")","v":" – "},null,null,null,null,null,null,null,null,null,null,null,null,null,null,null,null,null,null,null,null,null,null,null,null,"Lehrgangs-Nr.:",null,null,null,null,null,null,null,null,null,null,null,null,null,null,{"$f":"IF(CI19<>\"\",CI19,\"\")","v":""},null,null,null,null,null,null,null,null,null,null,null,null,null,null,null,null,null,null,null,null,null,"QSEH-Nr.:",null,null,null,null,null,null,null,null,null,null,{"$f":"IF(ET16<>\"\",ET16,\"\")","v":""},null,null,null,null,null,null,null,null,null,null,null,null,null,null,null,null,null,null,null,"Ermächtigungs-Nr.:",null,null,null,null,null,null,null,null,null,null,null,null,null,null,null,null,null,null,{"$f":"IF(ET15<>\"\",ET15,\"\")","v":"2.0800"}]
[null,null,"Mit der Unterschrift erklärt der Teilnehmer, dass er damit einverstanden ist, dass seine persönlichen Daten ausschließlich zu Abrechnungs- und Kontrollzwecken gespeichert und verarbeitet werden."]
[]
[null,null,"TN\nNr.",null,null,null,"TN\n\nBG\nPv",null,null,null,"  a) Name\n\n  b) Vorname",null,null,null,null,null,null,null,null,null,null,null,null,null,null,null,null,null,null,null,null,null,null,null,null,null,null,null,null,null,null,null,null,null,null,null,null,null,"Geboren\nam",null,null,null,null,null,null,null,null,null,null,null,"  Teilnehmer über UVT\n  a) Name des Arbeitgeber | b) PLZ, Firmenort\n\n  Privatteilnehmer\n  a) Straße, Hausnummer | b) PLZ, Wohnort",null,null,null,null,null,null,null,null,null,null,null,null,null,null,null,null,null,null,null,null,null,null,null,null,null,null,null,null,null,null,null,null,null,null,null,null,null,null,null,"  Teilnehmer über UVT\n  a) Unfallversicherungsträger\n  b) Mitgliedsnummer des Unternehmens",null,null,null,null,null,null,null,null,null,null,null,null,null,null,null,null,null,null,null,null,null,null,null,null,null,null,null,null,null,null,null,null,null,null,null,null,null,null,"  a) Registrier-Nummer\n\n  b) Unterschrift des Teilnehmers"]
[]
[]
[]
[null,null,11,null,null,null,{"$f":"IF(CW80<>\"\",\"X\",\"\")","v":""},null,null,null,null,null,null,null,null,null,null,null,null,null,null,null,null,null,null,null,null,null,null,null,null,null,null,null,null,null,null,null,null,null,null,null,null,null,null,null,null,null,null,null,null,null,null,null,null,null,null,null,null,null,null,null,null,null,null,null,null,null,null,null,null,null,null,null,null,null,null,null,null,null,null,null,null,null,null,null,null,null,null,null,null,null,null,null,null,null,null,null,null,null,null,null,null,null,null,null,null,null,null,null,null,null,null,null,null,null,null,null,null,null,null,null,null,null,null,null,null,null,null,null,null,null,null,null,null,null,null,null,null,{"$f":"IF(K80<>\"\",TEXT($AA$13,\"00 00 000\")&\" / \"&$FT$3&\" / \"&TEXT(FQ26,\"0000\")&\" / \"&TEXT($CV$15,\"JJ\"),\"\")","v":""}]
[null,null,null,null,null,null,{"$f":"IF(K80<>\"\",IF(G80<>\"\",\"\",\"X\"),\"\")","v":""}]
[null,null,12,null,null,null,{"$f":"IF(CW82<>\"\",\"X\",\"\")","v":""},null,null,null,null,null,null,null,null,null,null,null,null,null,null,null,null,null,null,null,null,null,null,null,null,null,null,null,null,null,null,null,null,null,null,null,null,null,null,null,null,null,null,null,null,null,null,null,null,null,null,null,null,null,null,null,null,null,null,null,null,null,null,null,null,null,null,null,null,null,null,null,null,null,null,null,null,null,null,null,null,null,null,null,null,null,null,null,null,null,null,null,null,null,null,null,null,null,null,null,null,null,null,null,null,null,null,null,null,null,null,null,null,null,null,null,null,null,null,null,null,null,null,null,null,null,null,null,null,null,null,null,null,{"$f":"IF(K82<>\"\",TEXT($AA$13,\"00 00 000\")&\" / \"&$FT$3&\" / \"&TEXT(FQ27,\"0000\")&\" / \"&TEXT($CV$15,\"JJ\"),\"\")","v":""}]
[null,null,null,null,null,null,{"$f":"IF(K82<>\"\",IF(G82<>\"\",\"\",\"X\"),\"\")","v":""}]
[null,null,13,null,null,null,{"$f":"IF(CW84<>\"\",\"X\",\"\")","v":""},null,null,null,null,null,null,null,null,null,null,null,null,null,null,null,null,null,null,null,null,null,null,null,null,null,null,null,null,null,null,null,null,null,null,null,null,null,null,null,null,null,null,null,null,null,null,null,null,null,null,null,null,null,null,null,null,null,null,null,null,null,null,null,null,null,null,null,null,null,null,null,null,null,null,null,null,null,null,null,null,null,null,null,null,null,null,null,null,null,null,null,null,null,null,null,null,null,null,null,null,null,null,null,null,null,null,null,null,null,null,null,null,null,null,null,null,null,null,null,null,null,null,null,null,null,null,null,null,null,null,null,null,{"$f":"IF(K84<>\"\",TEXT($AA$13,\"00 00 000\")&\" / \"&$FT$3&\" / \"&TEXT(FQ28,\"0000\")&\" / \"&TEXT($CV$15,\"JJ\"),\"\")","v":""}]
[null,null,null,null,null,null,{"$f":"IF(K84<>\"\",IF(G84<>\"\",\"\",\"X\"),\"\")","v":""}]
[null,null,14,null,null,null,{"$f":"IF(CW86<>\"\",\"X\",\"\")","v":""},null,null,null,null,null,null,null,null,null,null,null,null,null,null,null,null,null,null,null,null,null,null,null,null,null,null,null,null,null,null,null,null,null,null,null,null,null,null,null,null,null,null,null,null,null,null,null,null,null,null,null,null,null,null,null,null,null,null,null,null,null,null,null,null,null,null,null,null,null,null,null,null,null,null,null,null,null,null,null,null,null,null,null,null,null,null,null,null,null,null,null,null,null,null,null,null,null,null,null,null,null,null,null,null,null,null,null,null,null,null,null,null,null,null,null,null,null,null,null,null,null,null,null,null,null,null,null,null,null,null,null,null,{"$f":"IF(K86<>\"\",TEXT($AA$13,\"00 00 000\")&\" / \"&$FT$3&\" / \"&TEXT(FQ29,\"0000\")&\" / \"&TEXT($CV$15,\"JJ\"),\"\")","v":""}]
[null,null,null,null,null,null,{"$f":"IF(K86<>\"\",IF(G86<>\"\",\"\",\"X\"),\"\")","v":""}]
[null,null,15,null,null,null,{"$f":"IF(CW88<>\"\",\"X\",\"\")","v":""},null,null,null,null,null,null,null,null,null,null,null,null,null,null,null,null,null,null,null,null,null,null,null,null,null,null,null,null,null,null,null,null,null,null,null,null,null,null,null,null,null,null,null,null,null,null,null,null,null,null,null,null,null,null,null,null,null,null,null,null,null,null,null,null,null,null,null,null,null,null,null,null,null,null,null,null,null,null,null,null,null,null,null,null,null,null,null,null,null,null,null,null,null,null,null,null,null,null,null,null,null,null,null,null,null,null,null,null,null,null,null,null,null,null,null,null,null,null,null,null,null,null,null,null,null,null,null,null,null,null,null,null,{"$f":"IF(K88<>\"\",TEXT($AA$13,\"00 00 000\")&\" / \"&$FT$3&\" / \"&TEXT(FQ30,\"0000\")&\" / \"&TEXT($CV$15,\"JJ\"),\"\")","v":""}]
[null,null,null,null,null,null,{"$f":"IF(K88<>\"\",IF(G88<>\"\",\"\",\"X\"),\"\")","v":""}]
[null,null,16,null,null,null,{"$f":"IF(CW90<>\"\",\"X\",\"\")","v":""},null,null,null,null,null,null,null,null,null,null,null,null,null,null,null,null,null,null,null,null,null,null,null,null,null,null,null,null,null,null,null,null,null,null,null,null,null,null,null,null,null,null,null,null,null,null,null,null,null,null,null,null,null,null,null,null,null,null,null,null,null,null,null,null,null,null,null,null,null,null,null,null,null,null,null,null,null,null,null,null,null,null,null,null,null,null,null,null,null,null,null,null,null,null,null,null,null,null,null,null,null,null,null,null,null,null,null,null,null,null,null,null,null,null,null,null,null,null,null,null,null,null,null,null,null,null,null,null,null,null,null,null,{"$f":"IF(K90<>\"\",TEXT($AA$13,\"00 00 000\")&\" / \"&$FT$3&\" / \"&TEXT(FQ31,\"0000\")&\" / \"&TEXT($CV$15,\"JJ\"),\"\")","v":""}]
[null,null,null,null,null,null,{"$f":"IF(K90<>\"\",IF(G90<>\"\",\"\",\"X\"),\"\")","v":""}]
[null,null,17,null,null,null,{"$f":"IF(CW92<>\"\",\"X\",\"\")","v":""},null,null,null,null,null,null,null,null,null,null,null,null,null,null,null,null,null,null,null,null,null,null,null,null,null,null,null,null,null,null,null,null,null,null,null,null,null,null,null,null,null,null,null,null,null,null,null,null,null,null,null,null,null,null,null,null,null,null,null,null,null,null,null,null,null,null,null,null,null,null,null,null,null,null,null,null,null,null,null,null,null,null,null,null,null,null,null,null,null,null,null,null,null,null,null,null,null,null,null,null,null,null,null,null,null,null,null,null,null,null,null,null,null,null,null,null,null,null,null,null,null,null,null,null,null,null,null,null,null,null,null,null,{"$f":"IF(K92<>\"\",TEXT($AA$13,\"00 00 000\")&\" / \"&$FT$3&\" / \"&TEXT(FQ32,\"0000\")&\" / \"&TEXT($CV$15,\"JJ\"),\"\")","v":""}]
[null,null,null,null,null,null,{"$f":"IF(K92<>\"\",IF(G92<>\"\",\"\",\"X\"),\"\")","v":""}]
[null,null,18,null,null,null,{"$f":"IF(CW94<>\"\",\"X\",\"\")","v":""},null,null,null,null,null,null,null,null,null,null,null,null,null,null,null,null,null,null,null,null,null,null,null,null,null,null,null,null,null,null,null,null,null,null,null,null,null,null,null,null,null,null,null,null,null,null,null,null,null,null,null,null,null,null,null,null,null,null,null,null,null,null,null,null,null,null,null,null,null,null,null,null,null,null,null,null,null,null,null,null,null,null,null,null,null,null,null,null,null,null,null,null,null,null,null,null,null,null,null,null,null,null,null,null,null,null,null,null,null,null,null,null,null,null,null,null,null,null,null,null,null,null,null,null,null,null,null,null,null,null,null,null,{"$f":"IF(K94<>\"\",TEXT($AA$13,\"00 00 000\")&\" / \"&$FT$3&\" / \"&TEXT(FQ33,\"0000\")&\" / \"&TEXT($CV$15,\"JJ\"),\"\")","v":""}]
[null,null,null,null,null,null,{"$f":"IF(K94<>\"\",IF(G94<>\"\",\"\",\"X\"),\"\")","v":""}]
[null,null,19,null,null,null,{"$f":"IF(CW96<>\"\",\"X\",\"\")","v":""},null,null,null,null,null,null,null,null,null,null,null,null,null,null,null,null,null,null,null,null,null,null,null,null,null,null,null,null,null,null,null,null,null,null,null,null,null,null,null,null,null,null,null,null,null,null,null,null,null,null,null,null,null,null,null,null,null,null,null,null,null,null,null,null,null,null,null,null,null,null,null,null,null,null,null,null,null,null,null,null,null,null,null,null,null,null,null,null,null,null,null,null,null,null,null,null,null,null,null,null,null,null,null,null,null,null,null,null,null,null,null,null,null,null,null,null,null,null,null,null,null,null,null,null,null,null,null,null,null,null,null,null,{"$f":"IF(K96<>\"\",TEXT($AA$13,\"00 00 000\")&\" / \"&$FT$3&\" / \"&TEXT(FQ34,\"0000\")&\" / \"&TEXT($CV$15,\"JJ\"),\"\")","v":""}]
[null,null,null,null,null,null,{"$f":"IF(K96<>\"\",IF(G96<>\"\",\"\",\"X\"),\"\")","v":""}]
[null,null,20,null,null,null,{"$f":"IF(CW98<>\"\",\"X\",\"\")","v":""},null,null,null,null,null,null,null,null,null,null,null,null,null,null,null,null,null,null,null,null,null,null,null,null,null,null,null,null,null,null,null,null,null,null,null,null,null,null,null,null,null,null,null,null,null,null,null,null,null,null,null,null,null,null,null,null,null,null,null,null,null,null,null,null,null,null,null,null,null,null,null,null,null,null,null,null,null,null,null,null,null,null,null,null,null,null,null,null,null,null,null,null,null,null,null,null,null,null,null,null,null,null,null,null,null,null,null,null,null,null,null,null,null,null,null,null,null,null,null,null,null,null,null,null,null,null,null,null,null,null,null,null,{"$f":"IF(K98<>\"\",TEXT($AA$13,\"00 00 000\")&\" / \"&$FT$3&\" / \"&TEXT(FQ35,\"0000\")&\" / \"&TEXT($CV$15,\"JJ\"),\"\")","v":""}]
[null,null,null,null,null,null,{"$f":"IF(K98<>\"\",IF(G98<>\"\",\"\",\"X\"),\"\")","v":""}]

{"sheet":"TNL-BG 1","index":1,"n_rows":82,"n_cols":127,"rows_kept":82,"cut":false,"hidden":false,"merged":[[2,118,5,123],[8,120,12,123],[4,2,4,4],[4,5,4,114],[55,6,55,59],[67,56,67,113],[71,56,71,113],[9,5,9,114],[5,5,5,55],[6,5,6,55],[7,5,7,39],[8,5,8,39],[7,61,7,63],[5,61,5,63],[5,87,5,89],[20,82,20,101],[20,62,20,81],[22,82,22,101],[19,5,19,26],[19,27,19,101],[19,102,20,115],[14,6,14,43],[16,6,16,18],[34,2,34,4],[37,2,37,4],[40,2,40,4],[43,2,43,4],[46,2,46,4],[20,5,20,61],[22,2,22,4],[25,2,25,4],[28,2,28,4],[31,2,31,4],[22,6,22,60],[20,2,20,4],[22,102,22,106],[28,6,28,60],[28,62,28,66],[28,68,28,72],[28,74,28,81],[28,82,28,101],[28,102,28,106],[22,111,22,115],[22,107,22,110],[25,6,25,60],[25,62,25,66],[25,68,25,72],[25,74,25,81],[25,82,25,101],[25,102,25,106],[25,107,25,110],[22,62,22,66],[22,68,22,72],[22,74,22,81],[25,111,25,115],[28,107,28,110],[28,111,28,115],[31,107,31,110],[31,111,31,115],[34,6,34,60],[34,62,34,66],[34,68,34,72],[34,74,34,81],[34,82,34,101],[34,102,34,106],[34,107,34,110],[34,111,34,115],[31,6,31,60],[31,62,31,66],[31,68,31,72],[31,74,31,81],[31,82,31,101],[31,102,31,106],[37,107,37,110],[37,111,37,115],[40,6,40,60],[40,62,40,66],[40,68,40,72],[40,74,40,81],[40,82,40,101],[40,102,40,106],[40,107,40,110],[40,111,40,115],[37,6,37,60],[37,62,37,66],[37,68,37,72],[37,74,37,81],[37,82,37,101],[37,102,37,106],[58,2,58,4],[51,2,51,4],[55,2,55,4],[56,2,56,4],[57,2,57,4],[52,6,52,114],[59,6,59,114],[59,2,59,4],[49,107,49,110],[49,111,49,115],[52,2,52,4],[53,2,53,4],[54,2,54,4],[49,6,49,60],[49,62,49,66],[49,68,49,72],[49,74,49,81],[49,82,49,101],[49,102,49,106],[49,2,49,4],[43,74,43,81],[77,55,77,113],[78,55,78,113],[79,55,79,113],[69,55,70,70],[65,55,66,70],[61,55,62,72],[76,7,76,50],[75,55,75,113],[76,55,76,113],[71,7,71,50],[69,7,70,32],[73,7,74,16],[62,52,63,53],[66,52,67,53],[70,52,71,53],[74,52,79,53],[63,7,63,50],[67,7,67,50],[65,7,66,32],[63,56,63,113],[61,7,62,48],[43,82,43,101],[43,102,43,106],[10,7,11,31],[14,118,15,118],[73,55,74,88],[12,61,12,114],[13,61,13,114],[14,61,14,114],[15,61,15,114],[16,61,16,114],[12,6,12,57],[14,45,14,57],[16,20,16,57],[43,107,43,110],[43,111,43,115],[46,6,46,60],[46,62,46,66],[46,68,46,72],[46,74,46,81],[46,82,46,101],[46,102,46,106],[46,107,46,110],[46,111,46,115],[43,6,43,60],[43,62,43,66],[43,68,43,72]]}
[]
[null,null,null,null,null,null,null,null,null,null,null,null,null,null,null,null,null,null,null,null,null,null,null,null,null,null,null,null,null,null,null,null,null,null,null,null,null,null,null,null,null,null,null,null,null,null,null,null,null,null,null,null,null,null,null,null,null,null,null,null,null,null,null,null,null,null,null,null,null,null,null,null,null,null,null,null,null,null,null,null,null,null,null,null,null,null,null,null,null,null,null,null,null,null,null,null,null,null,null,null,null,null,null,null,null,null,null,null,null,null,null,null,null,null,null,null,null,null," Wichtiger Hinweis!"]
[null,null,null,null,null,"Dieses Formular wird maschinell verarbeitet und gespeichert!",null,null,null,null,null,null,null,null,null,null,null,null,null,null,null,null,null,null,null,null,null,null,null,null,null,null,null,null,null,null,null,null,null,null,null,null,null,null,null,null,null,null,null,null,null,null,null,null,null,null,null,null,null,null,null,null,null,null,null,null,null,null,null,null,null,null,null,null,null,null,null,null,null,null,null,null,null,null,null,null,null,null,null,null,null,null,null,null,null,null,null,null,null,null,null,null,null,null,null,null,null,null,null,null,null,null,null,null,null,null,null,null," Das Anmeldeformular bitte unbedingt in Farbe ausdrucken, da dieses \n Formular bei der Abrechnungsstelle elektronisch zur Bearbeitung \n eingelesen wird."]
[null,null,null,null,null,"Nutzen Sie bitte die elektronische Formularfunktion dieses Dokuments. Ansonsten füllen Sie es mit einem schwarzen oder dunkelblauen Stift aus. Vielen Dank!"]
[]
[null,null,null,null,null,null,null,null,null,null,null,null,null,null,null,null,null,null,null,null,null,null,null,null,null,null,null,null,null,null,null,null,null,null,null,null,null,null,null,null,null,null,null,null,null,null,null,null,null,null,null,null,null,null,null,null,null,null,null,null,null,{"$f":"IF(TNL!AD3&TNL!CH3<>\"\",\"X\",\"\")","v":"X"},null,null," Ausbildung",null,null,null,null,null,null,null,null,null,null,null,null,null,null,null,null,null,null,null,null,null,null,{"$f":"IF(TNL!BF3&TNL!DS3<>\"\",\"X\",\"\")","v":""},null,null," Fortbildung"]
[]
[null,null,null,null,null,"Aus- und Fortbildung",null,null,null,null,null,null,null,null,null,null,null,null,null,null,null,null,null,null,null,null,null,null,null,null,null,null,null,null,null,null,null,null,null,null,null,null,null,null,null,null,null,null,null,null,null,null,null,null,null,null,null,null,null,null,null,{"$f":"IF(TNL!CH3&TNL!DS3<>\"\",\"X\",\"\")","v":""},null,null," Erste Hilfe in Bildungs- und Betreuungseinrichtungen"]
[null,null,null,null,null,"für betriebliche Ersthelfer",null,null,null,null,null,null,null,null,null,null,null,null,null,null,null,null,null,null,null,null,null,null,null,null,null,null,null,null,null,null,null,null,null,null,null,null,null,null,null,null,null,null,null,null,null,null,null,null,null,null,null,null,null,null,null,null,null,null,null,null,null,null,null,null,null,null,null,null,null,null,null,null,null,null,null,null,null,null,null,null,null,null,null,null,null,null,null,null,null,null,null,null,null,null,null,null,null,null,null,null,null,null,null,null,null,null,null,null,null,null,null,null,null,null,"Hinweis:\nZum vervollständigen dieser Liste bitte die laufende Nummer aus der unten stehenden Liste in den weißen Feldern eintragen."]
[]
[null,null,null,null,null,null,null,"Anschrift des Mitgliedsbetriebes"]
[]
[null,null,null,null,null,null,null,null,null,null,null,null,null,null,null,null,null,null,null,null,null,null,null,null,null,null,null,null,null,null,null,null,null,null,null,null,null,null,null,null,null,null,null,null,null,null,null,null,null,null,null,null,null,null,null,null,null,null,null,null,null,"Zuständiger Unfallversicherungsträger:"]
[null,null,null,null,null,null,"Straße / Hausnummer",null,null,null,null,null,null,null,null,null,null,null,null,null,null,null,null,null,null,null,null,null,null,null,null,null,null,null,null,null,null,null,null,null,null,null,null,null,null,null,null,null,null,null,null,null,null,null,null,null,null,null,null,null,null,"(Berufsgenossenschaft, Unfallkasse) "]
[]
[null,null,null,null,null,null,"PLZ",null,null,null,null,null,null,null,null,null,null,null,null,null,"Ort",null,null,null,null,null,null,null,null,null,null,null,null,null,null,null,null,null,null,null,null,null,null,null,null,null,null,null,null,null,null,null,null,null,null,null,null,null,null,null,null,"Mitgliedsnummer / Versicherungsnummer:"]
[]
[]
[]
[null,null,null,null,null," Teilnahmeliste",null,null,null,null,null,null,null,null,null,null,null,null,null,null,null,null,null,null,null,null,null,"Die Teilnahmeliste ist vom Unternehmen auszufüllen.\nDie Teilnahme ist von den Teilnehmenden am Tag des Kurses durch Unterschrift zu bestätigen.",null,null,null,null,null,null,null,null,null,null,null,null,null,null,null,null,null,null,null,null,null,null,null,null,null,null,null,null,null,null,null,null,null,null,null,null,null,null,null,null,null,null,null,null,null,null,null,null,null,null,null,null,null,null,null,null,null,null,null,null,null,null,null,null,null,null,null,null,null,null,null,null,null,null," Bestätigung\n durch die \n Ausbildungsstelle"]
[null,null,null,null,null," Name, Vorname",null,null,null,null,null,null,null,null,null,null,null,null,null,null,null,null,null,null,null,null,null,null,null,null,null,null,null,null,null,null,null,null,null,null,null,null,null,null,null,null,null,null,null,null,null,null,null,null,null,null,null,null,null,null,null,null,"Geburtsdatum",null,null,null,null,null,null,null,null,null,null,null,null,null,null,null,null,null,null,null,"Unterschrift",null,null,null,null,null,null,null,null,null,null,null,null,null,null,null,null,null,null,null,null,null,null,null,null,null,null,null,null,null,null,null,null,null,null,null,"Nr."]
[]
[null,null,1,null,null,null,{"$f":"IF(DO23<>0,VLOOKUP(DO23,Data!M27:Q46,2,FALSE),\"\")","v":""},null,null,null,null,null,null,null,null,null,null,null,null,null,null,null,null,null,null,null,null,null,null,null,null,null,null,null,null,null,null,null,null,null,null,null,null,null,null,null,null,null,null,null,null,null,null,null,null,null,null,null,null,null,null,null,{"$f":"IF(DO23<>\"\",TEXT(DW23,\"TT\"),\"\")","v":""},null,null,null,null,"•",{"$f":"IF(DO23<>\"\",TEXT(DW23,\"MM\"),\"\")","v":""},null,null,null,null,"•",{"$f":"IF(DO23<>\"\",TEXT(DW23,\"JJJJ\"),\"\")","v":""},null,null,null,null,null,null,null,null,null,null,null,null,null,null,null,null,null,null,null,null,null,null,null,null,null,null,null,null,null,null,null,null,{"$f":"IF(G23<>\"\",\"X\",\"\")","v":""},null,null,null,null,null,null,null,null,null,{"$f":"IF(DD23<>\"\",1,\"\")","v":""},null,null,null,null,null,null,null,null,{"$f":"IF(DO23<>0,VLOOKUP(DO23,Data!M27:Q46,3,FALSE),\"\")","v":""}]
[]
[]
[null,null,2,null,null,null,{"$f":"IF(DO26<>0,VLOOKUP(DO26,Data!M27:Q46,2,FALSE),\"\")","v":""},null,null,null,null,null,null,null,null,null,null,null,null,null,null,null,null,null,null,null,null,null,null,null,null,null,null,null,null,null,null,null,null,null,null,null,null,null,null,null,null,null,null,null,null,null,null,null,null,null,null,null,null,null,null,null,{"$f":"IF(DO26<>\"\",TEXT(DW26,\"TT\"),\"\")","v":""},null,null,null,null,"•",{"$f":"IF(DO26<>\"\",TEXT(DW26,\"MM\"),\"\")","v":""},null,null,null,null,"•",{"$f":"IF(DO26<>\"\",TEXT(DW26,\"JJJJ\"),\"\")","v":""},null,null,null,null,null,null,null,null,null,null,null,null,null,null,null,null,null,null,null,null,null,null,null,null,null,null,null,null,null,null,null,null,{"$f":"IF(G26<>\"\",\"X\",\"\")","v":""},null,null,null,null,null,null,null,null,null,{"$f":"IF(DD26<>\"\",1,\"\")","v":""},null,null,null,null,null,null,null,null,{"$f":"IF(DO26<>0,VLOOKUP(DO26,Data!M27:Q46,3,FALSE),\"\")","v":""}]
[]
[]
[null,null,3,null,null,null,{"$f":"IF(DO29<>0,VLOOKUP(DO29,Data!M27:Q46,2,FALSE),\"\")","v":""},null,null,null,null,null,null,null,null,null,null,null,null,null,null,null,null,null,null,null,null,null,null,null,null,null,null,null,null,null,null,null,null,null,null,null,null,null,null,null,null,null,null,null,null,null,null,null,null,null,null,null,null,null,null,null,{"$f":"IF(DO29<>\"\",TEXT(DW29,\"TT\"),\"\")","v":""},null,null,null,null,"•",{"$f":"IF(DO29<>\"\",TEXT(DW29,\"MM\"),\"\")","v":""},null,null,null,null,"•",{"$f":"IF(DO29<>\"\",TEXT(DW29,\"JJJJ\"),\"\")","v":""},null,null,null,null,null,null,null,null,null,null,null,null,null,null,null,null,null,null,null,null,null,null,null,null,null,null,null,null,null,null,null,null,{"$f":"IF(G29<>\"\",\"X\",\"\")","v":""},null,null,null,null,null,null,null,null,null,{"$f":"IF(DD29<>\"\",1,\"\")","v":""},null,null,null,null,null,null,null,null,{"$f":"IF(DO29<>0,VLOOKUP(DO29,Data!M27:Q46,3,FALSE),\"\")","v":""}]
[]
[]
[null,null,4,null,null,null,{"$f":"IF(DO32<>0,VLOOKUP(DO32,Data!M27:Q46,2,FALSE),\"\")","v":""},null,null,null,null,null,null,null,null,null,null,null,null,null,null,null,null,null,null,null,null,null,null,null,null,null,null,null,null,null,null,null,null,null,null,null,null,null,null,null,null,null,null,null,null,null,null,null,null,null,null,null,null,null,null,null,{"$f":"IF(DO32<>\"\",TEXT(DW32,\"TT\"),\"\")","v":""},null,null,null,null,"•",{"$f":"IF(DO32<>\"\",TEXT(DW32,\"MM\"),\"\")","v":""},null,null,null,null,"•",{"$f":"IF(DO32<>\"\",TEXT(DW32,\"JJJJ\"),\"\")","v":""},null,null,null,null,null,null,null,null,null,null,null,null,null,null,null,null,null,null,null,null,null,null,null,null,null,null,null,null,null,null,null,null,{"$f":"IF(G32<>\"\",\"X\",\"\")","v":""},null,null,null,null,null,null,null,null,null,{"$f":"IF(DD32<>\"\",1,\"\")","v":""},null,null,null,null,null,null,null,null,{"$f":"IF(DO32<>0,VLOOKUP(DO32,Data!M27:Q46,3,FALSE),\"\")","v":""}]
[]
[]
[null,null,5,null,null,null,{"$f":"IF(DO35<>0,VLOOKUP(DO35,Data!M27:Q46,2,FALSE),\"\")","v":""},null,null,null,null,null,null,null,null,null,null,null,null,null,null,null,null,null,null,null,null,null,null,null,null,null,null,null,null,null,null,null,null,null,null,null,null,null,null,null,null,null,null,null,null,null,null,null,null,null,null,null,null,null,null,null,{"$f":"IF(DO35<>\"\",TEXT(DW35,\"TT\"),\"\")","v":""},null,null,null,null,"•",{"$f":"IF(DO35<>\"\",TEXT(DW35,\"MM\"),\"\")","v":""},null,null,null,null,"•",{"$f":"IF(DO35<>\"\",TEXT(DW35,\"JJJJ\"),\"\")","v":""},null,null,null,null,null,null,null,null,null,null,null,null,null,null,null,null,null,null,null,null,null,null,null,null,null,null,null,null,null,null,null,null,{"$f":"IF(G35<>\"\",\"X\",\"\")","v":""},null,null,null,null,null,null,null,null,null,{"$f":"IF(DD35<>\"\",1,\"\")","v":""},null,null,null,null,null,null,null,null,{"$f":"IF(DO35<>0,VLOOKUP(DO35,Data!M27:Q46,3,FALSE),\"\")","v":""}]
[]
[]
[null,null,6,null,null,null,{"$f":"IF(DO38<>0,VLOOKUP(DO38,Data!M27:Q46,2,FALSE),\"\")","v":""},null,null,null,null,null,null,null,null,null,null,null,null,null,null,null,null,null,null,null,null,null,null,null,null,null,null,null,null,null,null,null,null,null,null,null,null,null,null,null,null,null,null,null,null,null,null,null,null,null,null,null,null,null,null,null,{"$f":"IF(DO38<>\"\",TEXT(DW38,\"TT\"),\"\")","v":""},null,null,null,null,"•",{"$f":"IF(DO38<>\"\",TEXT(DW38,\"MM\"),\"\")","v":""},null,null,null,null,"•",{"$f":"IF(DO38<>\"\",TEXT(DW38,\"JJJJ\"),\"\")","v":""},null,null,null,null,null,null,null,null,null,null,null,null,null,null,null,null,null,null,null,null,null,null,null,null,null,null,null,null,null,null,null,null,{"$f":"IF(G38<>\"\",\"X\",\"\")","v":""},null,null,null,null,null,null,null,null,null,{"$f":"IF(DD38<>\"\",1,\"\")","v":""},null,null,null,null,null,null,null,null,{"$f":"IF(DO38<>0,VLOOKUP(DO38,Data!M27:Q46,3,FALSE),\"\")","v":""}]
[]
[]
[null,null,7,null,null,null,{"$f":"IF(DO41<>0,VLOOKUP(DO41,Data!M27:Q46,2,FALSE),\"\")","v":""},null,null,null,null,null,null,null,null,null,null,null,null,null,null,null,null,null,null,null,null,null,null,null,null,null,null,null,null,null,null,null,null,null,null,null,null,null,null,null,null,null,null,null,null,null,null,null,null,null,null,null,null,null,null,null,{"$f":"IF(DO41<>\"\",TEXT(DW41,\"TT\"),\"\")","v":""},null,null,null,null,"•",{"$f":"IF(DO41<>\"\",TEXT(DW41,\"MM\"),\"\")","v":""},null,null,null,null,"•",{"$f":"IF(DO41<>\"\",TEXT(DW41,\"JJJJ\"),\"\")","v":""},null,null,null,null,null,null,null,null,null,null,null,null,null,null,null,null,null,null,null,null,null,null,null,null,null,null,null,null,null,null,null,null,{"$f":"IF(G41<>\"\",\"X\",\"\")","v":""},null,null,null,null,null,null,null,null,null,{"$f":"IF(DD41<>\"\",1,\"\")","v":""},null,null,null,null,null,null,null,null,{"$f":"IF(DO41<>0,VLOOKUP(DO41,Data!M27:Q46,3,FALSE),\"\")","v":""}]
[]
[]
[null,null,8,null,null,null,{"$f":"IF(DO44<>0,VLOOKUP(DO44,Data!M27:Q46,2,FALSE),\"\")","v":""},null,null,null,null,null,null,null,null,null,null,null,null,null,null,null,null,null,null,null,null,null,null,null,null,null,null,null,null,null,null,null,null,null,null,null,null,null,null,null,null,null,null,null,null,null,null,null,null,null,null,null,null,null,null,null,{"$f":"IF(DO44<>\"\",TEXT(DW44,\"TT\"),\"\")","v":""},null,null,null,null,"•",{"$f":"IF(DO44<>\"\",TEXT(DW44,\"MM\"),\"\")","v":""},null,null,null,null,"•",{"$f":"IF(DO44<>\"\",TEXT(DW44,\"JJJJ\"),\"\")","v":""},null,null,null,null,null,null,null,null,null,null,null,null,null,null,null,null,null,null,null,null,null,null,null,null,null,null,null,null,null,null,null,null,{"$f":"IF(G44<>\"\",\"X\",\"\")","v":""},null,null,null,null,null,null,null,null,null,{"$f":"IF(DD44<>\"\",1,\"\")","v":""},null,null,null,null,null,null,null,null,{"$f":"IF(DO44<>0,VLOOKUP(DO44,Data!M27:Q46,3,FALSE),\"\")","v":""}]
[]
[]
[null,null,9,null,null,null,{"$f":"IF(DO47<>0,VLOOKUP(DO47,Data!M27:Q46,2,FALSE),\"\")","v":""},null,null,null,null,null,null,null,null,null,null,null,null,null,null,null,null,null,null,null,null,null,null,null,null,null,null,null,null,null,null,null,null,null,null,null,null,null,null,null,null,null,null,null,null,null,null,null,null,null,null,null,null,null,null,null,{"$f":"IF(DO47<>\"\",TEXT(DW47,\"TT\"),\"\")","v":""},null,null,null,null,"•",{"$f":"IF(DO47<>\"\",TEXT(DW47,\"MM\"),\"\")","v":""},null,null,null,null,"•",{"$f":"IF(DO47<>\"\",TEXT(DW47,\"JJJJ\"),\"\")","v":""},null,null,null,null,null,null,null,null,null,null,null,null,null,null,null,null,null,null,null,null,null,null,null,null,null,null,null,null,null,null,null,null,{"$f":"IF(G47<>\"\",\"X\",\"\")","v":""},null,null,null,null,null,null,null,null,null,{"$f":"IF(DD47<>\"\",1,\"\")","v":""},null,null,null,null,null,null,null,null,{"$f":"IF(DO47<>0,VLOOKUP(DO47,Data!M27:Q46,3,FALSE),\"\")","v":""}]
[]
[]
[null,null,10,null,null,null,{"$f":"IF(DO50<>0,VLOOKUP(DO50,Data!M27:Q46,2,FALSE),\"\")","v":""},null,null,null,null,null,null,null,null,null,null,null,null,null,null,null,null,null,null,null,null,null,null,null,null,null,null,null,null,null,null,null,null,null,null,null,null,null,null,null,null,null,null,null,null,null,null,null,null,null,null,null,null,null,null,null,{"$f":"IF(DO50<>\"\",TEXT(DW50,\"TT\"),\"\")","v":""},null,null,null,null,"•",{"$f":"IF(DO50<>\"\",TEXT(DW50,\"MM\"),\"\")","v":""},null,null,null,null,"•",{"$f":"IF(DO50<>\"\",TEXT(DW50,\"JJJJ\"),\"\")","v":""},null,null,null,null,null,null,null,null,null,null,null,null,null,null,null,null,null,null,null,null,null,null,null,null,null,null,null,null,null,null,null,null,{"$f":"IF(G50<>\"\",\"X\",\"\")","v":""},null,null,null,null,null,null,null,null,null,{"$f":"IF(DD50<>\"\",1,\"\")","v":""},null,null,null,null,null,null,null,null,{"$f":"IF(DO50<>0,VLOOKUP(DO50,Data!M27:Q46,3,FALSE),\"\")","v":""}]
[]
[]
[null,null,null,null,null,null,"Bestätigung durch das Unternehmen"]
[null,null,null,null,null,null,"Ort, Datum",null,null,null,null,null,null,null,null,null,null,null,null,null,null,null,null,null,null,null,null,null,null,null,null,null,null,null,null,null,null,null,null,null,null,null,null,null,null,null,null,null,null,null,null,null,null,null,null,null,null,null,null,null,null,null,"Stempel, Unterschrift des Unternehmens"]
[]
[]
[]
[]
[]
[null,null,null,null,null,null,"Bestätigung durch die Ausbildungsstelle"]
[]
[null,null,null,null,null,null,null," Abrechenbare Teilnehmeranzahl auf diesem Formular",null,null,null,null,null,null,null,null,null,null,null,null,null,null,null,null,null,null,null,null,null,null,null,null,null,null,null,null,null,null,null,null,null,null,null,null,null,null,null,null,null,null,null,null,null,null,null," Datum des Lehrgangs "]
[]
[null,null,null,null,null,null,null,{"$f":"IF(SUM(DN23:DN50),SUM(DN23:DN50),\"\")","v":""},null,null,null,null,null,null,null,null,null,null,null,null,null,null,null,null,null,null,null,null,null,null,null,null,null,null,null,null,null,null,null,null,null,null,null,null,null,null,null,null,null,null,null,null,null,null,null,null,{"$f":"IF(TNL!CD15<>\"\",CONCATENATE(TEXT(TNL!CD15,\"TT.MM.JJJJ\"),\" – \",TEXT(TNL!CV15,\"TT.MM.JJJJ\")),\"\")","v":""}]
[]
[null,null,null,null,null,null,null," Kennziffer der Ausbildungsstelle",null,null,null,null,null,null,null,null,null,null,null,null,null,null,null,null,null,null,null,null,null,null,null,null,null,null,null,null,null,null,null,null,null,null,null,null,null,null,null,null,null,null,null,null,null,null,null," Name der Lehrkraft "]
[]
[null,null,null,null,null,null,null,{"$f":"IF(TNL!ET15<>\"\",TNL!ET15,\"\")","v":"2.0800"},null,null,null,null,null,null,null,null,null,null,null,null,null,null,null,null,null,null,null,null,null,null,null,null,null,null,null,null,null,null,null,null,null,null,null,null,null,null,null,null,null,null,null,null,null,null,null,null,{"$f":"IF(TNL!O19<>\"\",TNL!O19,\"\")","v":""}]
[]
[null,null,null,null,null,null,null," Registriernummer des Lehrgangs",null,null,null,null,null,null,null,null,null,null,null,null,null,null,null,null,null,null,null,null,null,null,null,null,null,null,null,null,null,null,null,null,null,null,null,null,null,null,null,null,null,null,null,null,null,null,null," Ort des Lehrgangs"]
[]
[null,null,null,null,null,null,null,{"$f":"IF(TNL!ET16<>\"\",TNL!ET16,\"\")","v":""},null,null,null,null,null,null,null,null,null,null,null,null,null,null,null,null,null,null,null,null,null,null,null,null,null,null,null,null,null,null,null,null,null,null,null,null,null,null,null,null,null,null,null,null,null,null,null,null,{"$f":"IF(TNL!BO9<>\"\",CONCATENATE(TNL!BO9,\" \",TNL!CC9),\"\")","v":""}]
[]
[null,null,null,null,null,null,null," Ort, Datum",null,null,null,null,null,null,null,null,null,null,null,null,null,null,null,null,null,null,null,null,null,null,null,null,null,null,null,null,null,null,null,null,null,null,null,null,null,null,null,null,null,null,null,null,null,null,null," Anschrift, Unterschift der Ausbildungsstelle"]
[]
[]
[null,null,null,null,null,null,null,{"$f":"IF(TNL!BV33<>\"\",TNL!BV33,\"\")","v":""},null,null,null,null,null,null,null,null,null,null,null,null,null,null,null,null,null,null,null,null,null,null,null,null,null,null,null,null,null,null,null,null,null,null,null,null,null,null,null,null,null,null,null,null,null,null,null,{"$f":"IF(TNL!L9<>\"\",TNL!L9,\"\")","v":"DLRG Landesverband Niedersachsen e.V."}]
[null,null,null,null,null,null,null,null,null,null,null,null,null,null,null,null,null,null,null,null,null,null,null,null,null,null,null,null,null,null,null,null,null,null,null,null,null,null,null,null,null,null,null,null,null,null,null,null,null,null,null,null,null,null,null,{"$f":"IF(TNL!L10<>\"\",TNL!L10,\"\")","v":"Im Niedernfeld 4a"}]
[null,null,null,null,null,null,null,null,null,null,null,null,null,null,null,null,null,null,null,null,null,null,null,null,null,null,null,null,null,null,null,null,null,null,null,null,null,null,null,null,null,null,null,null,null,null,null,null,null,null,null,null,null,null,null,{"$f":"IF(TNL!L11<>\"\",CONCATENATE(TNL!L11,\" \",TNL!W11),\"\")","v":"31542 Bad Nenndorf"}]
[]
[]
[null,null,null,null,null,"Die personenbezogenen Daten werden aufgrund des § 199 Abs. 1 Nr. 5 i.V.m. § 23 SBG VII erhoben und gespeichert."]

{"sheet":"TNL-BG 2","index":2,"n_rows":82,"n_cols":127,"rows_kept":82,"cut":false,"hidden":false,"merged":[[73,7,74,16],[73,55,74,88],[74,52,79,53],[75,55,75,113],[76,7,76,50],[76,55,76,113],[77,55,77,113],[78,55,78,113],[79,55,79,113],[65,7,66,32],[65,55,66,70],[66,52,67,53],[67,7,67,50],[67,56,67,113],[69,7,70,32],[69,55,70,70],[70,52,71,53],[71,7,71,50],[71,56,71,113],[59,2,59,4],[59,6,59,114],[61,7,62,48],[61,55,62,72],[62,52,63,53],[63,7,63,50],[63,56,63,113],[54,2,54,4],[55,2,55,4],[55,6,55,59],[56,2,56,4],[57,2,57,4],[58,2,58,4],[49,107,49,110],[49,111,49,115],[51,2,51,4],[52,2,52,4],[52,6,52,114],[53,2,53,4],[46,102,46,106],[46,107,46,110],[46,111,46,115],[49,2,49,4],[49,6,49,60],[49,62,49,66],[49,68,49,72],[49,74,49,81],[49,82,49,101],[49,102,49,106],[46,2,46,4],[46,6,46,60],[46,62,46,66],[46,68,46,72],[46,74,46,81],[46,82,46,101],[43,2,43,4],[43,6,43,60],[43,62,43,66],[43,68,43,72],[43,74,43,81],[43,82,43,101],[43,102,43,106],[43,107,43,110],[43,111,43,115],[40,2,40,4],[40,6,40,60],[40,62,40,66],[40,68,40,72],[40,74,40,81],[40,82,40,101],[40,102,40,106],[40,107,40,110],[40,111,40,115],[34,102,34,106],[34,107,34,110],[34,111,34,115],[37,2,37,4],[37,6,37,60],[37,62,37,66],[37,68,37,72],[37,74,37,81],[37,82,37,101],[37,102,37,106],[34,2,34,4],[34,6,34,60],[34,62,34,66],[34,68,34,72],[34,74,34,81],[34,82,34,101],[37,107,37,110],[37,111,37,115],[31,2,31,4],[31,6,31,60],[31,62,31,66],[31,68,31,72],[31,74,31,81],[31,82,31,101],[31,102,31,106],[31,107,31,110],[31,111,31,115],[28,2,28,4],[28,6,28,60],[28,62,28,66],[28,68,28,72],[28,74,28,81],[28,82,28,101],[28,102,28,106],[28,107,28,110],[28,111,28,115],[22,102,22,106],[22,107,22,110],[22,111,22,115],[25,2,25,4],[25,6,25,60],[25,62,25,66],[25,68,25,72],[25,74,25,81],[25,82,25,101],[25,102,25,106],[25,107,25,110],[25,111,25,115],[20,2,20,4],[20,5,20,61],[20,62,20,81],[20,82,20,101],[22,2,22,4],[22,6,22,60],[22,62,22,66],[22,68,22,72],[22,74,22,81],[22,82,22,101],[8,120,12,123],[9,5,9,114],[12,6,12,57],[12,61,12,114],[16,6,16,18],[16,20,16,57],[16,61,16,114],[19,5,19,26],[19,27,19,101],[19,102,20,115],[13,61,13,114],[14,6,14,43],[14,45,14,57],[14,61,14,114],[2,2,3,4],[4,2,4,4],[4,5,4,114],[5,5,5,55],[5,61,5,63],[5,87,5,89],[14,118,15,118],[15,61,15,114],[6,5,6,55],[7,5,7,39],[7,61,7,63],[8,5,8,39],[10,7,11,30]]}
[]
[]
[null,null,null,null,null,"Dieses Formular wird maschinell verarbeitet und gespeichert!"]
[null,null,null,null,null,"Nutzen Sie bitte die elektronische Formularfunktion dieses Dokuments. Ansonsten füllen Sie es mit einem schwarzen oder dunkelblauen Stift aus. Vielen Dank!"]
[null,null,null,null,null,null,null,null,null,null,null,null,null,null,null,null,null,null,null,null,null,null,null,null,null,null,null,null,null,null,null,null,null,null,null,null,null,null,null,null,null,null,null,null,null,null,null,null,null,null,null,null,null,null,null,null,null,null,null,null,null,null,null,null,null,null,null,null,null,null,null,null,null,null,null,null,null,null,null,null,null,null,null,null,null,null,null,null,null,null,null,null,null,null,null,null,null,null,null,null,null,null,null,null,null,null,null,null,null,null,null,null,null,null,null,null,null,null,"1. Anschrift des Mitgliedsbetriebes"]
[null,null,null,null,null,null,null,null,null,null,null,null,null,null,null,null,null,null,null,null,null,null,null,null,null,null,null,null,null,null,null,null,null,null,null,null,null,null,null,null,null,null,null,null,null,null,null,null,null,null,null,null,null,null,null,null,null,null,null,null,null,{"$f":"IF(TNL!AD3&TNL!CH3<>\"\",\"X\",\"\")","v":"X"},null,null," Ausbildung",null,null,null,null,null,null,null,null,null,null,null,null,null,null,null,null,null,null,null,null,null,null,{"$f":"IF(TNL!BF3&TNL!DS3<>\"\",\"X\",\"\")","v":""},null,null," Fortbildung",null,null,null,null,null,null,null,null,null,null,null,null,null,null,null,null,null,null,null,null,null,null,null,null,null,null,null,"2. Zuständiger Unfallversicherungsträger"]
[]
[null,null,null,null,null,"Aus- und Fortbildung",null,null,null,null,null,null,null,null,null,null,null,null,null,null,null,null,null,null,null,null,null,null,null,null,null,null,null,null,null,null,null,null,null,null,null,null,null,null,null,null,null,null,null,null,null,null,null,null,null,null,null,null,null,null,null,{"$f":"IF(TNL!CH3&TNL!DS3<>\"\",\"X\",\"\")","v":""},null,null," Erste Hilfe in Bildungs- und Betreuungseinrichtungen"]
[null,null,null,null,null,"für betriebliche Ersthelfer",null,null,null,null,null,null,null,null,null,null,null,null,null,null,null,null,null,null,null,null,null,null,null,null,null,null,null,null,null,null,null,null,null,null,null,null,null,null,null,null,null,null,null,null,null,null,null,null,null,null,null,null,null,null,null,null,null,null,null,null,null,null,null,null,null,null,null,null,null,null,null,null,null,null,null,null,null,null,null,null,null,null,null,null,null,null,null,null,null,null,null,null,null,null,null,null,null,null,null,null,null,null,null,null,null,null,null,null,null,null,null,null,null,null,"Hinweis:\nZum vervollständigen dieser Liste bitte die laufende Nummer aus der unten stehenden Liste in den weißen Feldern eintragen."]
[]
[null,null,null,null,null,null,null,"Anschrift des Mitgliedsbetriebes"]
[]
[null,null,null,null,null,null,null,null,null,null,null,null,null,null,null,null,null,null,null,null,null,null,null,null,null,null,null,null,null,null,null,null,null,null,null,null,null,null,null,null,null,null,null,null,null,null,null,null,null,null,null,null,null,null,null,null,null,null,null,null,null,"Zuständiger Unfallversicherungsträger:"]
[null,null,null,null,null,null,"Straße / Hausnummer",null,null,null,null,null,null,null,null,null,null,null,null,null,null,null,null,null,null,null,null,null,null,null,null,null,null,null,null,null,null,null,null,null,null,null,null,null,null,null,null,null,null,null,null,null,null,null,null,null,null,null,null,null,null,"(Berufsgenossenschaft, Unfallkasse) "]
[]
[null,null,null,null,null,null,"PLZ",null,null,null,null,null,null,null,null,null,null,null,null,null,"Ort",null,null,null,null,null,null,null,null,null,null,null,null,null,null,null,null,null,null,null,null,null,null,null,null,null,null,null,null,null,null,null,null,null,null,null,null,null,null,null,null,"Mitgliedsnummer / Versicherungsnummer:"]
[]
[]
[]
[null,null,null,null,null," Teilnahmeliste",null,null,null,null,null,null,null,null,null,null,null,null,null,null,null,null,null,null,null,null,null,"Die Teilnahmeliste ist vom Unternehmen auszufüllen.\nDie Teilnahme ist von den Teilnehmenden am Tag des Kurses durch Unterschrift zu bestätigen.",null,null,null,null,null,null,null,null,null,null,null,null,null,null,null,null,null,null,null,null,null,null,null,null,null,null,null,null,null,null,null,null,null,null,null,null,null,null,null,null,null,null,null,null,null,null,null,null,null,null,null,null,null,null,null,null,null,null,null,null,null,null,null,null,null,null,null,null,null,null,null,null,null,null," Bestätigung\n durch die \n Ausbildungsstelle"]
[null,null,null,null,null," Name, Vorname",null,null,null,null,null,null,null,null,null,null,null,null,null,null,null,null,null,null,null,null,null,null,null,null,null,null,null,null,null,null,null,null,null,null,null,null,null,null,null,null,null,null,null,null,null,null,null,null,null,null,null,null,null,null,null,null,"Geburtsdatum",null,null,null,null,null,null,null,null,null,null,null,null,null,null,null,null,null,null,null,"Unterschrift",null,null,null,null,null,null,null,null,null,null,null,null,null,null,null,null,null,null,null,null,null,null,null,null,null,null,null,null,null,null,null,null,null,null,null,"Nr."]
[]
[null,null,1,null,null,null,{"$f":"IF(DO23<>0,VLOOKUP(DO23,Data!M27:Q46,2,FALSE),\"\")","v":""},null,null,null,null,null,null,null,null,null,null,null,null,null,null,null,null,null,null,null,null,null,null,null,null,null,null,null,null,null,null,null,null,null,null,null,null,null,null,null,null,null,null,null,null,null,null,null,null,null,null,null,null,null,null,null,{"$f":"IF(DO23<>\"\",TEXT(DW23,\"TT\"),\"\")","v":""},null,null,null,null,"•",{"$f":"IF(DO23<>\"\",TEXT(DW23,\"MM\"),\"\")","v":""},null,null,null,null,"•",{"$f":"IF(DO23<>\"\",TEXT(DW23,\"JJJJ\"),\"\")","v":""},null,null,null,null,null,null,null,null,null,null,null,null,null,null,null,null,null,null,null,null,null,null,null,null,null,null,null,null,null,null,null,null,{"$f":"IF(G23<>\"\",\"X\",\"\")","v":""},null,null,null,null,null,null,null,null,null,{"$f":"IF(DD23<>\"\",1,\"\")","v":""},null,null,null,null,null,null,null,null,{"$f":"IF(DO23<>0,VLOOKUP(DO23,Data!M27:Q46,3,FALSE),\"\")","v":""}]
[]
[]
[null,null,2,null,null,null,{"$f":"IF(DO26<>0,VLOOKUP(DO26,Data!M27:Q46,2,FALSE),\"\")","v":""},null,null,null,null,null,null,null,null,null,null,null,null,null,null,null,null,null,null,null,null,null,null,null,null,null,null,null,null,null,null,null,null,null,null,null,null,null,null,null,null,null,null,null,null,null,null,null,null,null,null,null,null,null,null,null,{"$f":"IF(DO26<>\"\",TEXT(DW26,\"TT\"),\"\")","v":""},null,null,null,null,"•",{"$f":"IF(DO26<>\"\",TEXT(DW26,\"MM\"),\"\")","v":""},null,null,null,null,"•",{"$f":"IF(DO26<>\"\",TEXT(DW26,\"JJJJ\"),\"\")","v":""},null,null,null,null,null,null,null,null,null,null,null,null,null,null,null,null,null,null,null,null,null,null,null,null,null,null,null,null,null,null,null,null,{"$f":"IF(G26<>\"\",\"X\",\"\")","v":""},null,null,null,null,null,null,null,null,null,{"$f":"IF(DD26<>\"\",1,\"\")","v":""},null,null,null,null,null,null,null,null,{"$f":"IF(DO26<>0,VLOOKUP(DO26,Data!M27:Q46,3,FALSE),\"\")","v":""}]
[]
[]
[null,null,3,null,null,null,{"$f":"IF(DO29<>0,VLOOKUP(DO29,Data!M27:Q46,2,FALSE),\"\")","v":""},null,null,null,null,null,null,null,null,null,null,null,null,null,null,null,null,null,null,null,null,null,null,null,null,null,null,null,null,null,null,null,null,null,null,null,null,null,null,null,null,null,null,null,null,null,null,null,null,null,null,null,null,null,null,null,{"$f":"IF(DO29<>\"\",TEXT(DW29,\"TT\"),\"\")","v":""},null,null,null,null,"•",{"$f":"IF(DO29<>\"\",TEXT(DW29,\"MM\"),\"\")","v":""},null,null,null,null,"•",{"$f":"IF(DO29<>\"\",TEXT(DW29,\"JJJJ\"),\"\")","v":""},null,null,null,null,null,null,null,null,null,null,null,null,null,null,null,null,null,null,null,null,null,null,null,null,null,null,null,null,null,null,null,null,{"$f":"IF(G29<>\"\",\"X\",\"\")","v":""},null,null,null,null,null,null,null,null,null,{"$f":"IF(DD29<>\"\",1,\"\")","v":""},null,null,null,null,null,null,null,null,{"$f":"IF(DO29<>0,VLOOKUP(DO29,Data!M27:Q46,3,FALSE),\"\")","v":""}]
[]
[]
[null,null,4,null,null,null,{"$f":"IF(DO32<>0,VLOOKUP(DO32,Data!M27:Q46,2,FALSE),\"\")","v":""},null,null,null,null,null,null,null,null,null,null,null,null,null,null,null,null,null,null,null,null,null,null,null,null,null,null,null,null,null,null,null,null,null,null,null,null,null,null,null,null,null,null,null,null,null,null,null,null,null,null,null,null,null,null,null,{"$f":"IF(DO32<>\"\",TEXT(DW32,\"TT\"),\"\")","v":""},null,null,null,null,"•",{"$f":"IF(DO32<>\"\",TEXT(DW32,\"MM\"),\"\")","v":""},null,null,null,null,"•",{"$f":"IF(DO32<>\"\",TEXT(DW32,\"JJJJ\"),\"\")","v":""},null,null,null,null,null,null,null,null,null,null,null,null,null,null,null,null,null,null,null,null,null,null,null,null,null,null,null,null,null,null,null,null,{"$f":"IF(G32<>\"\",\"X\",\"\")","v":""},null,null,null,null,null,null,null,null,null,{"$f":"IF(DD32<>\"\",1,\"\")","v":""},null,null,null,null,null,null,null,null,{"$f":"IF(DO32<>0,VLOOKUP(DO32,Data!M27:Q46,3,FALSE),\"\")","v":""}]
[]
[]
[null,null,5,null,null,null,{"$f":"IF(DO35<>0,VLOOKUP(DO35,Data!M27:Q46,2,FALSE),\"\")","v":""},null,null,null,null,null,null,null,null,null,null,null,null,null,null,null,null,null,null,null,null,null,null,null,null,null,null,null,null,null,null,null,null,null,null,null,null,null,null,null,null,null,null,null,null,null,null,null,null,null,null,null,null,null,null,null,{"$f":"IF(DO35<>\"\",TEXT(DW35,\"TT\"),\"\")","v":""},null,null,null,null,"•",{"$f":"IF(DO35<>\"\",TEXT(DW35,\"MM\"),\"\")","v":""},null,null,null,null,"•",{"$f":"IF(DO35<>\"\",TEXT(DW35,\"JJJJ\"),\"\")","v":""},null,null,null,null,null,null,null,null,null,null,null,null,null,null,null,null,null,null,null,null,null,null,null,null,null,null,null,null,null,null,null,null,{"$f":"IF(G35<>\"\",\"X\",\"\")","v":""},null,null,null,null,null,null,null,null,null,{"$f":"IF(DD35<>\"\",1,\"\")","v":""},null,null,null,null,null,null,null,null,{"$f":"IF(DO35<>0,VLOOKUP(DO35,Data!M27:Q46,3,FALSE),\"\")","v":""}]
[]
[]
[null,null,6,null,null,null,{"$f":"IF(DO38<>0,VLOOKUP(DO38,Data!M27:Q46,2,FALSE),\"\")","v":""},null,null,null,null,null,null,null,null,null,null,null,null,null,null,null,null,null,null,null,null,null,null,null,null,null,null,null,null,null,null,null,null,null,null,null,null,null,null,null,null,null,null,null,null,null,null,null,null,null,null,null,null,null,null,null,{"$f":"IF(DO38<>\"\",TEXT(DW38,\"TT\"),\"\")","v":""},null,null,null,null,"•",{"$f":"IF(DO38<>\"\",TEXT(DW38,\"MM\"),\"\")","v":""},null,null,null,null,"•",{"$f":"IF(DO38<>\"\",TEXT(DW38,\"JJJJ\"),\"\")","v":""},null,null,null,null,null,null,null,null,null,null,null,null,null,null,null,null,null,null,null,null,null,null,null,null,null,null,null,null,null,null,null,null,{"$f":"IF(G38<>\"\",\"X\",\"\")","v":""},null,null,null,null,null,null,null,null,null,{"$f":"IF(DD38<>\"\",1,\"\")","v":""},null,null,null,null,null,null,null,null,{"$f":"IF(DO38<>0,VLOOKUP(DO38,Data!M27:Q46,3,FALSE),\"\")","v":""}]
[]
[]
[null,null,7,null,null,null,{"$f":"IF(DO41<>0,VLOOKUP(DO41,Data!M27:Q46,2,FALSE),\"\")","v":""},null,null,null,null,null,null,null,null,null,null,null,null,null,null,null,null,null,null,null,null,null,null,null,null,null,null,null,null,null,null,null,null,null,null,null,null,null,null,null,null,null,null,null,null,null,null,null,null,null,null,null,null,null,null,null,{"$f":"IF(DO41<>\"\",TEXT(DW41,\"TT\"),\"\")","v":""},null,null,null,null,"•",{"$f":"IF(DO41<>\"\",TEXT(DW41,\"MM\"),\"\")","v":""},null,null,null,null,"•",{"$f":"IF(DO41<>\"\",TEXT(DW41,\"JJJJ\"),\"\")","v":""},null,null,null,null,null,null,null,null,null,null,null,null,null,null,null,null,null,null,null,null,null,null,null,null,null,null,null,null,null,null,null,null,{"$f":"IF(G41<>\"\",\"X\",\"\")","v":""},null,null,null,null,null,null,null,null,null,{"$f":"IF(DD41<>\"\",1,\"\")","v":""},null,null,null,null,null,null,null,null,{"$f":"IF(DO41<>0,VLOOKUP(DO41,Data!M27:Q46,3,FALSE),\"\")","v":""}]
[]
[]
[null,null,8,null,null,null,{"$f":"IF(DO44<>0,VLOOKUP(DO44,Data!M27:Q46,2,FALSE),\"\")","v":""},null,null,null,null,null,null,null,null,null,null,null,null,null,null,null,null,null,null,null,null,null,null,null,null,null,null,null,null,null,null,null,null,null,null,null,null,null,null,null,null,null,null,null,null,null,null,null,null,null,null,null,null,null,null,null,{"$f":"IF(DO44<>\"\",TEXT(DW44,\"TT\"),\"\")","v":""},null,null,null,null,"•",{"$f":"IF(DO44<>\"\",TEXT(DW44,\"MM\"),\"\")","v":""},null,null,null,null,"•",{"$f":"IF(DO44<>\"\",TEXT(DW44,\"JJJJ\"),\"\")","v":""},null,null,null,null,null,null,null,null,null,null,null,null,null,null,null,null,null,null,null,null,null,null,null,null,null,null,null,null,null,null,null,null,{"$f":"IF(G44<>\"\",\"X\",\"\")","v":""},null,null,null,null,null,null,null,null,null,{"$f":"IF(DD44<>\"\",1,\"\")","v":""},null,null,null,null,null,null,null,null,{"$f":"IF(DO44<>0,VLOOKUP(DO44,Data!M27:Q46,3,FALSE),\"\")","v":""}]
[]
[]
[null,null,9,null,null,null,{"$f":"IF(DO47<>0,VLOOKUP(DO47,Data!M27:Q46,2,FALSE),\"\")","v":""},null,null,null,null,null,null,null,null,null,null,null,null,null,null,null,null,null,null,null,null,null,null,null,null,null,null,null,null,null,null,null,null,null,null,null,null,null,null,null,null,null,null,null,null,null,null,null,null,null,null,null,null,null,null,null,{"$f":"IF(DO47<>\"\",TEXT(DW47,\"TT\"),\"\")","v":""},null,null,null,null,"•",{"$f":"IF(DO47<>\"\",TEXT(DW47,\"MM\"),\"\")","v":""},null,null,null,null,"•",{"$f":"IF(DO47<>\"\",TEXT(DW47,\"JJJJ\"),\"\")","v":""},null,null,null,null,null,null,null,null,null,null,null,null,null,null,null,null,null,null,null,null,null,null,null,null,null,null,null,null,null,null,null,null,{"$f":"IF(G47<>\"\",\"X\",\"\")","v":""},null,null,null,null,null,null,null,null,null,{"$f":"IF(DD47<>\"\",1,\"\")","v":""},null,null,null,null,null,null,null,null,{"$f":"IF(DO47<>0,VLOOKUP(DO47,Data!M27:Q46,3,FALSE),\"\")","v":""}]
[]
[]
[null,null,10,null,null,null,{"$f":"IF(DO50<>0,VLOOKUP(DO50,Data!M27:Q46,2,FALSE),\"\")","v":""},null,null,null,null,null,null,null,null,null,null,null,null,null,null,null,null,null,null,null,null,null,null,null,null,null,null,null,null,null,null,null,null,null,null,null,null,null,null,null,null,null,null,null,null,null,null,null,null,null,null,null,null,null,null,null,{"$f":"IF(DO50<>\"\",TEXT(DW50,\"TT\"),\"\")","v":""},null,null,null,null,"•",{"$f":"IF(DO50<>\"\",TEXT(DW50,\"MM\"),\"\")","v":""},null,null,null,null,"•",{"$f":"IF(DO50<>\"\",TEXT(DW50,\"JJJJ\"),\"\")","v":""},null,null,null,null,null,null,null,null,null,null,null,null,null,null,null,null,null,null,null,null,null,null,null,null,null,null,null,null,null,null,null,null,{"$f":"IF(G50<>\"\",\"X\",\"\")","v":""},null,null,null,null,null,null,null,null,null,{"$f":"IF(DD50<>\"\",1,\"\")","v":""},null,null,null,null,null,null,null,null,{"$f":"IF(DO50<>0,VLOOKUP(DO50,Data!M27:Q46,3,FALSE),\"\")","v":""}]
[]
[]
[null,null,null,null,null,null,"Bestätigung durch das Unternehmen"]
[null,null,null,null,null,null,"Ort, Datum",null,null,null,null,null,null,null,null,null,null,null,null,null,null,null,null,null,null,null,null,null,null,null,null,null,null,null,null,null,null,null,null,null,null,null,null,null,null,null,null,null,null,null,null,null,null,null,null,null,null,null,null,null,null,null,"Stempel, Unterschrift des Unternehmens"]
[]
[]
[]
[]
[]
[null,null,null,null,null,null,"Bestätigung durch die Ausbildungsstelle"]
[]
[null,null,null,null,null,null,null," Abrechenbare Teilnehmeranzahl auf diesem Formular",null,null,null,null,null,null,null,null,null,null,null,null,null,null,null,null,null,null,null,null,null,null,null,null,null,null,null,null,null,null,null,null,null,null,null,null,null,null,null,null,null,null,null,null,null,null,null," Datum des Lehrgangs "]
[]
[null,null,null,null,null,null,null,{"$f":"IF(SUM(DN23:DN50),SUM(DN23:DN50),\"\")","v":""},null,null,null,null,null,null,null,null,null,null,null,null,null,null,null,null,null,null,null,null,null,null,null,null,null,null,null,null,null,null,null,null,null,null,null,null,null,null,null,null,null,null,null,null,null,null,null,null,{"$f":"IF(TNL!CD15<>\"\",CONCATENATE(TEXT(TNL!CD15,\"TT.MM.JJJJ\"),\" – \",TEXT(TNL!CV15,\"TT.MM.JJJJ\")),\"\")","v":""}]
[]
[null,null,null,null,null,null,null," Kennziffer der Ausbildungsstelle",null,null,null,null,null,null,null,null,null,null,null,null,null,null,null,null,null,null,null,null,null,null,null,null,null,null,null,null,null,null,null,null,null,null,null,null,null,null,null,null,null,null,null,null,null,null,null," Name der Lehrkraft "]
[]
[null,null,null,null,null,null,null,{"$f":"IF(TNL!ET15<>\"\",TNL!ET15,\"\")","v":"2.0800"},null,null,null,null,null,null,null,null,null,null,null,null,null,null,null,null,null,null,null,null,null,null,null,null,null,null,null,null,null,null,null,null,null,null,null,null,null,null,null,null,null,null,null,null,null,null,null,null,{"$f":"IF(TNL!O19<>\"\",TNL!O19,\"\")","v":""}]
[]
[null,null,null,null,null,null,null," Registriernummer des Lehrgangs",null,null,null,null,null,null,null,null,null,null,null,null,null,null,null,null,null,null,null,null,null,null,null,null,null,null,null,null,null,null,null,null,null,null,null,null,null,null,null,null,null,null,null,null,null,null,null," Ort des Lehrgangs"]
[]
[null,null,null,null,null,null,null,{"$f":"IF(TNL!ET16<>\"\",TNL!ET16,\"\")","v":""},null,null,null,null,null,null,null,null,null,null,null,null,null,null,null,null,null,null,null,null,null,null,null,null,null,null,null,null,null,null,null,null,null,null,null,null,null,null,null,null,null,null,null,null,null,null,null,null,{"$f":"IF(TNL!BO9<>\"\",CONCATENATE(TNL!BO9,\" \",TNL!CC9),\"\")","v":""}]
[]
[null,null,null,null,null,null,null," Ort, Datum",null,null,null,null,null,null,null,null,null,null,null,null,null,null,null,null,null,null,null,null,null,null,null,null,null,null,null,null,null,null,null,null,null,null,null,null,null,null,null,null,null,null,null,null,null,null,null," Anschrift, Unterschift der Ausbildungsstelle"]
[]
[]
[null,null,null,null,null,null,null,{"$f":"IF(TNL!BV33<>\"\",TNL!BV33,\"\")","v":""},null,null,null,null,null,null,null,null,null,null,null,null,null,null,null,null,null,null,null,null,null,null,null,null,null,null,null,null,null,null,null,null,null,null,null,null,null,null,null,null,null,null,null,null,null,null,null,{"$f":"IF(TNL!L9<>\"\",TNL!L9,\"\")","v":"DLRG Landesverband Niedersachsen e.V."}]
[null,null,null,null,null,null,null,null,null,null,null,null,null,null,null,null,null,null,null,null,null,null,null,null,null,null,null,null,null,null,null,null,null,null,null,null,null,null,null,null,null,null,null,null,null,null,null,null,null,null,null,null,null,null,null,{"$f":"IF(TNL!L10<>\"\",TNL!L10,\"\")","v":"Im Niedernfeld 4a"}]
[null,null,null,null,null,null,null,null,null,null,null,null,null,null,null,null,null,null,null,null,null,null,null,null,null,null,null,null,null,null,null,null,null,null,null,null,null,null,null,null,null,null,null,null,null,null,null,null,null,null,null,null,null,null,null,{"$f":"IF(TNL!L11<>\"\",CONCATENATE(TNL!L11,\" \",TNL!W11),\"\")","v":"31542 Bad Nenndorf"}]
[]
[]
[null,null,null,null,null,"Die personenbezogenen Daten werden aufgrund des § 199 Abs. 1 Nr. 5 i.V.m. § 23 SBG VII erhoben und gespeichert."]

{"sheet":"TNL-FeV","index":3,"n_rows":40,"n_cols":101,"rows_kept":40,"cut":false,"hidden":false,"merged":[[38,83,38,109],[39,6,39,28],[39,29,39,49],[39,50,39,61],[39,62,39,82],[39,83,39,109],[38,6,38,28],[38,29,38,49],[38,50,38,61],[38,62,38,82],[36,83,36,109],[37,6,37,28],[37,29,37,49],[37,50,37,61],[37,62,37,82],[37,83,37,109],[36,6,36,28],[36,29,36,49],[36,50,36,61],[36,62,36,82],[34,83,34,109],[35,6,35,28],[35,29,35,49],[35,50,35,61],[35,62,35,82],[35,83,35,109],[34,6,34,28],[34,29,34,49],[34,50,34,61],[34,62,34,82],[33,6,33,28],[33,29,33,49],[33,50,33,61],[33,62,33,82],[33,83,33,109],[32,6,32,28],[32,29,32,49],[32,50,32,61],[32,62,32,82],[31,29,31,49],[31,50,31,61],[31,62,31,82],[31,83,31,109],[30,6,30,28],[30,29,30,49],[30,50,30,61],[30,62,30,82],[32,83,32,109],[29,29,29,49],[29,50,29,61],[29,62,29,82],[29,83,29,109],[28,6,28,28],[28,29,28,49],[28,50,28,61],[28,62,28,82],[30,83,30,109],[27,29,27,49],[27,50,27,61],[27,62,27,82],[27,83,27,109],[26,29,26,49],[26,50,26,61],[26,62,26,82],[26,83,26,109],[28,83,28,109],[22,50,22,61],[22,62,22,82],[22,83,22,109],[25,29,25,49],[25,50,25,61],[25,62,25,82],[25,83,25,109],[24,29,24,49],[24,50,24,61],[24,62,24,82],[24,83,24,109],[31,2,31,5],[32,2,32,5],[25,2,25,5],[26,2,26,5],[27,2,27,5],[28,2,28,5],[39,2,39,5],[21,6,21,28],[22,6,22,28],[23,6,23,28],[24,6,24,28],[25,6,25,28],[26,6,26,28],[27,6,27,28],[33,2,33,5],[34,2,34,5],[37,2,37,5],[38,2,38,5],[35,2,35,5],[36,2,36,5],[29,2,29,5],[30,2,30,5],[29,6,29,28],[31,6,31,28],[10,44,10,49],[10,50,10,76],[11,45,11,47],[11,55,11,57],[11,48,11,54],[21,2,21,5],[22,2,22,5],[23,2,23,5],[24,2,24,5],[12,45,12,109],[13,45,13,109],[14,2,14,109],[15,62,19,82],[15,50,19,61],[15,29,19,49],[21,29,21,49],[21,50,21,61],[21,62,21,82],[21,83,21,109],[23,29,23,49],[23,50,23,61],[23,62,23,82],[23,83,23,109],[22,29,22,49],[20,29,20,49],[20,50,20,61],[20,62,20,82],[20,83,20,109],[9,81,9,109],[6,2,6,109],[7,100,7,109],[7,96,7,99],[7,77,7,79],[7,80,7,95],[11,58,11,76],[12,2,12,43],[13,2,13,43],[11,77,11,82],[11,83,11,109],[10,77,10,82],[10,83,10,109],[10,2,10,43],[11,2,11,43],[15,6,19,28],[15,2,19,5],[15,84,19,108],[20,2,20,5],[20,6,20,28],[5,48,5,76],[9,2,9,32],[2,2,2,109],[3,2,3,109],[4,2,4,43],[5,37,5,43],[5,31,5,36],[5,81,5,109],[4,44,4,109],[5,44,5,47],[5,77,5,80],[8,44,8,109],[9,44,9,47],[9,48,9,76],[8,2,8,43],[9,77,9,80],[7,2,7,43],[7,44,7,51],[7,52,7,76],[9,37,9,43],[9,33,9,36]]}
[]
[]
[null,null,"Dokumentation einer Schulung in Erster Hilfe im Sinne des § 68 der Fahrerlaubnis-Verordnung"]
[null,null,"I. Allgemeines"]
[null,null,"Name der anerkannten Ausbildungsstelle:",null,null,null,null,null,null,null,null,null,null,null,null,null,null,null,null,null,null,null,null,null,null,null,null,null,null,null,null,null,null,null,null,null,null,null,null,null,null,null,null,null,{"$f":"IF(TNL!AD3<>\"\",IF(TNL!L9<>\"\",TNL!L9,\"\"),\"\")","v":"DLRG Landesverband Niedersachsen e.V."}]
[null,null,"Adresse der Ausbildungsstelle:",null,null,null,null,null,null,null,null,null,null,null,null,null,null,null,null,null,null,null,null,null,null,null,null,null,null,null,null,"PLZ:",null,null,null,null,null,{"$f":"IF(TNL!AD3<>\"\",IF(TNL!L11<>\"\",TNL!L11,\"\"),\"\")","v":"31542"},null,null,null,null,null,null,"Ort:",null,null,null,{"$f":"IF(TNL!AD3<>\"\",IF(TNL!W11<>\"\",TNL!W11,\"\"),\"\")","v":"Bad Nenndorf"},null,null,null,null,null,null,null,null,null,null,null,null,null,null,null,null,null,null,null,null,null,null,null,null,null,null,null,null,"Str.:",null,null,null,{"$f":"IF(TNL!AD3<>\"\",IF(TNL!L10<>\"\",TNL!L10,\"\"),\"\")","v":"Im Niedernfeld 4a"}]
[]
[null,null,"Anerkannte Stelle: Anerkannt durch, AZ, am",null,null,null,null,null,null,null,null,null,null,null,null,null,null,null,null,null,null,null,null,null,null,null,null,null,null,null,null,null,null,null,null,null,null,null,null,null,null,null,null,null,"Behörde:",null,null,null,null,null,null,null,{"$f":"IF(TNL!AD3<>\"\",IF(TNL!ED9<>\"\",TNL!ED9,\"\"),\"\")","v":"Fahrerlaubnisbehörde LH Hannover"},null,null,null,null,null,null,null,null,null,null,null,null,null,null,null,null,null,null,null,null,null,null,null,null,"AZ:",null,null,{"$f":"IF(TNL!AD3<>\"\",IF(TNL!ED10<>\"\",TNL!ED10,\"\"),\"\")","v":"32.44.4 WO"},null,null,null,null,null,null,null,null,null,null,null,null,null,null,null,"am:",null,null,null,{"$f":"IF(TNL!AD3<>\"\",IF(TNL!ED11<>\"\",TNL!ED11,\"\"),\"\")","v":"2009-12-01"}]
[null,null,"Art der Schulungsmaßnahme:",null,null,null,null,null,null,null,null,null,null,null,null,null,null,null,null,null,null,null,null,null,null,null,null,null,null,null,null,null,null,null,null,null,null,null,null,null,null,null,null,null," Erste Hilfe im Sinne des § 68 der Fahrerlaubnis-Verordnung"]
[null,null,"Ort = Raum, genaue Bezeichnung:",null,null,null,null,null,null,null,null,null,null,null,null,null,null,null,null,null,null,null,null,null,null,null,null,null,null,null,null,null,null,"PLZ:",null,null,null,{"$f":"IF(TNL!AD3<>\"\",IF(TNL!BO9<>\"\",TNL!BO9,\"\"),\"\")","v":""},null,null,null,null,null,null,"Ort:",null,null,null,{"$f":"IF(TNL!AD3<>\"\",IF(TNL!CC9<>\"\",TNL!CC9,\"\"),\"\")","v":""},null,null,null,null,null,null,null,null,null,null,null,null,null,null,null,null,null,null,null,null,null,null,null,null,null,null,null,null,"Str.:",null,null,null,{"$f":"IF(TNL!AD3<>\"\",IF(TNL!BQ10<>\"\",TNL!BQ10,\"\"),\"\")","v":""}]
[null,null,"Datum und Dauer, von Uhrzeit – bis Uhrzeit:",null,null,null,null,null,null,null,null,null,null,null,null,null,null,null,null,null,null,null,null,null,null,null,null,null,null,null,null,null,null,null,null,null,null,null,null,null,null,null,null,null,"Datum:",null,null,null,null,null,{"$f":"IF(TNL!AD3<>\"\",IF(TNL!CD15<>\"\",CONCATENATE(TEXT(TNL!CD15,\"TT.MM.JJJJ\"),\" – \",TEXT(TNL!CV15,\"TT.MM.JJJJ\")),\"\"),\"\")","v":""},null,null,null,null,null,null,null,null,null,null,null,null,null,null,null,null,null,null,null,null,null,null,null,null,null,null,"Uhrzeit:",null,null,null,null,null,{"$f":"IF(TNL!AD3<>\"\",IF(TNL!CD16<>\"\",CONCATENATE(TEXT(TNL!CD16,\"HH:MM\"),\" – \",TEXT(TNL!CV16,\"HH:mm\"),\" Uhr\"),\"\"),\"\")","v":""}]
[null,null,"Informationsschrift wurde ausgehändigt:",null,null,null,null,null,null,null,null,null,null,null,null,null,null,null,null,null,null,null,null,null,null,null,null,null,null,null,null,null,null,null,null,null,null,null,null,null,null,null,null,null,null,{"$f":"IF(TNL!AD3<>\"\",IF(TNL!CL13<>\"\",TNL!CL13,\"\"),\"\")","v":""},null,null," Ja",null,null,null,null,null,null,{"$f":"IF(TNL!AD3<>\"\",IF(TNL!CV13<>\"\",TNL!CV13,\"\"),\"\")","v":""},null,null," Nein",null,null,null,null,null,null,null,null,null,null,null,null,null,null,null,null,null,null,"Lg-Nr.:",null,null,null,null,null,{"$f":"IF(TNL!AD3<>\"\",IF(TNL!CI19<>\"\",TNL!CI19,\"\"),\"\")","v":""}]
[null,null,"Name, Vorname der Lehrkraft/Ausbilders:",null,null,null,null,null,null,null,null,null,null,null,null,null,null,null,null,null,null,null,null,null,null,null,null,null,null,null,null,null,null,null,null,null,null,null,null,null,null,null,null,null,null,{"$f":"IF(TNL!AD3<>\"\",IF(TNL!O19<>\"\",TNL!O19,\"\"),\"\")","v":""}]
[null,null,"Ggf. Name, Vorname der Ausbildungshelfers:",null,null,null,null,null,null,null,null,null,null,null,null,null,null,null,null,null,null,null,null,null,null,null,null,null,null,null,null,null,null,null,null,null,null,null,null,null,null,null,null,null,null,{"$f":"IF(TNL!AD3<>\"\",IF(TNL!O22<>\"\",TNL!O22,\"\"),\"\")","v":""}]
[null,null,"II. Teilnehmerdaten"]
[null,null,"Lfd.\nNr.",null,null,null,"Name\nin Druckbuchstaben",null,null,null,null,null,null,null,null,null,null,null,null,null,null,null,null,null,null,null,null,null,null,"Vorname\nin Druckbucgstaben",null,null,null,null,null,null,null,null,null,null,null,null,null,null,null,null,null,null,null,null,"Geb.-Datum",null,null,null,null,null,null,null,null,null,null,null,"Wohnhaft\nin Druckbuchstaben",null,null,null,null,null,null,null,null,null,null,null,null,null,null,null,null,null,null,null,null,null,"Unterschrift des Teilnehmers=\nIch bestätige die o.a. Angaben zu I, die Angaben zu meiner Person, meine Teilnehme sowie den Erhalt einer Info-Schrift zur Ersten Hilfe und der Teilnahmebescheinigung."]
[]
[]
[]
[]
[null,null,1,null,null,null,{"$f":"IF(TNL!$AD$3<>\"\",IF(TNL!K49<>\"\",TNL!K49,\"\"),\"\")","v":""},null,null,null,null,null,null,null,null,null,null,null,null,null,null,null,null,null,null,null,null,null,null,{"$f":"IF(TNL!$AD$3<>\"\",IF(TNL!K50<>\"\",TNL!K50,\"\"),\"\")","v":""},null,null,null,null,null,null,null,null,null,null,null,null,null,null,null,null,null,null,null,null,{"$f":"IF(TNL!$AD$3<>\"\",IF(TNL!K49<>\"\",TNL!AW49,\"\"),\"\")","v":""},null,null,null,null,null,null,null,null,null,null,null,{"$f":"IF(TNL!$AD$3<>\"\",IF(TNL!K49<>\"\",CONCATENATE(TNL!BI49,\" | \",TNL!BI50),\"\"),\"\")","v":""}]
[null,null,2,null,null,null,{"$f":"IF(TNL!$AD$3<>\"\",IF(TNL!K51<>\"\",TNL!K51,\"\"),\"\")","v":""},null,null,null,null,null,null,null,null,null,null,null,null,null,null,null,null,null,null,null,null,null,null,{"$f":"IF(TNL!$AD$3<>\"\",IF(TNL!K52<>\"\",TNL!K52,\"\"),\"\")","v":""},null,null,null,null,null,null,null,null,null,null,null,null,null,null,null,null,null,null,null,null,{"$f":"IF(TNL!$AD$3<>\"\",IF(TNL!K51<>\"\",TNL!AW51,\"\"),\"\")","v":""},null,null,null,null,null,null,null,null,null,null,null,{"$f":"IF(TNL!$AD$3<>\"\",IF(TNL!K51<>\"\",CONCATENATE(TNL!BI51,\" | \",TNL!BI52),\"\"),\"\")","v":""}]
[null,null,3,null,null,null,{"$f":"IF(TNL!$AD$3<>\"\",IF(TNL!K53<>\"\",TNL!K53,\"\"),\"\")","v":""},null,null,null,null,null,null,null,null,null,null,null,null,null,null,null,null,null,null,null,null,null,null,{"$f":"IF(TNL!$AD$3<>\"\",IF(TNL!K54<>\"\",TNL!K54,\"\"),\"\")","v":""},null,null,null,null,null,null,null,null,null,null,null,null,null,null,null,null,null,null,null,null,{"$f":"IF(TNL!$AD$3<>\"\",IF(TNL!K53<>\"\",TNL!AW53,\"\"),\"\")","v":""},null,null,null,null,null,null,null,null,null,null,null,{"$f":"IF(TNL!$AD$3<>\"\",IF(TNL!K53<>\"\",CONCATENATE(TNL!BI53,\" | \",TNL!BI54),\"\"),\"\")","v":""}]
[null,null,4,null,null,null,{"$f":"IF(TNL!$AD$3<>\"\",IF(TNL!K55<>\"\",TNL!K55,\"\"),\"\")","v":""},null,null,null,null,null,null,null,null,null,null,null,null,null,null,null,null,null,null,null,null,null,null,{"$f":"IF(TNL!$AD$3<>\"\",IF(TNL!K56<>\"\",TNL!K56,\"\"),\"\")","v":""},null,null,null,null,null,null,null,null,null,null,null,null,null,null,null,null,null,null,null,null,{"$f":"IF(TNL!$AD$3<>\"\",IF(TNL!K55<>\"\",TNL!AW55,\"\"),\"\")","v":""},null,null,null,null,null,null,null,null,null,null,null,{"$f":"IF(TNL!$AD$3<>\"\",IF(TNL!K55<>\"\",CONCATENATE(TNL!BI55,\" | \",TNL!BI56),\"\"),\"\")","v":""}]
[null,null,5,null,null,null,{"$f":"IF(TNL!$AD$3<>\"\",IF(TNL!K57<>\"\",TNL!K57,\"\"),\"\")","v":""},null,null,null,null,null,null,null,null,null,null,null,null,null,null,null,null,null,null,null,null,null,null,{"$f":"IF(TNL!$AD$3<>\"\",IF(TNL!K58<>\"\",TNL!K58,\"\"),\"\")","v":""},null,null,null,null,null,null,null,null,null,null,null,null,null,null,null,null,null,null,null,null,{"$f":"IF(TNL!$AD$3<>\"\",IF(TNL!K57<>\"\",TNL!AW57,\"\"),\"\")","v":""},null,null,null,null,null,null,null,null,null,null,null,{"$f":"IF(TNL!$AD$3<>\"\",IF(TNL!K57<>\"\",CONCATENATE(TNL!BI57,\" | \",TNL!BI58),\"\"),\"\")","v":""}]
[null,null,6,null,null,null,{"$f":"IF(TNL!$AD$3<>\"\",IF(TNL!K59<>\"\",TNL!K59,\"\"),\"\")","v":""},null,null,null,null,null,null,null,null,null,null,null,null,null,null,null,null,null,null,null,null,null,null,{"$f":"IF(TNL!$AD$3<>\"\",IF(TNL!K60<>\"\",TNL!K60,\"\"),\"\")","v":""},null,null,null,null,null,null,null,null,null,null,null,null,null,null,null,null,null,null,null,null,{"$f":"IF(TNL!$AD$3<>\"\",IF(TNL!K59<>\"\",TNL!AW59,\"\"),\"\")","v":""},null,null,null,null,null,null,null,null,null,null,null,{"$f":"IF(TNL!$AD$3<>\"\",IF(TNL!K59<>\"\",CONCATENATE(TNL!BI59,\" | \",TNL!BI60),\"\"),\"\")","v":""}]
[null,null,7,null,null,null,{"$f":"IF(TNL!$AD$3<>\"\",IF(TNL!K61<>\"\",TNL!K61,\"\"),\"\")","v":""},null,null,null,null,null,null,null,null,null,null,null,null,null,null,null,null,null,null,null,null,null,null,{"$f":"IF(TNL!$AD$3<>\"\",IF(TNL!K62<>\"\",TNL!K62,\"\"),\"\")","v":""},null,null,null,null,null,null,null,null,null,null,null,null,null,null,null,null,null,null,null,null,{"$f":"IF(TNL!$AD$3<>\"\",IF(TNL!K61<>\"\",TNL!AW61,\"\"),\"\")","v":""},null,null,null,null,null,null,null,null,null,null,null,{"$f":"IF(TNL!$AD$3<>\"\",IF(TNL!K61<>\"\",CONCATENATE(TNL!BI61,\" | \",TNL!BI62),\"\"),\"\")","v":""}]
[null,null,8,null,null,null,{"$f":"IF(TNL!$AD$3<>\"\",IF(TNL!K63<>\"\",TNL!K63,\"\"),\"\")","v":""},null,null,null,null,null,null,null,null,null,null,null,null,null,null,null,null,null,null,null,null,null,null,{"$f":"IF(TNL!$AD$3<>\"\",IF(TNL!K64<>\"\",TNL!K64,\"\"),\"\")","v":""},null,null,null,null,null,null,null,null,null,null,null,null,null,null,null,null,null,null,null,null,{"$f":"IF(TNL!$AD$3<>\"\",IF(TNL!K63<>\"\",TNL!AW63,\"\"),\"\")","v":""},null,null,null,null,null,null,null,null,null,null,null,{"$f":"IF(TNL!$AD$3<>\"\",IF(TNL!K63<>\"\",CONCATENATE(TNL!BI63,\" | \",TNL!BI64),\"\"),\"\")","v":""}]
[null,null,9,null,null,null,{"$f":"IF(TNL!$AD$3<>\"\",IF(TNL!K65<>\"\",TNL!K65,\"\"),\"\")","v":""},null,null,null,null,null,null,null,null,null,null,null,null,null,null,null,null,null,null,null,null,null,null,{"$f":"IF(TNL!$AD$3<>\"\",IF(TNL!K66<>\"\",TNL!K66,\"\"),\"\")","v":""},null,null,null,null,null,null,null,null,null,null,null,null,null,null,null,null,null,null,null,null,{"$f":"IF(TNL!$AD$3<>\"\",IF(TNL!K65<>\"\",TNL!AW65,\"\"),\"\")","v":""},null,null,null,null,null,null,null,null,null,null,null,{"$f":"IF(TNL!$AD$3<>\"\",IF(TNL!K65<>\"\",CONCATENATE(TNL!BI65,\" | \",TNL!BI66),\"\"),\"\")","v":""}]
[null,null,10,null,null,null,{"$f":"IF(TNL!$AD$3<>\"\",IF(TNL!K67<>\"\",TNL!K67,\"\"),\"\")","v":""},null,null,null,null,null,null,null,null,null,null,null,null,null,null,null,null,null,null,null,null,null,null,{"$f":"IF(TNL!$AD$3<>\"\",IF(TNL!K68<>\"\",TNL!K68,\"\"),\"\")","v":""},null,null,null,null,null,null,null,null,null,null,null,null,null,null,null,null,null,null,null,null,{"$f":"IF(TNL!$AD$3<>\"\",IF(TNL!K67<>\"\",TNL!AW67,\"\"),\"\")","v":""},null,null,null,null,null,null,null,null,null,null,null,{"$f":"IF(TNL!$AD$3<>\"\",IF(TNL!K67<>\"\",CONCATENATE(TNL!BI67,\" | \",TNL!BI68),\"\"),\"\")","v":""}]
[null,null,11,null,null,null,{"$f":"IF(TNL!$AD$3<>\"\",IF(TNL!K80<>\"\",TNL!K80,\"\"),\"\")","v":""},null,null,null,null,null,null,null,null,null,null,null,null,null,null,null,null,null,null,null,null,null,null,{"$f":"IF(TNL!$AD$3<>\"\",IF(TNL!K81<>\"\",TNL!K81,\"\"),\"\")","v":""},null,null,null,null,null,null,null,null,null,null,null,null,null,null,null,null,null,null,null,null,{"$f":"IF(TNL!$AD$3<>\"\",IF(TNL!K80<>\"\",TNL!AW80,\"\"),\"\")","v":""},null,null,null,null,null,null,null,null,null,null,null,{"$f":"IF(TNL!$AD$3<>\"\",IF(TNL!K80<>\"\",CONCATENATE(TNL!BI80,\" | \",TNL!BI81),\"\"),\"\")","v":""}]
[null,null,12,null,null,null,{"$f":"IF(TNL!$AD$3<>\"\",IF(TNL!K82<>\"\",TNL!K82,\"\"),\"\")","v":""},null,null,null,null,null,null,null,null,null,null,null,null,null,null,null,null,null,null,null,null,null,null,{"$f":"IF(TNL!$AD$3<>\"\",IF(TNL!K83<>\"\",TNL!K83,\"\"),\"\")","v":""},null,null,null,null,null,null,null,null,null,null,null,null,null,null,null,null,null,null,null,null,{"$f":"IF(TNL!$AD$3<>\"\",IF(TNL!K82<>\"\",TNL!AW82,\"\"),\"\")","v":""},null,null,null,null,null,null,null,null,null,null,null,{"$f":"IF(TNL!$AD$3<>\"\",IF(TNL!K82<>\"\",CONCATENATE(TNL!BI82,\" | \",TNL!BI83),\"\"),\"\")","v":""}]
[null,null,13,null,null,null,{"$f":"IF(TNL!$AD$3<>\"\",IF(TNL!K84<>\"\",TNL!K84,\"\"),\"\")","v":""},null,null,null,null,null,null,null,null,null,null,null,null,null,null,null,null,null,null,null,null,null,null,{"$f":"IF(TNL!$AD$3<>\"\",IF(TNL!K85<>\"\",TNL!K85,\"\"),\"\")","v":""},null,null,null,null,null,null,null,null,null,null,null,null,null,null,null,null,null,null,null,null,{"$f":"IF(TNL!$AD$3<>\"\",IF(TNL!K84<>\"\",TNL!AW84,\"\"),\"\")","v":""},null,null,null,null,null,null,null,null,null,null,null,{"$f":"IF(TNL!$AD$3<>\"\",IF(TNL!K84<>\"\",CONCATENATE(TNL!BI84,\" | \",TNL!BI85),\"\"),\"\")","v":""}]
[null,null,14,null,null,null,{"$f":"IF(TNL!$AD$3<>\"\",IF(TNL!K86<>\"\",TNL!K86,\"\"),\"\")","v":""},null,null,null,null,null,null,null,null,null,null,null,null,null,null,null,null,null,null,null,null,null,null,{"$f":"IF(TNL!$AD$3<>\"\",IF(TNL!K87<>\"\",TNL!K87,\"\"),\"\")","v":""},null,null,null,null,null,null,null,null,null,null,null,null,null,null,null,null,null,null,null,null,{"$f":"IF(TNL!$AD$3<>\"\",IF(TNL!K86<>\"\",TNL!AW86,\"\"),\"\")","v":""},null,null,null,null,null,null,null,null,null,null,null,{"$f":"IF(TNL!$AD$3<>\"\",IF(TNL!K86<>\"\",CONCATENATE(TNL!BI86,\" | \",TNL!BI87),\"\"),\"\")","v":""}]
[null,null,15,null,null,null,{"$f":"IF(TNL!$AD$3<>\"\",IF(TNL!K88<>\"\",TNL!K88,\"\"),\"\")","v":""},null,null,null,null,null,null,null,null,null,null,null,null,null,null,null,null,null,null,null,null,null,null,{"$f":"IF(TNL!$AD$3<>\"\",IF(TNL!K89<>\"\",TNL!K89,\"\"),\"\")","v":""},null,null,null,null,null,null,null,null,null,null,null,null,null,null,null,null,null,null,null,null,{"$f":"IF(TNL!$AD$3<>\"\",IF(TNL!K88<>\"\",TNL!AW88,\"\"),\"\")","v":""},null,null,null,null,null,null,null,null,null,null,null,{"$f":"IF(TNL!$AD$3<>\"\",IF(TNL!K88<>\"\",CONCATENATE(TNL!BI88,\" | \",TNL!BI89),\"\"),\"\")","v":""}]
[null,null,16,null,null,null,{"$f":"IF(TNL!$AD$3<>\"\",IF(TNL!K90<>\"\",TNL!K90,\"\"),\"\")","v":""},null,null,null,null,null,null,null,null,null,null,null,null,null,null,null,null,null,null,null,null,null,null,{"$f":"IF(TNL!$AD$3<>\"\",IF(TNL!K91<>\"\",TNL!K91,\"\"),\"\")","v":""},null,null,null,null,null,null,null,null,null,null,null,null,null,null,null,null,null,null,null,null,{"$f":"IF(TNL!$AD$3<>\"\",IF(TNL!K90<>\"\",TNL!AW90,\"\"),\"\")","v":""},null,null,null,null,null,null,null,null,null,null,null,{"$f":"IF(TNL!$AD$3<>\"\",IF(TNL!K90<>\"\",CONCATENATE(TNL!BI90,\" | \",TNL!BI91),\"\"),\"\")","v":""}]
[null,null,17,null,null,null,{"$f":"IF(TNL!$AD$3<>\"\",IF(TNL!K92<>\"\",TNL!K92,\"\"),\"\")","v":""},null,null,null,null,null,null,null,null,null,null,null,null,null,null,null,null,null,null,null,null,null,null,{"$f":"IF(TNL!$AD$3<>\"\",IF(TNL!K93<>\"\",TNL!K93,\"\"),\"\")","v":""},null,null,null,null,null,null,null,null,null,null,null,null,null,null,null,null,null,null,null,null,{"$f":"IF(TNL!$AD$3<>\"\",IF(TNL!K92<>\"\",TNL!AW92,\"\"),\"\")","v":""},null,null,null,null,null,null,null,null,null,null,null,{"$f":"IF(TNL!$AD$3<>\"\",IF(TNL!K92<>\"\",CONCATENATE(TNL!BI92,\" | \",TNL!BI93),\"\"),\"\")","v":""}]
[null,null,18,null,null,null,{"$f":"IF(TNL!$AD$3<>\"\",IF(TNL!K94<>\"\",TNL!K94,\"\"),\"\")","v":""},null,null,null,null,null,null,null,null,null,null,null,null,null,null,null,null,null,null,null,null,null,null,{"$f":"IF(TNL!$AD$3<>\"\",IF(TNL!K95<>\"\",TNL!K95,\"\"),\"\")","v":""},null,null,null,null,null,null,null,null,null,null,null,null,null,null,null,null,null,null,null,null,{"$f":"IF(TNL!$AD$3<>\"\",IF(TNL!K94<>\"\",TNL!AW94,\"\"),\"\")","v":""},null,null,null,null,null,null,null,null,null,null,null,{"$f":"IF(TNL!$AD$3<>\"\",IF(TNL!K94<>\"\",CONCATENATE(TNL!BI94,\" | \",TNL!BI95),\"\"),\"\")","v":""}]
[null,null,19,null,null,null,{"$f":"IF(TNL!$AD$3<>\"\",IF(TNL!K96<>\"\",TNL!K96,\"\"),\"\")","v":""},null,null,null,null,null,null,null,null,null,null,null,null,null,null,null,null,null,null,null,null,null,null,{"$f":"IF(TNL!$AD$3<>\"\",IF(TNL!K97<>\"\",TNL!K97,\"\"),\"\")","v":""},null,null,null,null,null,null,null,null,null,null,null,null,null,null,null,null,null,null,null,null,{"$f":"IF(TNL!$AD$3<>\"\",IF(TNL!K96<>\"\",TNL!AW96,\"\"),\"\")","v":""},null,null,null,null,null,null,null,null,null,null,null,{"$f":"IF(TNL!$AD$3<>\"\",IF(TNL!K96<>\"\",CONCATENATE(TNL!BI96,\" | \",TNL!BI97),\"\"),\"\")","v":""}]
[null,null,20,null,null,null,{"$f":"IF(TNL!$AD$3<>\"\",IF(TNL!K98<>\"\",TNL!K98,\"\"),\"\")","v":""},null,null,null,null,null,null,null,null,null,null,null,null,null,null,null,null,null,null,null,null,null,null,{"$f":"IF(TNL!$AD$3<>\"\",IF(TNL!K97<>\"\",TNL!K99,\"\"),\"\")","v":""},null,null,null,null,null,null,null,null,null,null,null,null,null,null,null,null,null,null,null,null,{"$f":"IF(TNL!$AD$3<>\"\",IF(TNL!K98<>\"\",TNL!AW98,\"\"),\"\")","v":""},null,null,null,null,null,null,null,null,null,null,null,{"$f":"IF(TNL!$AD$3<>\"\",IF(TNL!K98<>\"\",CONCATENATE(TNL!BI98,\" | \",TNL!BI99),\"\"),\"\")","v":""}]

{"sheet":"TNB","index":4,"n_rows":85,"n_cols":113,"rows_kept":85,"cut":false,"hidden":false,"merged":[[8,112,9,112],[30,2,30,109],[33,2,33,109],[32,2,32,109],[22,37,26,37],[42,2,42,109],[41,94,41,98],[40,99,41,109],[41,74,41,78],[41,49,41,65],[35,2,35,109],[36,2,36,109],[34,2,34,109],[38,94,38,109],[37,94,37,109],[40,66,40,73],[40,49,40,65],[40,79,41,80],[41,81,41,85],[22,74,26,74],[22,38,22,73],[10,28,10,32],[10,33,10,48],[10,53,10,109],[60,58,60,70],[44,2,44,9],[40,94,40,98],[40,81,40,85],[39,2,39,109],[37,2,37,12],[40,2,40,11],[40,12,40,27],[40,28,40,32],[40,33,40,48],[37,82,37,83],[37,13,37,81],[38,84,38,93],[41,33,41,48],[41,12,41,27],[37,84,37,93],[38,13,38,81],[38,82,38,83],[38,2,38,12],[41,66,41,73],[41,86,41,93],[40,86,40,93],[40,74,40,78],[41,2,41,11],[48,58,48,59],[47,58,47,59],[52,64,52,69],[52,50,52,52],[52,54,52,59],[52,60,52,62],[51,2,51,74],[47,60,47,89],[47,90,47,109],[50,2,50,109],[51,75,54,109],[62,58,62,70],[58,71,58,109],[60,71,60,109],[24,38,24,73],[61,58,61,109],[60,2,60,14],[62,2,62,14],[60,15,60,53],[62,15,62,53],[29,2,29,109],[57,2,57,53],[57,58,57,109],[57,54,62,57],[58,58,58,70],[55,75,55,109],[55,2,55,36],[54,2,54,36],[54,37,55,74],[62,71,62,109],[56,2,56,109],[59,2,59,53],[61,2,61,53],[41,28,41,32],[59,58,59,109],[58,2,58,14],[23,2,23,36],[27,2,27,109],[28,2,28,109],[23,38,23,73],[26,38,26,73],[58,15,58,53],[53,2,53,74],[46,2,46,109],[44,10,44,58],[43,59,44,60],[45,2,45,109],[43,2,43,9],[43,61,43,109],[44,61,44,109],[43,10,43,58],[48,60,48,109],[49,2,49,109],[47,25,47,57],[52,70,52,74],[52,2,52,49],[47,2,47,24],[48,25,48,57],[48,2,48,24],[22,2,22,36],[26,2,26,36],[25,2,25,36],[24,2,24,36],[18,2,20,109],[16,2,16,109],[17,2,17,109],[21,2,21,109],[25,38,25,73],[26,75,26,109],[22,75,25,109],[2,88,7,109],[2,2,2,87],[3,2,3,87],[4,2,4,12],[4,13,4,42],[4,43,4,87],[5,2,5,87],[6,2,6,87],[7,2,7,87],[8,94,8,109],[8,84,8,93],[8,81,8,83],[8,2,8,9],[8,10,8,39],[8,40,8,42],[8,54,8,80],[12,2,12,109],[13,2,15,109],[11,2,11,109],[9,2,9,109],[10,2,10,11],[10,12,10,27],[10,49,10,52]]}
[]
[]
[null,null,"Teilnahmebescheinigung",null,null,null,null,null,null,null,null,null,null,null,null,null,null,null,null,null,null,null,null,null,null,null,null,null,null,null,null,null,null,null,null,null,null,null,null,null,null,null,null,null,null,null,null,null,null,null,null,null,null,null,null,null,null,null,null,null,null,null,null,null,null,null,null,null,null,null,null,null,null,null,null,null,null,null,null,null,null,null,null,null,null,null,null,null,null,null,null,null,null,null,null,null,null,null,null,null,null,null,null,null,null,null,null,null,null,null,null,null,{"$f":"SUM(Data!L2:L5)","v":1}]
[]
[null,null,"Nummer:",null,null,null,null,null,null,null,null,null,null,{"$f":"IF(ISNA(IF(DI9<>\"\",VLOOKUP(DI9,Data!A3:J22,10,FALSE),\"\")),\"\",IF(DI9<>\"\",VLOOKUP(DI9,Data!A3:J22,10,FALSE),\"\"))","v":""}]
[null,null,null,null,null,null,null,null,null,null,null,null,null,null,null,null,null,null,null,null,null,null,null,null,null,null,null,null,null,null,null,null,null,null,null,null,null,null,null,null,null,null,null,null,null,null,null,null,null,null,null,null,null,null,null,null,null,null,null,null,null,null,null,null,null,null,null,null,null,null,null,null,null,null,null,null,null,null,null,null,null,null,null,null,null,null,null,null,null,null,null,null,null,null,null,null,null,null,null,null,null,null,null,null,null,null,null,null,null,null,null,null,"Für das Drucken einzelner Bescheinigung:"]
[null,null,null,null,null,null,null,null,null,null,null,null,null,null,null,null,null,null,null,null,null,null,null,null,null,null,null,null,null,null,null,null,null,null,null,null,null,null,null,null,null,null,null,null,null,null,null,null,null,null,null,null,null,null,null,null,null,null,null,null,null,null,null,null,null,null,null,null,null,null,null,null,null,null,null,null,null,null,null,null,null,null,null,null,null,null,null,null,null,null,null,null,null,null,null,null,null,null,null,null,null,null,null,null,null,null,null,null,null,null,null,null,"Die laufende Nummer aus der Teilnehmerliste (TNL) hier eintragen."]
[]
[null,null,"Name:",null,null,null,null,null,null,null,{"$f":"IF(ISNA(IF(DI9<>\"\",VLOOKUP(DI9,Data!A3:J22,3,FALSE),\"\")),\"\",IF(DI9<>\"\",VLOOKUP(DI9,Data!A3:J22,3,FALSE),\"\"))","v":""},null,null,null,null,null,null,null,null,null,null,null,null,null,null,null,null,null,null,null,null,null,null,null,null,null,null,null,null,null,null,null,null,"Vorname:",null,null,null,null,null,null,null,null,null,null,{"$f":"IF(ISNA(IF(DI9<>\"\",VLOOKUP(DI9,Data!A3:J22,4,FALSE),\"\")),\"\",IF(DI9<>\"\",VLOOKUP(DI9,Data!A3:J22,4,FALSE),\"\"))","v":""},null,null,null,null,null,null,null,null,null,null,null,null,null,null,null,null,null,null,null,null,null,null,null,null,null,null,null,null,null,"geb. am:",null,null,null,null,null,null,null,null,null,{"$f":"IF(ISNA(IF(DI9<>\"\",VLOOKUP(DI9,Data!A3:J22,5,FALSE),\"\")),\"\",IF(DI9<>\"\",VLOOKUP(DI9,Data!A3:J22,5,FALSE),\"\"))","v":""},null,null,null,null,null,null,null,null,null,null,null,null,null,null,null,null,null,1]
[]
[null,null,"hat vom:",null,null,null,null,null,null,null,null,null,{"$f":"IF(TNL!CD15<>\"\",TNL!CD15,\"\")","v":""},null,null,null,null,null,null,null,null,null,null,null,null,null,null,null,"bis:",null,null,null,null,{"$f":"IF(TNL!CV15<>\"\",TNL!CV15,\"\")","v":""},null,null,null,null,null,null,null,null,null,null,null,null,null,null,null,"in:",null,null,null,{"$f":"IF(TNL!BO9<>\"\",CONCATENATE(TEXT(TNL!BO9,\"00000\")&\" \"&TNL!CC9),\"\")","v":""}]
[]
[null,null,"erfolgreich an einer"]
[null,null,{"$f":"IF(DI3<>0,VLOOKUP(DI3,Data!M2:O5,2,FALSE),\"\")","v":"Ausbildung in Erster Hilfe"}]
[]
[]
[null,null,"mit 9 Lerneinheiten* teilgenommen. (*Eine Lerneinheit gleich 45 Minuten.)"]
[]
[null,null,{"$f":"IF(DI3<>0,VLOOKUP(DI3,Data!M2:O5,3,FALSE),\"\")","v":"Diese Ausbildung entspricht den Gemeinsamen Grundsätzen der Bundesarbeitsgemeinschaft Erste Hilfe (BAGEH), sowie dem Grundsatz 304-001 der Deutschen Gesetzlichen Unfallversicherung (DGUV) im Einklang mit den Fahrerlaubnis- behörden."}]
[]
[]
[]
[null,null,{"$f":"IF(TNL!O19<>\"\",TNL!O19,\"\")","v":""}]
[null,null,"Vorname und Nachname der Lehrgangsleitung",null,null,null,null,null,null,null,null,null,null,null,null,null,null,null,null,null,null,null,null,null,null,null,null,null,null,null,null,null,null,null,null,null,null,null,{"$f":"IF(TNL!L9<>\"\",TNL!L9,\"\")","v":"DLRG Landesverband Niedersachsen e.V."}]
[null,null,null,null,null,null,null,null,null,null,null,null,null,null,null,null,null,null,null,null,null,null,null,null,null,null,null,null,null,null,null,null,null,null,null,null,null,null,{"$f":"IF(TNL!L10<>\"\",TNL!L10,\"\")","v":"Im Niedernfeld 4a"}]
[null,null,{"$f":"IF(TNL!CC9<>\"\",CONCATENATE(TNL!CC9,\", \",TEXT(TNL!CV15,\"TT.MM.JJJJ\")),\"\")","v":""},null,null,null,null,null,null,null,null,null,null,null,null,null,null,null,null,null,null,null,null,null,null,null,null,null,null,null,null,null,null,null,null,null,null,null,{"$f":"IF(TNL!L11<>\"\",CONCATENATE(TNL!L11,\" \",TNL!W11),\"\")","v":"31542 Bad Nenndorf"}]
[null,null,"Ort, Datum",null,null,null,null,null,null,null,null,null,null,null,null,null,null,null,null,null,null,null,null,null,null,null,null,null,null,null,null,null,null,null,null,null,null,null,"Adresse der ausbildenden Stelle",null,null,null,null,null,null,null,null,null,null,null,null,null,null,null,null,null,null,null,null,null,null,null,null,null,null,null,null,null,null,null,null,null,null,null,null,"Stempel | Unterschrift der Lehrgangsleitung"]
[]
[]
[null,null,{"$f":"IF(TNL!DO13<>\"\",CONCATENATE(\"Kennziffer der ermächtigten Ausbildungsstelle gemäß DGUV-Vorschrift 1: \",TNL!ET15,\"  |  \",\"DGUV – QSEH-Lehrgangs-Nummer: \",TNL!ET16),\"\")","v":"Kennziffer der ermächtigten Ausbildungsstelle gemäß DGUV-Vorschrift 1: 2.0800  |  DGUV – QSEH-Lehrgangs-Nummer: "}]
[]
[]
[]
[]
[null,null,{"$f":"IF(TNL!AD3<>\"\",\"Bescheinigung über die Teilnahme an einer Schulung in Erster Hilfe\",\"\")","v":"Bescheinigung über die Teilnahme an einer Schulung in Erster Hilfe"}]
[null,null,{"$f":"IF(TNL!AD3<>\"\",\"durch eine amtlich anerkannte andere Stelle gemäß § 68 Abs. 1 Fahrerlaubnisverordnung (FeV)\",\"\")","v":"durch eine amtlich anerkannte andere Stelle gemäß § 68 Abs. 1 Fahrerlaubnisverordnung (FeV)"}]
[]
[null,null,{"$f":"IF(TNL!AD3<>\"\",\"Herr/Frau:\",\"\")","v":"Herr/Frau:"},null,null,null,null,null,null,null,null,null,null,{"$f":"IF(ISNA(IF(TNL!AD3<>\"\",VLOOKUP(DI9,Data!A3:J22,2,FALSE),\"\")),\"\",IF(TNL!AD3<>\"\",VLOOKUP(DI9,Data!A3:J22,2,FALSE),\"\"))","v":""},null,null,null,null,null,null,null,null,null,null,null,null,null,null,null,null,null,null,null,null,null,null,null,null,null,null,null,null,null,null,null,null,null,null,null,null,null,null,null,null,null,null,null,null,null,null,null,null,null,null,null,null,null,null,null,null,null,null,null,null,null,null,null,null,null,null,null,null,null,null,{"$f":"IF(TNL!AD3<>\"\",\"geb. am:\",\"\")","v":"geb. am:"},null,null,null,null,null,null,null,null,null,{"$f":"IF(ISNA(IF(TNL!AD3<>\"\",VLOOKUP(DI9,Data!A3:J22,5,FALSE),\"\")),\"\",IF(TNL!AD3<>\"\",VLOOKUP(DI9,Data!A3:J22,5,FALSE),\"\"))","v":""}]
[null,null,null,null,null,null,null,null,null,null,null,null,null,{"$f":"IF(TNL!AD3<>\"\",\"Name, Vorname\",\"\")","v":"Name, Vorname"},null,null,null,null,null,null,null,null,null,null,null,null,null,null,null,null,null,null,null,null,null,null,null,null,null,null,null,null,null,null,null,null,null,null,null,null,null,null,null,null,null,null,null,null,null,null,null,null,null,null,null,null,null,null,null,null,null,null,null,null,null,null,null,null,null,null,null,null,null,null,null,null,null,null,null,null,null,null,null,null,{"$f":"IF(TNL!AD3<>\"\",\"Datum\",\"\")","v":"Datum"}]
[]
[null,null,{"$f":"IF(TNL!AD3<>\"\",\"hat vom:\",\"\")","v":"hat vom:"},null,null,null,null,null,null,null,null,null,{"$f":"IF(TNL!AD3<>\"\",IF(TNL!CD15<>\"\",CONCATENATE(TEXT(TNL!CD15,\"TT.MM.JJJJ\")),\"\"),\"\")","v":""},null,null,null,null,null,null,null,null,null,null,null,null,null,null,null,{"$f":"IF(TNL!AD3<>\"\",\"bis:\",\"\")","v":"bis:"},null,null,null,null,{"$f":"IF(TNL!AD3<>\"\",IF(TNL!CV15<>\"\",CONCATENATE(TEXT(TNL!CV15,\"TT.MM.JJJJ\")),\"\"),\"\")","v":""},null,null,null,null,null,null,null,null,null,null,null,null,null,null,null,{"$f":"IF(TNL!AD3<>\"\",\"in der Zeit von:\",\"\")","v":"in der Zeit von:"},null,null,null,null,null,null,null,null,null,null,null,null,null,null,null,null,{"$f":"IF(TNL!AD3<>\"\",IF(TNL!CD16<>\"\",CONCATENATE(TEXT(TNL!CD16,\"HH:mm\")),\"\"),\"\")","v":""},null,null,null,null,null,null,null,{"$f":"IF(TNL!AD3<>\"\",\"Uhr\",\"\")","v":"Uhr"},null,null,null,null,null,null,{"$f":"IF(TNL!AD3<>\"\",\"bis:\",\"\")","v":"bis:"},null,null,null,null,{"$f":"IF(TNL!AD3<>\"\",IF(TNL!CV16<>\"\",CONCATENATE(TEXT(TNL!CV16,\"HH:mm\")),\"\"),\"\")","v":""},null,null,null,null,null,null,null,{"$f":"IF(TNL!AD3<>\"\",\"Uhr\",\"\")","v":"Uhr"}]
[null,null,null,null,null,null,null,null,null,null,null,null,{"$f":"IF(TNL!AD3<>\"\",\"Datum\",\"\")","v":"Datum"},null,null,null,null,null,null,null,null,null,null,null,null,null,null,null,null,null,null,null,null,{"$f":"IF(TNL!AD3<>\"\",\"Datum\",\"\")","v":"Datum"},null,null,null,null,null,null,null,null,null,null,null,null,null,null,null,null,null,null,null,null,null,null,null,null,null,null,null,null,null,null,null,null,{"$f":"IF(TNL!AD3<>\"\",\"Uhrzeit\",\"\")","v":"Uhrzeit"},null,null,null,null,null,null,null,null,null,null,null,null,null,null,null,null,null,null,null,{"$f":"IF(TNL!AD3<>\"\",\"Uhrzeit\",\"\")","v":"Uhrzeit"}]
[]
[null,null,{"$f":"IF(TNL!AD3<>\"\",\"in (Ort):\",\"\")","v":"in (Ort):"},null,null,null,null,null,null,null,{"$f":"IF(BJ44<>\"\",CONCATENATE(TEXT(TNL!BO9,\"00000\"),\" \",TNL!CC9),\"\")","v":""},null,null,null,null,null,null,null,null,null,null,null,null,null,null,null,null,null,null,null,null,null,null,null,null,null,null,null,null,null,null,null,null,null,null,null,null,null,null,null,null,null,null,null,null,null,null,null,null,null,null,{"$f":"IF(TNL!AD3<>\"\",CONCATENATE(TNL!BQ10),\"\")","v":""}]
[null,null,null,null,null,null,null,null,null,null,{"$f":"IF(TNL!AD3<>\"\",\"Postleitzahl und Ort\",\"\")","v":"Postleitzahl und Ort"},null,null,null,null,null,null,null,null,null,null,null,null,null,null,null,null,null,null,null,null,null,null,null,null,null,null,null,null,null,null,null,null,null,null,null,null,null,null,null,null,null,null,null,null,null,null,null,null,null,null,{"$f":"IF(TNL!AD3<>\"\",\"Straße und Hausnummer\",\"\")","v":"Straße und Hausnummer"}]
[]
[]
[null,null,{"$f":"IF(TNL!AD3<>\"\",\"unter der Leitung von:\",\"\")","v":"unter der Leitung von:"},null,null,null,null,null,null,null,null,null,null,null,null,null,null,null,null,null,null,null,null,null,null,{"$f":"IF(TNL!AD3<>\"\",CONCATENATE(TNL!O19),\"\")","v":""},null,null,null,null,null,null,null,null,null,null,null,null,null,null,null,null,null,null,null,null,null,null,null,null,null,null,null,null,null,null,null,null,null,null,{"$f":"IF(TNL!AD3<>\"\",\"mit der Lehrgangs-Nummer:\",\"\")","v":"mit der Lehrgangs-Nummer:"},null,null,null,null,null,null,null,null,null,null,null,null,null,null,null,null,null,null,null,null,null,null,null,null,null,null,null,null,null,{"$f":"IF(TNL!AD3<>\"\",CONCATENATE(TNL!ET16),\"\")","v":""}]
[null,null,null,null,null,null,null,null,null,null,null,null,null,null,null,null,null,null,null,null,null,null,null,null,null,{"$f":"IF(TNL!AD3<>\"\",\"Vorname und Nachname der Lehrgangsleitung\",\"\")","v":"Vorname und Nachname der Lehrgangsleitung"}]
[]
[null,null,{"$f":"IF(TNL!AD3<>\"\",\"an einer Schulung in Erster Hilfe mit 9 Unterrichtseinheiten teilgenommen.\",\"\")","v":"an einer Schulung in Erster Hilfe mit 9 Unterrichtseinheiten teilgenommen."}]
[]
[null,null,{"$f":"IF(TNL!AD3<>\"\",\"Eine Informationsschrift wurde ausgehändigt:\",\"\")","v":"Eine Informationsschrift wurde ausgehändigt:"},null,null,null,null,null,null,null,null,null,null,null,null,null,null,null,null,null,null,null,null,null,null,null,null,null,null,null,null,null,null,null,null,null,null,null,null,null,null,null,null,null,null,null,null,null,null,null,{"$f":"IF(TNL!AD3<>\"\",CONCATENATE(TNL!CL13),\"\")","v":""},null,null,null,{"$f":"IF(TNL!AD3<>\"\",\"Ja\",\"\")","v":"Ja"},null,null,null,null,null,{"$f":"IF(TNL!AD3<>\"\",CONCATENATE(TNL!CV13),\"\")","v":""},null,null,null,{"$f":"IF(TNL!AD3<>\"\",\"Nein\",\"\")","v":"Nein"}]
[]
[null,null,{"$f":"IF(Z48<>\"\",CONCATENATE(TNL!CC9,\", \",TEXT(TNL!CV15,\"TT.MM.JJJJ\")),\"\")","v":""}]
[null,null,{"$f":"IF(TNL!AD3<>\"\",\"Ort, Datum\",\"\")","v":"Ort, Datum"},null,null,null,null,null,null,null,null,null,null,null,null,null,null,null,null,null,null,null,null,null,null,null,null,null,null,null,null,null,null,null,null,null,null,null,null,null,null,null,null,null,null,null,null,null,null,null,null,null,null,null,null,null,null,null,null,null,null,null,null,null,null,null,null,null,null,null,null,null,null,null,null,{"$f":"IF(TNL!AD3<>\"\",\"Stempel | Unterschrift der Lehrgangsleitung\",\"\")","v":"Stempel | Unterschrift der Lehrgangsleitung"}]
[]
[]
[null,null,{"$f":"IF(TNL!AD3<>\"\",\"Anerk. Stelle:\",\"\")","v":"Anerk. Stelle:"},null,null,null,null,null,null,null,null,null,null,null,null,{"$f":"IF(TNL!AD3<>\"\",CONCATENATE(TNL!L9),\"\")","v":"DLRG Landesverband Niedersachsen e.V."},null,null,null,null,null,null,null,null,null,null,null,null,null,null,null,null,null,null,null,null,null,null,null,null,null,null,null,null,null,null,null,null,null,null,null,null,null,null,null,null,null,null,{"$f":"IF(TNL!AD3<>\"\",\"Anerkannt am:\",\"\")","v":"Anerkannt am:"},null,null,null,null,null,null,null,null,null,null,null,null,{"$f":"IF(TNL!AD3<>\"\",IF(TNL!ED11<>\"\",CONCATENATE(TEXT(TNL!ED11,\"TT.MM.JJJJ\")),\"\"),\"\")","v":"01.12.2009"}]
[]
[null,null,{"$f":"IF(TNL!AD3<>\"\",\"Straße:\",\"\")","v":"Straße:"},null,null,null,null,null,null,null,null,null,null,null,null,{"$f":"IF(TNL!AD3<>\"\",CONCATENATE(TNL!L10),\"\")","v":"Im Niedernfeld 4a"},null,null,null,null,null,null,null,null,null,null,null,null,null,null,null,null,null,null,null,null,null,null,null,null,null,null,null,null,null,null,null,null,null,null,null,null,null,null,null,null,null,null,{"$f":"IF(TNL!AD3<>\"\",\"durch Behörde:\",\"\")","v":"durch Behörde:"},null,null,null,null,null,null,null,null,null,null,null,null,{"$f":"IF(TNL!AD3<>\"\",CONCATENATE(TNL!ED9),\"\")","v":"Fahrerlaubnisbehörde LH Hannover"}]
[]
[null,null,{"$f":"IF(TNL!AD3<>\"\",\"PLZ und Ort:\",\"\")","v":"PLZ und Ort:"},null,null,null,null,null,null,null,null,null,null,null,null,{"$f":"IF(TNL!AD3<>\"\",CONCATENATE(TNL!L11,\" \",TNL!W11),\"\")","v":"31542 Bad Nenndorf"},null,null,null,null,null,null,null,null,null,null,null,null,null,null,null,null,null,null,null,null,null,null,null,null,null,null,null,null,null,null,null,null,null,null,null,null,null,null,null,null,null,null,{"$f":"IF(TNL!AD3<>\"\",\"Aktenzeichen:\",\"\")","v":"Aktenzeichen:"},null,null,null,null,null,null,null,null,null,null,null,null,{"$f":"IF(TNL!AD3<>\"\",CONCATENATE(TNL!ED10),\"\")","v":"32.44.4 WO"}]
[]
[]
[{"$f":"IF(Data!C3<>\"\",1,0)","v":0}]
[{"$f":"IF(Data!C4<>\"\",2,0)","v":0}]
[{"$f":"IF(Data!C5<>\"\",3,0)","v":0}]
[{"$f":"IF(Data!C6<>\"\",4,0)","v":0}]
[{"$f":"IF(Data!C7<>\"\",5,0)","v":0}]
[{"$f":"IF(Data!C8<>\"\",6,0)","v":0}]
[{"$f":"IF(Data!C9<>\"\",7,0)","v":0}]
[{"$f":"IF(Data!C10<>\"\",8,0)","v":0}]
[{"$f":"IF(Data!C11<>\"\",9,0)","v":0}]
[{"$f":"IF(Data!C12<>\"\",10,0)","v":0}]
[{"$f":"IF(Data!C13<>\"\",11,0)","v":0}]
[{"$f":"IF(Data!C14<>\"\",12,0)","v":0}]
[{"$f":"IF(Data!C15<>\"\",13,0)","v":0}]
[{"$f":"IF(Data!C16<>\"\",14,0)","v":0}]
[{"$f":"IF(Data!C17<>\"\",15,0)","v":0}]
[{"$f":"IF(Data!C18<>\"\",16,0)","v":0}]
[{"$f":"IF(Data!C19<>\"\",17,0)","v":0}]
[{"$f":"IF(Data!C20<>\"\",18,0)","v":0}]
[{"$f":"IF(Data!C21<>\"\",19,0)","v":0}]
[{"$f":"IF(Data!C22<>\"\",20,0)","v":0}]

{"sheet":"Data","index":5,"n_rows":46,"n_cols":17,"rows_kept":46,"cut":false,"hidden":true,"merged":[[23,0,23,9]]}
[1,2,3,4,5,6,7,8,9,10,null,1,2,3,4]
["Nr.","Name, Vorname","Name","Vorname","Geb.","Straße","Wohnort",null,null,"Reg.-Nr.",null,{"$f":"IF(TNL!AD3<>\"\",1,0)","v":1},1,"Ausbildung in Erster Hilfe","Diese Ausbildung entspricht den Gemeinsamen Grundsätzen der Bundesarbeitsgemeinschaft Erste Hilfe (BAGEH), sowie dem Grundsatz 304-001 der Deutschen Gesetzlichen Unfallversicherung (DGUV) im Einklang mit den Fahrerlaubnis- behörden."," "]
[{"$f":"IF(B3<>\"\",1,\"\")","v":""},{"$f":"IF(TNL!K49<>\"\",TNL!K49&\", \"&TNL!K50,\"\")","v":""},{"$f":"IF(B3<>\"\",TNL!K49,\"\")","v":""},{"$f":"IF(B3<>\"\",TNL!K50,\"\")","v":""},{"$f":"IF(B3<>\"\",TEXT(TNL!AW49,\"TT.MM.JJJJ\"),\"\")","v":""},{"$f":"IF(B3<>\"\",TNL!BI49,\"\")","v":""},{"$f":"IF(B3<>\"\",TNL!BI50,\"\")","v":""},null,null,{"$f":"IF(B3<>\"\",TNL!EJ49,\"\")","v":""},null,{"$f":"IF(TNL!BF3<>\"\",2,0)","v":0},2,"Fortbildung in Erster Hilfe","Diese Fortbildung entspricht den Gemeinsamen Grundsätzen der Bundesarbeitsgemeinschaft Erste Hilfe (BAGEH), sowie dem Grundsatz 304-001 der Deutschen Gesetzlichen Unfallversicherung (DGUV) im Einklang mit den Fahrerlaubnis- behörden."," "]
[{"$f":"IF(B4<>\"\",2,\"\")","v":""},{"$f":"IF(TNL!K51<>\"\",TNL!K51&\", \"&TNL!K52,\"\")","v":""},{"$f":"IF(B4<>\"\",TNL!K51,\"\")","v":""},{"$f":"IF(B4<>\"\",TNL!K52,\"\")","v":""},{"$f":"IF(B4<>\"\",TEXT(TNL!AW51,\"TT.MM.JJJJ\"),\"\")","v":""},{"$f":"IF(B4<>\"\",TNL!BI51,\"\")","v":""},{"$f":"IF(B4<>\"\",TNL!BI52,\"\")","v":""},null,null,{"$f":"IF(B4<>\"\",TNL!EJ51,\"\")","v":""},null,{"$f":"IF(TNL!CH3<>\"\",3,0)","v":0},3,"Erste Hilfe-Schulung in Bildungs- und Betreuungseinrichtungen für Kinder","Diese Ausbildung entspricht den Gemeinsamen Grundsätzen der Bundesarbeitsgemeinschaft Erste Hilfe (BAGEH), sowie dem Grundsatz 304-001 der Deutschen Gesetzlichen Unfallversicherung (DGUV) im Einklang mit den Fahrerlaubnis- behörden."," "]
[{"$f":"IF(B5<>\"\",3,\"\")","v":""},{"$f":"IF(TNL!K53<>\"\",TNL!K53&\", \"&TNL!K54,\"\")","v":""},{"$f":"IF(B5<>\"\",TNL!K53,\"\")","v":""},{"$f":"IF(B5<>\"\",TNL!K54,\"\")","v":""},{"$f":"IF(B5<>\"\",TEXT(TNL!AW53,\"TT.MM.JJJJ\"),\"\")","v":""},{"$f":"IF(B5<>\"\",TNL!BI53,\"\")","v":""},{"$f":"IF(B5<>\"\",TNL!BI54,\"\")","v":""},null,null,{"$f":"IF(B5<>\"\",TNL!EJ53,\"\")","v":""},null,{"$f":"IF(TNL!DS3<>\"\",4,0)","v":0},4,"Ersten Hilfe-Fortbildung in Bildungs- und Betreuungseinrichtungen für Kinder","Diese Fortbildung entspricht den Gemeinsamen Grundsätzen der Bundesarbeitsgemeinschaft Erste Hilfe (BAGEH), sowie dem Grundsatz 304-001 der Deutschen Gesetzlichen Unfallversicherung (DGUV) im Einklang mit den Fahrerlaubnis- behörden."," "]
[{"$f":"IF(B6<>\"\",4,\"\")","v":""},{"$f":"IF(TNL!K55<>\"\",TNL!K55&\", \"&TNL!K56,\"\")","v":""},{"$f":"IF(B6<>\"\",TNL!K55,\"\")","v":""},{"$f":"IF(B6<>\"\",TNL!K56,\"\")","v":""},{"$f":"IF(B6<>\"\",TEXT(TNL!AW55,\"TT.MM.JJJJ\"),\"\")","v":""},{"$f":"IF(B6<>\"\",TNL!BI55,\"\")","v":""},{"$f":"IF(B6<>\"\",TNL!BI56,\"\")","v":""},null,null,{"$f":"IF(B6<>\"\",TNL!EJ55,\"\")","v":""}]
[{"$f":"IF(B7<>\"\",5,\"\")","v":""},{"$f":"IF(TNL!K57<>\"\",TNL!K57&\", \"&TNL!K58,\"\")","v":""},{"$f":"IF(B7<>\"\",TNL!K57,\"\")","v":""},{"$f":"IF(B7<>\"\",TNL!K58,\"\")","v":""},{"$f":"IF(B7<>\"\",TEXT(TNL!AW57,\"TT.MM.JJJJ\"),\"\")","v":""},{"$f":"IF(B7<>\"\",TNL!BI57,\"\")","v":""},{"$f":"IF(B7<>\"\",TNL!BI58,\"\")","v":""},null,null,{"$f":"IF(B7<>\"\",TNL!EJ57,\"\")","v":""}]
[{"$f":"IF(B8<>\"\",6,\"\")","v":""},{"$f":"IF(TNL!K59<>\"\",TNL!K59&\", \"&TNL!K60,\"\")","v":""},{"$f":"IF(B8<>\"\",TNL!K59,\"\")","v":""},{"$f":"IF(B8<>\"\",TNL!K60,\"\")","v":""},{"$f":"IF(B8<>\"\",TEXT(TNL!AW59,\"TT.MM.JJJJ\"),\"\")","v":""},{"$f":"IF(B8<>\"\",TNL!BI59,\"\")","v":""},{"$f":"IF(B8<>\"\",TNL!BI60,\"\")","v":""},null,null,{"$f":"IF(B8<>\"\",TNL!EJ59,\"\")","v":""}]
[{"$f":"IF(B9<>\"\",7,\"\")","v":""},{"$f":"IF(TNL!K61<>\"\",TNL!K61&\", \"&TNL!K62,\"\")","v":""},{"$f":"IF(B9<>\"\",TNL!K61,\"\")","v":""},{"$f":"IF(B9<>\"\",TNL!K62,\"\")","v":""},{"$f":"IF(B9<>\"\",TEXT(TNL!AW61,\"TT.MM.JJJJ\"),\"\")","v":""},{"$f":"IF(B9<>\"\",TNL!BI61,\"\")","v":""},{"$f":"IF(B9<>\"\",TNL!BI62,\"\")","v":""},null,null,{"$f":"IF(B9<>\"\",TNL!EJ61,\"\")","v":""}]
[{"$f":"IF(B10<>\"\",8,\"\")","v":""},{"$f":"IF(TNL!K63<>\"\",TNL!K63&\", \"&TNL!K64,\"\")","v":""},{"$f":"IF(B10<>\"\",TNL!K63,\"\")","v":""},{"$f":"IF(B10<>\"\",TNL!K64,\"\")","v":""},{"$f":"IF(B10<>\"\",TEXT(TNL!AW63,\"TT.MM.JJJJ\"),\"\")","v":""},{"$f":"IF(B10<>\"\",TNL!BI63,\"\")","v":""},{"$f":"IF(B10<>\"\",TNL!BI64,\"\")","v":""},null,null,{"$f":"IF(B10<>\"\",TNL!EJ63,\"\")","v":""}]
[{"$f":"IF(B11<>\"\",9,\"\")","v":""},{"$f":"IF(TNL!K65<>\"\",TNL!K65&\", \"&TNL!K66,\"\")","v":""},{"$f":"IF(B11<>\"\",TNL!K65,\"\")","v":""},{"$f":"IF(B11<>\"\",TNL!K66,\"\")","v":""},{"$f":"IF(B11<>\"\",TEXT(TNL!AW65,\"TT.MM.JJJJ\"),\"\")","v":""},{"$f":"IF(B11<>\"\",TNL!BI65,\"\")","v":""},{"$f":"IF(B11<>\"\",TNL!BI66,\"\")","v":""},null,null,{"$f":"IF(B11<>\"\",TNL!EJ65,\"\")","v":""}]
[{"$f":"IF(B12<>\"\",10,\"\")","v":""},{"$f":"IF(TNL!K67<>\"\",TNL!K67&\", \"&TNL!K68,\"\")","v":""},{"$f":"IF(B12<>\"\",TNL!K67,\"\")","v":""},{"$f":"IF(B12<>\"\",TNL!K68,\"\")","v":""},{"$f":"IF(B12<>\"\",TEXT(TNL!AW67,\"TT.MM.JJJJ\"),\"\")","v":""},{"$f":"IF(B12<>\"\",TNL!BI67,\"\")","v":""},{"$f":"IF(B12<>\"\",TNL!BI68,\"\")","v":""},null,null,{"$f":"IF(B12<>\"\",TNL!EJ67,\"\")","v":""}]
[{"$f":"IF(B13<>\"\",11,\"\")","v":""},{"$f":"IF(TNL!K80<>\"\",TNL!K80&\", \"&TNL!K81,\"\")","v":""},{"$f":"IF(B13<>\"\",TNL!K80,\"\")","v":""},{"$f":"IF(B13<>\"\",TNL!K81,\"\")","v":""},{"$f":"IF(B13<>\"\",TEXT(TNL!AW80,\"TT.MM.JJJJ\"),\"\")","v":""},{"$f":"IF(B13<>\"\",TNL!BI80,\"\")","v":""},{"$f":"IF(B13<>\"\",TNL!BI81,\"\")","v":""},null,null,{"$f":"IF(B13<>\"\",TNL!EJ80,\"\")","v":""}]
[{"$f":"IF(B14<>\"\",12,\"\")","v":""},{"$f":"IF(TNL!K82<>\"\",TNL!K82&\", \"&TNL!K83,\"\")","v":""},{"$f":"IF(B14<>\"\",TNL!K82,\"\")","v":""},{"$f":"IF(B14<>\"\",TNL!K83,\"\")","v":""},{"$f":"IF(B14<>\"\",TEXT(TNL!AW82,\"TT.MM.JJJJ\"),\"\")","v":""},{"$f":"IF(B14<>\"\",TNL!BI82,\"\")","v":""},{"$f":"IF(B14<>\"\",TNL!BI83,\"\")","v":""},null,null,{"$f":"IF(B14<>\"\",TNL!EJ82,\"\")","v":""}]
[{"$f":"IF(B15<>\"\",13,\"\")","v":""},{"$f":"IF(TNL!K84<>\"\",TNL!K84&\", \"&TNL!K85,\"\")","v":""},{"$f":"IF(B15<>\"\",TNL!K84,\"\")","v":""},{"$f":"IF(B15<>\"\",TNL!K85,\"\")","v":""},{"$f":"IF(B15<>\"\",TEXT(TNL!AW84,\"TT.MM.JJJJ\"),\"\")","v":""},{"$f":"IF(B15<>\"\",TNL!BI84,\"\")","v":""},{"$f":"IF(B15<>\"\",TNL!BI85,\"\")","v":""},null,null,{"$f":"IF(B15<>\"\",TNL!EJ84,\"\")","v":""}]
[{"$f":"IF(B16<>\"\",14,\"\")","v":""},{"$f":"IF(TNL!K86<>\"\",TNL!K86&\", \"&TNL!K87,\"\")","v":""},{"$f":"IF(B16<>\"\",TNL!K86,\"\")","v":""},{"$f":"IF(B16<>\"\",TNL!K87,\"\")","v":""},{"$f":"IF(B16<>\"\",TEXT(TNL!AW86,\"TT.MM.JJJJ\"),\"\")","v":""},{"$f":"IF(B16<>\"\",TNL!BI86,\"\")","v":""},{"$f":"IF(B16<>\"\",TNL!BI87,\"\")","v":""},null,null,{"$f":"IF(B16<>\"\",TNL!EJ86,\"\")","v":""}]
[{"$f":"IF(B17<>\"\",15,\"\")","v":""},{"$f":"IF(TNL!K88<>\"\",TNL!K88&\", \"&TNL!K89,\"\")","v":""},{"$f":"IF(B17<>\"\",TNL!K88,\"\")","v":""},{"$f":"IF(B17<>\"\",TNL!K89,\"\")","v":""},{"$f":"IF(B17<>\"\",TEXT(TNL!AW88,\"TT.MM.JJJJ\"),\"\")","v":""},{"$f":"IF(B17<>\"\",TNL!BI88,\"\")","v":""},{"$f":"IF(B17<>\"\",TNL!BI89,\"\")","v":""},null,null,{"$f":"IF(B17<>\"\",TNL!EJ88,\"\")","v":""}]
[{"$f":"IF(B18<>\"\",16,\"\")","v":""},{"$f":"IF(TNL!K90<>\"\",TNL!K90&\", \"&TNL!K91,\"\")","v":""},{"$f":"IF(B18<>\"\",TNL!K90,\"\")","v":""},{"$f":"IF(B18<>\"\",TNL!K91,\"\")","v":""},{"$f":"IF(B18<>\"\",TEXT(TNL!AW90,\"TT.MM.JJJJ\"),\"\")","v":""},{"$f":"IF(B18<>\"\",TNL!BI90,\"\")","v":""},{"$f":"IF(B18<>\"\",TNL!BI91,\"\")","v":""},null,null,{"$f":"IF(B18<>\"\",TNL!EJ90,\"\")","v":""}]
[{"$f":"IF(B19<>\"\",17,\"\")","v":""},{"$f":"IF(TNL!K92<>\"\",TNL!K92&\", \"&TNL!K93,\"\")","v":""},{"$f":"IF(B19<>\"\",TNL!K92,\"\")","v":""},{"$f":"IF(B19<>\"\",TNL!K93,\"\")","v":""},{"$f":"IF(B19<>\"\",TEXT(TNL!AW92,\"TT.MM.JJJJ\"),\"\")","v":""},{"$f":"IF(B19<>\"\",TNL!BI92,\"\")","v":""},{"$f":"IF(B19<>\"\",TNL!BI93,\"\")","v":""},null,null,{"$f":"IF(B19<>\"\",TNL!EJ92,\"\")","v":""}]
[{"$f":"IF(B20<>\"\",18,\"\")","v":""},{"$f":"IF(TNL!K94<>\"\",TNL!K94&\", \"&TNL!K95,\"\")","v":""},{"$f":"IF(B20<>\"\",TNL!K94,\"\")","v":""},{"$f":"IF(B20<>\"\",TNL!K95,\"\")","v":""},{"$f":"IF(B20<>\"\",TEXT(TNL!AW94,\"TT.MM.JJJJ\"),\"\")","v":""},{"$f":"IF(B20<>\"\",TNL!BI94,\"\")","v":""},{"$f":"IF(B20<>\"\",TNL!BI95,\"\")","v":""},null,null,{"$f":"IF(B20<>\"\",TNL!EJ94,\"\")","v":""}]
[{"$f":"IF(B21<>\"\",19,\"\")","v":""},{"$f":"IF(TNL!K96<>\"\",TNL!K96&\", \"&TNL!K97,\"\")","v":""},{"$f":"IF(B21<>\"\",TNL!K96,\"\")","v":""},{"$f":"IF(B21<>\"\",TNL!K97,\"\")","v":""},{"$f":"IF(B21<>\"\",TEXT(TNL!AW96,\"TT.MM.JJJJ\"),\"\")","v":""},{"$f":"IF(B21<>\"\",TNL!BI96,\"\")","v":""},{"$f":"IF(B21<>\"\",TNL!BI97,\"\")","v":""},null,null,{"$f":"IF(B21<>\"\",TNL!EJ96,\"\")","v":""}]
[{"$f":"IF(B22<>\"\",20,\"\")","v":""},{"$f":"IF(TNL!K98<>\"\",TNL!K98&\", \"&TNL!K99,\"\")","v":""},{"$f":"IF(B22<>\"\",TNL!K98,\"\")","v":""},{"$f":"IF(B22<>\"\",TNL!K99,\"\")","v":""},{"$f":"IF(B22<>\"\",TEXT(TNL!AW98,\"TT.MM.JJJJ\"),\"\")","v":""},{"$f":"IF(B22<>\"\",TNL!BI98,\"\")","v":""},{"$f":"IF(B22<>\"\",TNL!BI99,\"\")","v":""},null,null,{"$f":"IF(B22<>\"\",TNL!EJ98,\"\")","v":""}]
[]
["DGUV"]
[1,2,3,4,5,6,7,8,9,10]
["Nr.","Name, Vorname","Name","Vorname","Geb.","Firma","Firmen-Ort","BG | GUV","Nr. – BG | GUV","Reg.-Nr.",null,null,"Nr.","Name, Vorname","Geb.","BG | GUV","Nr. – BG | GUV"]
[{"$f":"IF(B27<>\"\",1,\"\")","v":""},{"$f":"IF(TNL!G49<>\"\",TNL!K49&\", \"&TNL!K50,\"\")","v":""},{"$f":"IF(B27<>\"\",TNL!K49,\"\")","v":""},{"$f":"IF(B27<>\"\",TNL!K50,\"\")","v":""},{"$f":"IF(B27<>\"\",TEXT(TNL!AW49,\"TT.MM.JJJJ\"),\"\")","v":""},{"$f":"IF(B27<>\"\",TNL!BI49,\"\")","v":""},{"$f":"IF(B27<>\"\",TNL!BI50,\"\")","v":""},{"$f":"IF(B27<>\"\",TNL!CW49,\"\")","v":""},{"$f":"IF(B27<>\"\",TNL!CW50,\"\")","v":""},{"$f":"IF(B27<>\"\",TNL!EJ49,\"\")","v":""},null,null,{"$f":"IF(N27<>\"\",1,\"\")","v":""},{"$f":"IF(B27<>\"\",B27,\"\")","v":""},{"$f":"IF(E27<>\"\",E27,\"\")","v":""},{"$f":"IF(H27<>\"\",H27,\"\")","v":""},{"$f":"IF(I27<>\"\",I27,\"\")","v":""}]
[{"$f":"IF(B28<>\"\",2,\"\")","v":""},{"$f":"IF(TNL!G51<>\"\",TNL!K51&\", \"&TNL!K52,\"\")","v":""},{"$f":"IF(B28<>\"\",TNL!K51,\"\")","v":""},{"$f":"IF(B28<>\"\",TNL!K52,\"\")","v":""},{"$f":"IF(B28<>\"\",TEXT(TNL!AW51,\"TT.MM.JJJJ\"),\"\")","v":""},{"$f":"IF(B28<>\"\",TNL!BI51,\"\")","v":""},{"$f":"IF(B28<>\"\",TNL!BI52,\"\")","v":""},{"$f":"IF(B28<>\"\",TNL!CW51,\"\")","v":""},{"$f":"IF(B28<>\"\",TNL!CW52,\"\")","v":""},{"$f":"IF(B28<>\"\",TNL!EJ51,\"\")","v":""},null,null,{"$f":"IF(N28<>\"\",2,\"\")","v":""},{"$f":"IF(B28<>\"\",B28,\"\")","v":""},{"$f":"IF(E28<>\"\",E28,\"\")","v":""},{"$f":"IF(H28<>\"\",H28,\"\")","v":""},{"$f":"IF(I28<>\"\",I28,\"\")","v":""}]
[{"$f":"IF(B29<>\"\",3,\"\")","v":""},{"$f":"IF(TNL!G53<>\"\",TNL!K53&\", \"&TNL!K54,\"\")","v":""},{"$f":"IF(B29<>\"\",TNL!K53,\"\")","v":""},{"$f":"IF(B29<>\"\",TNL!K54,\"\")","v":""},{"$f":"IF(B29<>\"\",TEXT(TNL!AW53,\"TT.MM.JJJJ\"),\"\")","v":""},{"$f":"IF(B29<>\"\",TNL!BI53,\"\")","v":""},{"$f":"IF(B29<>\"\",TNL!BI54,\"\")","v":""},{"$f":"IF(B29<>\"\",TNL!CW53,\"\")","v":""},{"$f":"IF(B29<>\"\",TNL!CW54,\"\")","v":""},{"$f":"IF(B29<>\"\",TNL!EJ53,\"\")","v":""},null,null,{"$f":"IF(N29<>\"\",3,\"\")","v":""},"","","",""]
[{"$f":"IF(B30<>\"\",4,\"\")","v":""},{"$f":"IF(TNL!G55<>\"\",TNL!K55&\", \"&TNL!K56,\"\")","v":""},{"$f":"IF(B30<>\"\",TNL!K55,\"\")","v":""},{"$f":"IF(B30<>\"\",TNL!K56,\"\")","v":""},{"$f":"IF(B30<>\"\",TEXT(TNL!AW55,\"TT.MM.JJJJ\"),\"\")","v":""},{"$f":"IF(B30<>\"\",TNL!BI55,\"\")","v":""},{"$f":"IF(B30<>\"\",TNL!BI56,\"\")","v":""},{"$f":"IF(B30<>\"\",TNL!CW55,\"\")","v":""},{"$f":"IF(B30<>\"\",TNL!CW56,\"\")","v":""},{"$f":"IF(B30<>\"\",TNL!EJ55,\"\")","v":""},null,null,{"$f":"IF(N30<>\"\",4,\"\")","v":""},"","","",""]
[{"$f":"IF(B31<>\"\",5,\"\")","v":""},{"$f":"IF(TNL!G57<>\"\",TNL!K57&\", \"&TNL!K58,\"\")","v":""},{"$f":"IF(B31<>\"\",TNL!K57,\"\")","v":""},{"$f":"IF(B31<>\"\",TNL!K58,\"\")","v":""},{"$f":"IF(B31<>\"\",TEXT(TNL!AW57,\"TT.MM.JJJJ\"),\"\")","v":""},{"$f":"IF(B31<>\"\",TNL!BI57,\"\")","v":""},{"$f":"IF(B31<>\"\",TNL!BI58,\"\")","v":""},{"$f":"IF(B31<>\"\",TNL!CW57,\"\")","v":""},{"$f":"IF(B31<>\"\",TNL!CW58,\"\")","v":""},{"$f":"IF(B31<>\"\",TNL!EJ57,\"\")","v":""},null,null,{"$f":"IF(N31<>\"\",5,\"\")","v":""},"","","",""]
[{"$f":"IF(B32<>\"\",6,\"\")","v":""},{"$f":"IF(TNL!G59<>\"\",TNL!K59&\", \"&TNL!K60,\"\")","v":""},{"$f":"IF(B32<>\"\",TNL!K59,\"\")","v":""},{"$f":"IF(B32<>\"\",TNL!K60,\"\")","v":""},{"$f":"IF(B32<>\"\",TEXT(TNL!AW59,\"TT.MM.JJJJ\"),\"\")","v":""},{"$f":"IF(B32<>\"\",TNL!BI59,\"\")","v":""},{"$f":"IF(B32<>\"\",TNL!BI60,\"\")","v":""},{"$f":"IF(B32<>\"\",TNL!CW57,\"\")","v":""},{"$f":"IF(B32<>\"\",TNL!CW60,\"\")","v":""},{"$f":"IF(B32<>\"\",TNL!EJ59,\"\")","v":""},null,null,{"$f":"IF(N32<>\"\",6,\"\")","v":""},"","","",""]
[{"$f":"IF(B33<>\"\",7,\"\")","v":""},{"$f":"IF(TNL!G61<>\"\",TNL!K61&\", \"&TNL!K62,\"\")","v":""},{"$f":"IF(B33<>\"\",TNL!K61,\"\")","v":""},{"$f":"IF(B33<>\"\",TNL!K62,\"\")","v":""},{"$f":"IF(B33<>\"\",TEXT(TNL!AW61,\"TT.MM.JJJJ\"),\"\")","v":""},{"$f":"IF(B33<>\"\",TNL!BI61,\"\")","v":""},{"$f":"IF(B33<>\"\",TNL!BI62,\"\")","v":""},{"$f":"IF(B33<>\"\",TNL!CW59,\"\")","v":""},{"$f":"IF(B33<>\"\",TNL!CW62,\"\")","v":""},{"$f":"IF(B33<>\"\",TNL!EJ61,\"\")","v":""},null,null,{"$f":"IF(N33<>\"\",7,\"\")","v":""},"","","",""]
[{"$f":"IF(B34<>\"\",8,\"\")","v":""},{"$f":"IF(TNL!G63<>\"\",TNL!K63&\", \"&TNL!K64,\"\")","v":""},{"$f":"IF(B34<>\"\",TNL!K63,\"\")","v":""},{"$f":"IF(B34<>\"\",TNL!K64,\"\")","v":""},{"$f":"IF(B34<>\"\",TEXT(TNL!AW63,\"TT.MM.JJJJ\"),\"\")","v":""},{"$f":"IF(B34<>\"\",TNL!BI63,\"\")","v":""},{"$f":"IF(B34<>\"\",TNL!BI64,\"\")","v":""},{"$f":"IF(B34<>\"\",TNL!CW61,\"\")","v":""},{"$f":"IF(B34<>\"\",TNL!CW64,\"\")","v":""},{"$f":"IF(B34<>\"\",TNL!EJ63,\"\")","v":""},null,null,{"$f":"IF(N34<>\"\",8,\"\")","v":""},"","","",""]
[{"$f":"IF(B35<>\"\",9,\"\")","v":""},{"$f":"IF(TNL!G65<>\"\",TNL!K65&\", \"&TNL!K66,\"\")","v":""},{"$f":"IF(B35<>\"\",TNL!K65,\"\")","v":""},{"$f":"IF(B35<>\"\",TNL!K66,\"\")","v":""},{"$f":"IF(B35<>\"\",TEXT(TNL!AW65,\"TT.MM.JJJJ\"),\"\")","v":""},{"$f":"IF(B35<>\"\",TNL!BI65,\"\")","v":""},{"$f":"IF(B35<>\"\",TNL!BI66,\"\")","v":""},{"$f":"IF(B35<>\"\",TNL!CW63,\"\")","v":""},{"$f":"IF(B35<>\"\",TNL!CW66,\"\")","v":""},{"$f":"IF(B35<>\"\",TNL!EJ65,\"\")","v":""},null,null,{"$f":"IF(N35<>\"\",9,\"\")","v":""},"","","",""]
[{"$f":"IF(B36<>\"\",10,\"\")","v":""},{"$f":"IF(TNL!G67<>\"\",TNL!K67&\", \"&TNL!K68,\"\")","v":""},{"$f":"IF(B36<>\"\",TNL!K67,\"\")","v":""},{"$f":"IF(B36<>\"\",TNL!K68,\"\")","v":""},{"$f":"IF(B36<>\"\",TEXT(TNL!AW67,\"TT.MM.JJJJ\"),\"\")","v":""},{"$f":"IF(B36<>\"\",TNL!BI67,\"\")","v":""},{"$f":"IF(B36<>\"\",TNL!BI68,\"\")","v":""},{"$f":"IF(B36<>\"\",TNL!CW65,\"\")","v":""},{"$f":"IF(B36<>\"\",TNL!CW68,\"\")","v":""},{"$f":"IF(B36<>\"\",TNL!EJ67,\"\")","v":""},null,null,{"$f":"IF(N36<>\"\",10,\"\")","v":""},"","","",""]
[{"$f":"IF(B37<>\"\",11,\"\")","v":""},{"$f":"IF(TNL!G80<>\"\",TNL!K80&\", \"&TNL!K81,\"\")","v":""},{"$f":"IF(B37<>\"\",TNL!K80,\"\")","v":""},{"$f":"IF(B37<>\"\",TNL!K81,\"\")","v":""},{"$f":"IF(B37<>\"\",TEXT(TNL!AW80,\"TT.MM.JJJJ\"),\"\")","v":""},{"$f":"IF(B37<>\"\",TNL!BI80,\"\")","v":""},{"$f":"IF(B37<>\"\",TNL!BI81,\"\")","v":""},{"$f":"IF(B37<>\"\",TNL!CW80,\"\")","v":""},{"$f":"IF(B37<>\"\",TNL!CW81,\"\")","v":""},{"$f":"IF(B37<>\"\",TNL!EJ80,\"\")","v":""},null,null,{"$f":"IF(N37<>\"\",11,\"\")","v":""},"","","",""]
[{"$f":"IF(B38<>\"\",12,\"\")","v":""},{"$f":"IF(TNL!G82<>\"\",TNL!K82&\", \"&TNL!K83,\"\")","v":""},{"$f":"IF(B38<>\"\",TNL!K82,\"\")","v":""},{"$f":"IF(B38<>\"\",TNL!K83,\"\")","v":""},{"$f":"IF(B38<>\"\",TEXT(TNL!AW82,\"TT.MM.JJJJ\"),\"\")","v":""},{"$f":"IF(B38<>\"\",TNL!BI82,\"\")","v":""},{"$f":"IF(B38<>\"\",TNL!BI83,\"\")","v":""},{"$f":"IF(B38<>\"\",TNL!CW82,\"\")","v":""},{"$f":"IF(B38<>\"\",TNL!CW83,\"\")","v":""},{"$f":"IF(B38<>\"\",TNL!EJ82,\"\")","v":""},null,null,{"$f":"IF(N38<>\"\",12,\"\")","v":""},"","","",""]
[{"$f":"IF(B39<>\"\",13,\"\")","v":""},{"$f":"IF(TNL!G84<>\"\",TNL!K84&\", \"&TNL!K85,\"\")","v":""},{"$f":"IF(B39<>\"\",TNL!K84,\"\")","v":""},{"$f":"IF(B39<>\"\",TNL!K85,\"\")","v":""},{"$f":"IF(B39<>\"\",TEXT(TNL!AW84,\"TT.MM.JJJJ\"),\"\")","v":""},{"$f":"IF(B39<>\"\",TNL!BI84,\"\")","v":""},{"$f":"IF(B39<>\"\",TNL!BI85,\"\")","v":""},{"$f":"IF(B39<>\"\",TNL!CW84,\"\")","v":""},{"$f":"IF(B39<>\"\",TNL!CW85,\"\")","v":""},{"$f":"IF(B39<>\"\",TNL!EJ84,\"\")","v":""},null,null,{"$f":"IF(N39<>\"\",13,\"\")","v":""},"","","",""]
[{"$f":"IF(B40<>\"\",14,\"\")","v":""},{"$f":"IF(TNL!G86<>\"\",TNL!K86&\", \"&TNL!K87,\"\")","v":""},{"$f":"IF(B40<>\"\",TNL!K86,\"\")","v":""},{"$f":"IF(B40<>\"\",TNL!K87,\"\")","v":""},{"$f":"IF(B40<>\"\",TEXT(TNL!AW86,\"TT.MM.JJJJ\"),\"\")","v":""},{"$f":"IF(B40<>\"\",TNL!BI86,\"\")","v":""},{"$f":"IF(B40<>\"\",TNL!BI87,\"\")","v":""},{"$f":"IF(B40<>\"\",TNL!CW86,\"\")","v":""},{"$f":"IF(B40<>\"\",TNL!CW87,\"\")","v":""},{"$f":"IF(B40<>\"\",TNL!EJ86,\"\")","v":""},null,null,{"$f":"IF(N40<>\"\",14,\"\")","v":""},"","","",""]
[{"$f":"IF(B41<>\"\",15,\"\")","v":""},{"$f":"IF(TNL!G88<>\"\",TNL!K88&\", \"&TNL!K89,\"\")","v":""},{"$f":"IF(B41<>\"\",TNL!K88,\"\")","v":""},{"$f":"IF(B41<>\"\",TNL!K89,\"\")","v":""},{"$f":"IF(B41<>\"\",TEXT(TNL!AW88,\"TT.MM.JJJJ\"),\"\")","v":""},{"$f":"IF(B41<>\"\",TNL!BI88,\"\")","v":""},{"$f":"IF(B41<>\"\",TNL!BI89,\"\")","v":""},{"$f":"IF(B41<>\"\",TNL!CW88,\"\")","v":""},{"$f":"IF(B41<>\"\",TNL!CW89,\"\")","v":""},{"$f":"IF(B41<>\"\",TNL!EJ88,\"\")","v":""},null,null,{"$f":"IF(N41<>\"\",15,\"\")","v":""},"","","",""]
[{"$f":"IF(B42<>\"\",16,\"\")","v":""},{"$f":"IF(TNL!G90<>\"\",TNL!K90&\", \"&TNL!K91,\"\")","v":""},{"$f":"IF(B42<>\"\",TNL!K90,\"\")","v":""},{"$f":"IF(B42<>\"\",TNL!K91,\"\")","v":""},{"$f":"IF(B42<>\"\",TEXT(TNL!AW90,\"TT.MM.JJJJ\"),\"\")","v":""},{"$f":"IF(B42<>\"\",TNL!BI90,\"\")","v":""},{"$f":"IF(B42<>\"\",TNL!BI91,\"\")","v":""},{"$f":"IF(B42<>\"\",TNL!CW90,\"\")","v":""},{"$f":"IF(B42<>\"\",TNL!CW91,\"\")","v":""},{"$f":"IF(B42<>\"\",TNL!EJ90,\"\")","v":""},null,null,{"$f":"IF(N42<>\"\",16,\"\")","v":""},"","","",""]
[{"$f":"IF(B43<>\"\",17,\"\")","v":""},{"$f":"IF(TNL!G92<>\"\",TNL!K92&\", \"&TNL!K93,\"\")","v":""},{"$f":"IF(B43<>\"\",TNL!K92,\"\")","v":""},{"$f":"IF(B43<>\"\",TNL!K93,\"\")","v":""},{"$f":"IF(B43<>\"\",TEXT(TNL!AW92,\"TT.MM.JJJJ\"),\"\")","v":""},{"$f":"IF(B43<>\"\",TNL!BI92,\"\")","v":""},{"$f":"IF(B43<>\"\",TNL!BI93,\"\")","v":""},{"$f":"IF(B43<>\"\",TNL!CW92,\"\")","v":""},{"$f":"IF(B43<>\"\",TNL!CW93,\"\")","v":""},{"$f":"IF(B43<>\"\",TNL!EJ92,\"\")","v":""},null,null,{"$f":"IF(N43<>\"\",17,\"\")","v":""},"","","",""]
[{"$f":"IF(B44<>\"\",18,\"\")","v":""},{"$f":"IF(TNL!G94<>\"\",TNL!K94&\", \"&TNL!K95,\"\")","v":""},{"$f":"IF(B44<>\"\",TNL!K94,\"\")","v":""},{"$f":"IF(B44<>\"\",TNL!K95,\"\")","v":""},{"$f":"IF(B44<>\"\",TEXT(TNL!AW94,\"TT.MM.JJJJ\"),\"\")","v":""},{"$f":"IF(B44<>\"\",TNL!BI94,\"\")","v":""},{"$f":"IF(B44<>\"\",TNL!BI95,\"\")","v":""},{"$f":"IF(B44<>\"\",TNL!CW94,\"\")","v":""},{"$f":"IF(B44<>\"\",TNL!CW95,\"\")","v":""},{"$f":"IF(B44<>\"\",TNL!EJ94,\"\")","v":""},null,null,{"$f":"IF(N44<>\"\",18,\"\")","v":""},"","","",""]
[{"$f":"IF(B45<>\"\",19,\"\")","v":""},{"$f":"IF(TNL!G96<>\"\",TNL!K96&\", \"&TNL!K97,\"\")","v":""},{"$f":"IF(B45<>\"\",TNL!K96,\"\")","v":""},{"$f":"IF(B45<>\"\",TNL!K97,\"\")","v":""},{"$f":"IF(B45<>\"\",TEXT(TNL!AW96,\"TT.MM.JJJJ\"),\"\")","v":""},{"$f":"IF(B45<>\"\",TNL!BI96,\"\")","v":""},{"$f":"IF(B45<>\"\",TNL!BI97,\"\")","v":""},{"$f":"IF(B45<>\"\",TNL!CW96,\"\")","v":""},{"$f":"IF(B45<>\"\",TNL!CW97,\"\")","v":""},{"$f":"IF(B45<>\"\",TNL!EJ96,\"\")","v":""},null,null,{"$f":"IF(N45<>\"\",19,\"\")","v":""},"","","",""]
[{"$f":"IF(B46<>\"\",20,\"\")","v":""},{"$f":"IF(TNL!G98<>\"\",TNL!K98&\", \"&TNL!K99,\"\")","v":""},{"$f":"IF(B46<>\"\",TNL!K98,\"\")","v":""},{"$f":"IF(B46<>\"\",TNL!K99,\"\")","v":""},{"$f":"IF(B46<>\"\",TEXT(TNL!AW98,\"TT.MM.JJJJ\"),\"\")","v":""},{"$f":"IF(B46<>\"\",TNL!BI98,\"\")","v":""},{"$f":"IF(B46<>\"\",TNL!BI99,\"\")","v":""},{"$f":"IF(B46<>\"\",TNL!CW98,\"\")","v":""},{"$f":"IF(B46<>\"\",TNL!CW99,\"\")","v":""},{"$f":"IF(B46<>\"\",TNL!EJ98,\"\")","v":""},null,null,{"$f":"IF(N46<>\"\",20,\"\")","v":""},"","","",""]